Workbook

Sheet Ex 1 HDD
A1: Heating Degree Days | G1: Docket | I1: Dominion Energy Utah
I2: Docket No. 22-057-02
I3: DEU Variance Exhibit
A7: Month/Year | B7: Actual | C7: Normal | F7: Actual | G7: Normal
A8: 2022-06-01 | B8: 22 | C8: 37.52 | D8: =B8-C8 -> -15.52 | F8: =B8 -> 22 | G8: =C8 -> 37.52
A9: 2022-07-01 | B9: 0 | C9: 0 | D9: =B9-C9 -> 0 | F9: =B9+F8 -> 22 | G9: =G8+C9 -> 37.52
A10: 2022-08-01 | B10: 0 | C10: 1.87 | D10: -1.87 | F10: 22 | G10: =G9+C10 -> 39.39
A11: 2022-09-01 | B11: 5 | C11: 61.41 | D11: -56.41 | F11: 27 | G11: 100.8
A12: 2022-10-01 | B12: 253 | C12: 342.03 | D12: -89.03 | F12: =B12+F11 -> 280 | G12: 442.83
A13: 2022-11-01 | B13: 865 | C13: 711.58 | D13: 153.42 | F13: =B13+F12 -> 1145 | G13: 1154.41
A14: 2022-12-01 | B14: 1009 | C14: 1054.69 | D14: -45.69 | F14: 2154 | G14: 2209.1
A15: 2023-01-01 | B15: 978 | C15: 1083.33 | D15: -105.33 | F15: 3132 | G15: 3292.43
A16: 2023-02-01 | B16: 917 | C16: 819.68 | D16: 97.32 | F16: 4049 | G16: 4112.11
A17: 2023-03-01 | B17: 807 | C17: 620.3 | D17: 186.7 | F17: 4856 | G17: 4732.41
A18: 2023-04-01 | B18: 439 | C18: 423.69 | D18: 15.31 | F18: 5295 | G18: 5156.1
A19: 2023-05-01 | B19: 63 | C19: 196.8 | D19: -133.8 | F19: 5358 | G19: 5352.9
B20: =SUM(B8:B19) -> 5358 | C20: =SUM(G8:G19) -> 26667.52 | D20: =SUM(D8:D19) -> 5.1

Sheet Exhibit 1.1
O31: ='Ex 1 HDD'!I3 -> DEU Variance Exhibit | P31: ='Ex 1 HDD'!I2 -> Docket No. 22-057-02 | Q31: ='Ex 1 HDD'!I1 -> Dominion Energy Utah
O32: 1.1

Sheet Exhibit 1.2
O31: ='Ex 1 HDD'!I3 -> DEU Variance Exhibit | P31: ='Ex 1 HDD'!I2 -> Docket No. 22-057-02 | Q31: ='Ex 1 HDD'!I1 -> Dominion Energy Utah
O32: 1.2

Sheet Exhibit 1.3
O31: ='Ex 1 HDD'!I3 -> DEU Variance Exhibit | P31: ='Ex 1 HDD'!I2 -> Docket No. 22-057-02 | Q31: ='Ex 1 HDD'!I1 -> Dominion Energy Utah
O32: 1.3

Sheet Ex 2 Clay Basin
A1: Clay Basin Ending Inventory (MDths)
A7: Month/Year | B7: Actual | C7: Normal | E7: Actual | F7: Actual/1000 | H7: Actual | I7: Normal
A8: 2022-06-01 | B8: =F8 -> 1571.062 | C8: 2789.907 | D8: =B8-C8 -> -1218.845 | E8: 1571062 | F8: =E8/1000 -> 1571.062 | H8: =F8 -> 1571.062 | I8: =C8 -> 2789.907
A9: 2022-07-01 | B9: =F9 -> 3832.058 | C9: 4555.274 | D9: -723.216 | E9: 3832058 | F9: =E9/1000 -> 3832.058 | H9: =H8+F9 -> 5403.12 | I9: =C9+I8 -> 7345.181
A10: 2022-08-01 | B10: 5408.257 | C10: 6242.428 | D10: -834.171 | E10: 5408257 | F10: 5408.257 | H10: =H9+F10 -> 10811.377 | I10: 13587.609
A11: 2022-09-01 | B11: 7778.039 | C11: 8168.72 | D11: -390.681 | E11: 7778039 | F11: 7778.039 | H11: 18589.416 | I11: =C11+I10 -> 21756.329
A12: 2022-10-01 | B12: 10327.441 | C12: 9745.574 | D12: 581.867 | E12: 10327441 | F12: 10327.441 | H12: 28916.857 | I12: 31501.903
A13: 2022-11-01 | B13: 9565.413 | C13: 9900.144 | D13: -334.731 | E13: 9565413 | F13: 9565.413 | H13: 38482.27 | I13: 41402.047
A14: 2022-12-01 | B14: 6998.512 | C14: 6490.094 | D14: 508.418 | E14: 6998512 | F14: 6998.512 | H14: 45480.782 | I14: 47892.141
A15: 2023-01-01 | B15: 4025.585 | C15: 3080.045 | D15: 945.54 | E15: 4025585 | F15: 4025.585 | H15: 49506.367 | I15: 50972.186
A16: 2023-02-01 | B16: 1480.294 | C16: 0 | D16: 1480.294 | E16: 1480294 | F16: 1480.294 | H16: 50986.661 | I16: 50972.186
A17: 2023-03-01 | B17: 453.658 | C17: 805.14 | D17: -351.482 | E17: 453658 | F17: 453.658 | H17: 51440.319 | I17: 51777.326
A18: 2023-04-01 | B18: 222.245 | C18: 941.617 | D18: -719.372 | E18: 222245 | F18: 222.245 | H18: 51662.564 | I18: 52718.943
A19: 2023-05-01 | B19: 2464.726 | C19: 3359.617 | D19: -894.891 | E19: 2464726 | F19: 2464.726 | H19: 54127.29 | I19: 56078.56

Sheet Ex 2 Aquifers
A1: Total Aquifer Storage Ending Inventory (MDths)
O4: 1082 | P4: 1106
H6: 1.055 | M6: Month/Year | N6: Month | O6: Inj | P6: With | Q6: Total
A7: Month/Year | B7: Actual | C7: Normal | E7: Actual | F7: IRP | H7: MCF | I7: DTH | J7: MDTH | Q7: 775.998
A8: ='Ex 1 HDD'!$A$8 -> 2022-06-01 | B8: =J8 -> 808.934 | C8: =Q8 -> 775.998 | D8: =B8-C8 -> 32.936 | E8: =B8 -> 808.934 | F8: =C8 -> 775.998 | H8: =I8/$H$6 -> 766762.0853 | I8: 808934 | J8: =I8/1000 -> 808.934 | M8: =A8 -> 2022-06-01 | N8: =Q7 -> 775.998 | O8: 0 | P8: 0 | Q8: =N8+O8-P8 -> 775.998
A9: ='Ex 1 HDD'!$A$9 -> 2022-07-01 | B9: =J9 -> 819.64 | C9: =Q9 -> 775.998 | D9: =B9-C9 -> 43.642 | E9: =B9+E8 -> 1628.574 | F9: =C9+F8 -> 1551.996 | H9: =I9/$H$6 -> 776909.9526 | I9: 819640 | J9: =I9/1000 -> 819.64 | M9: =A9 -> 2022-07-01 | N9: =Q8 -> 775.998 | O9: 0 | P9: 0 | Q9: 775.998
A10: ='Ex 1 HDD'!$A$10 -> 2022-08-01 | B10: 836.667 | C10: 775.998 | D10: =B10-C10 -> 60.669 | E10: =B10+E9 -> 2465.241 | F10: 2327.994 | H10: 793049.2891 | I10: 836667 | J10: 836.667 | M10: 2022-08-01 | N10: =Q9 -> 775.998 | O10: 0 | P10: 0 | Q10: 775.998
A11: ='Ex 1 HDD'!$A$11 -> 2022-09-01 | B11: =J11 -> 1136.966 | C11: =Q11 -> 881.498 | D11: =B11-C11 -> 255.468 | E11: =B11+E10 -> 3602.207 | F11: 3209.492 | H11: =I11/$H$6 -> 1077692.891 | I11: 1136966 | J11: =I11/1000 -> 1136.966 | M11: 2022-09-01 | N11: 775.998 | O11: 105.5 | P11: 0 | Q11: 881.498
A12: ='Ex 1 HDD'!$A12 -> 2022-10-01 | B12: 1377.735 | C12: 1339.298 | D12: 38.437 | E12: 4979.942 | F12: 4548.79 | H12: =I12/$H$6 -> 1305909.953 | I12: 1377735 | J12: =I12/1000 -> 1377.735 | M12: 2022-10-01 | N12: 881.498 | O12: 457.8 | P12: 0 | Q12: 1339.298
A13: ='Ex 1 HDD'!$A13 -> 2022-11-01 | B13: 1735.784 | C13: 1829.202 | D13: -93.418 | E13: 6715.726 | F13: 6377.992 | H13: 1645292.891 | I13: 1735784 | J13: 1735.784 | M13: 2022-11-01 | N13: 1339.298 | O13: 489.904 | P13: 0 | Q13: 1829.202
A14: ='Ex 1 HDD'!$A14 -> 2022-12-01 | B14: 1633.333 | C14: 1928.368 | D14: -295.035 | E14: 8349.059 | F14: 8306.36 | H14: =I14/$H$6 -> 1548182.938 | I14: 1633333 | J14: 1633.333 | M14: 2022-12-01 | N14: 1829.202 | O14: 99.166 | P14: 0 | Q14: 1928.368
A15: ='Ex 1 HDD'!$A15 -> 2023-01-01 | B15: 1455.932 | C15: 923.324 | D15: 532.608 | E15: 9804.991 | F15: 9229.684 | H15: 1380030.332 | I15: 1455932 | J15: 1455.932 | M15: 2023-01-01 | N15: 1928.368 | O15: 0 | P15: 1005.044 | Q15: =N15+O15-P15 -> 923.324
A16: ='Ex 1 HDD'!$A16 -> 2023-02-01 | B16: 1728.648 | C16: 598.309 | D16: 1130.339 | E16: 11533.639 | F16: 9827.993 | H16: 1638528.91 | I16: 1728648 | J16: =I16/1000 -> 1728.648 | M16: 2023-02-01 | N16: 923.324 | O16: 361.11 | P16: 686.125 | Q16: 598.309
A17: ='Ex 1 HDD'!$A17 -> 2023-03-01 | B17: =J17 -> 1143.666 | C17: =Q17 -> 803.684 | D17: 339.982 | E17: 12677.305 | F17: 10631.677 | H17: 1084043.602 | I17: 1143666 | J17: =I17/1000 -> 1143.666 | M17: 2023-03-01 | N17: 598.309 | O17: 317.5 | P17: 112.125 | Q17: 803.684
A18: ='Ex 1 HDD'!$A18 -> 2023-04-01 | B18: 804.076 | C18: 803.684 | D18: 0.392 | E18: 13481.381 | F18: 11435.361 | H18: 762157.346 | I18: 804076 | J18: =I18/1000 -> 804.076 | M18: 2023-04-01 | N18: 803.684 | O18: 0 | P18: 0 | Q18: 803.684
A19: ='Ex 1 HDD'!$A19 -> 2023-05-01 | B19: 803.822 | C19: 803.684 | D19: 0.138 | E19: 14285.203 | F19: 12239.045 | H19: 761916.5877 | I19: 803822 | J19: =I19/1000 -> 803.822 | M19: 2023-05-01 | N19: 803.684 | O19: 0 | P19: 0 | Q19: 803.684
O20: =SUM(O8:O19) -> 1830.98 | P20: =SUM(P8:P19) -> 1803.294

Sheet Ex 2 Spire Storage West (hidden)
O5: 1082 | P5: 1106
H6: 1000 | N6: Month | O6: Inj | P6: With | Q6: Total
A7: ='Ex 1 HDD'!A7 -> Month/Year | B7: Actual | C7: Normal | D7: Days | E7: Daily Demand | G7: Actual Dth | H7: MDth | J7: Actual | K7: Normal | Q7: 731
A8: ='Ex 1 HDD'!A8 -> 2022-06-01 | B8: =H8 -> 799.215 | C8: =Q8 -> 1072.73 | D8: =DAY(EOMONTH(A8,0)) -> 30 | E8: =C8/D8 -> 35.75766667 | G8: 799215 | H8: =G8/$H$6 -> 799.215 | J8: 949.736 | K8: =C8 -> 1072.73 | M8: =A8 -> 2022-06-01 | N8: =Q7 -> 731 | O8: 341.73 | P8: 0 | Q8: =N8+O8-P8 -> 1072.73
A9: ='Ex 1 HDD'!A9 -> 2022-07-01 | B9: =H9 -> 1151.344 | C9: =Q9 -> 1425.85 | D9: =DAY(EOMONTH(A9,0)) -> 31 | E9: =C9/D9 -> 45.99516129 | G9: 1151344 | H9: =G9/$H$6 -> 1151.344 | J9: =B9+J8 -> 2101.08 | K9: =C9+K8 -> 2498.58 | M9: =A9 -> 2022-07-01 | N9: =Q8 -> 1072.73 | O9: 353.12 | P9: 0 | Q9: 1425.85
A10: ='Ex 1 HDD'!A10 -> 2022-08-01 | B10: =H10 -> 1503.473 | C10: 1778.97 | D10: 31 | E10: 57.38612903 | G10: 1503473 | H10: 1503.473 | J10: 3604.553 | K10: 4277.55 | M10: 2022-08-01 | N10: =Q9 -> 1425.85 | O10: 353.12 | P10: 0 | Q10: 1778.97
A11: ='Ex 1 HDD'!A11 -> 2022-09-01 | B11: =H11 -> 1844.243 | C11: 2120.7 | D11: 30 | E11: 70.69 | G11: 1844243 | H11: 1844.243 | J11: 5448.796 | K11: 6398.25 | M11: 2022-09-01 | N11: 1778.97 | O11: 341.73 | P11: 0 | Q11: 2120.7
A12: ='Ex 1 HDD'!A12 -> 2022-10-01 | B12: 2052.456 | C12: 2473.819 | D12: 31 | E12: 79.8006129 | G12: 2052456 | H12: 2052.456 | J12: 7501.252 | K12: 8872.069 | M12: 2022-10-01 | N12: 2120.7 | O12: 353.119 | P12: 0 | Q12: 2473.819
A13: ='Ex 1 HDD'!A13 -> 2022-11-01 | B13: 1782.492 | C13: 2511.007 | D13: 30 | E13: 83.70023333 | G13: 1782492 | H13: 1782.492 | J13: 9283.744 | K13: 11383.076 | M13: 2022-11-01 | N13: 2473.819 | O13: 37.188 | P13: 0 | Q13: 2511.007
A14: ='Ex 1 HDD'!A14 -> 2022-12-01 | B14: 1267.892 | C14: 2003.007 | D14: 31 | E14: 64.61312903 | G14: 1267892 | H14: 1267.892 | J14: 10551.636 | K14: 13386.083 | M14: 2022-12-01 | N14: 2511.007 | O14: 0 | P14: 508 | Q14: 2003.007
A15: ='Ex 1 HDD'!A15 -> 2023-01-01 | B15: 763.667 | C15: 1488.407 | D15: 31 | E15: 48.01312903 | G15: 763667 | H15: 763.667 | J15: 11315.303 | K15: 14874.49 | M15: 2023-01-01 | N15: 2003.007 | O15: 0 | P15: 514.6 | Q15: 1488.407
A16: ='Ex 1 HDD'!A16 -> 2023-02-01 | B16: 398.467 | C16: 1023.607 | D16: 28 | E16: 36.55739286 | G16: 398467 | H16: 398.467 | J16: 11713.77 | K16: 15898.097 | M16: 2023-02-01 | N16: 1488.407 | O16: 0 | P16: 464.8 | Q16: 1023.607
A17: ='Ex 1 HDD'!A17 -> 2023-03-01 | B17: =G17 -> 0 | C17: 509.007 | D17: 31 | E17: 16.41958065 | H17: 0 | J17: 11713.77 | K17: 16407.104 | M17: 2023-03-01 | N17: 1023.607 | O17: 0 | P17: 514.6 | Q17: 509.007
A18: ='Ex 1 HDD'!A18 -> 2023-04-01 | B18: 0 | C18: 11.007 | D18: 30 | E18: 0.3669 | H18: 0 | J18: 11713.77 | K18: 16418.111 | M18: 2023-04-01 | N18: 509.007 | O18: 0 | P18: 498 | Q18: 11.007
A19: ='Ex 1 HDD'!A19 -> 2023-05-01 | B19: 0 | C19: 11.007 | D19: 31 | E19: 0.3550645161 | H19: 0 | J19: 11713.77 | K19: 16429.118 | M19: 2023-05-01 | N19: 11.007 | O19: 0 | P19: 0 | Q19: 11.007
O21: =SUM(O8:O20) -> 1780.007 | P21: =SUM(O8:O19) -> 1780.007 | Q21: =SUM(P8:P19) -> 2500

Sheet Exhibit 2.1
O31: ='Exhibit 1.1'!O31 -> DEU Variance Exhibit | P31: ='Exhibit 1.1'!P31 -> Docket No. 22-057-02 | Q31: ='Exhibit 1.1'!Q31 -> Dominion Energy Utah
O32: 2.1

Sheet Exhibit 2.2
O31: ='Exhibit 1.1'!O31 -> DEU Variance Exhibit | P31: ='Exhibit 1.1'!P31 -> Docket No. 22-057-02 | Q31: ='Exhibit 1.1'!Q31 -> Dominion Energy Utah
O32: 2.2

Sheet Exhibit 2.3 (hidden)
O31: ='Exhibit 1.1'!O31 -> DEU Variance Exhibit | P31: ='Exhibit 1.1'!P31 -> Docket No. 22-057-02 | Q31: ='Exhibit 1.1'!Q31 -> Dominion Energy Utah
O32: 2.3

Sheet Exhibit 2.3
O31: ='Exhibit 1.1'!O31 -> DEU Variance Exhibit | P31: ='Exhibit 1.1'!P31 -> Docket No. 22-057-02 | Q31: ='Exhibit 1.1'!Q31 -> Dominion Energy Utah
O32: 2.3

Sheet Exhibit 2.4
O31: ='Exhibit 1.1'!O31 -> DEU Variance Exhibit | P31: ='Exhibit 1.1'!P31 -> Docket No. 22-057-02 | Q31: ='Exhibit 1.1'!Q31 -> Dominion Energy Utah
O32: 2.4

Sheet Exhibit 2.6 (hidden)
O31: ='Exhibit 1.1'!O31 -> DEU Variance Exhibit | P31: ='Exhibit 1.1'!P31 -> Docket No. 22-057-02 | Q31: ='Exhibit 1.1'!Q31 -> Dominion Energy Utah
O32: 2.6

Sheet Exhibit Firm Sales Volume
A1: Demand
G6: Cumulative
A7: ='Ex 1 HDD'!A7 -> Month/Year | B7: Actual | C7: IRP Normal | D7: Days | E7: Daily Demand | G7: Actual | H7: IRP Normal
A8: 2022-06-01 | B8: 2802.935037 | C8: 3129.067 | D8: =DAY(EOMONTH(A8,0)) -> 30 | E8: =C8/D8 -> 104.3022333 | G8: =B8 -> 2802.935037 | H8: =C8 -> 3129.067
A9: 2022-07-01 | B9: 2610.735299 | C9: 2605.136 | D9: =DAY(EOMONTH(A9,0)) -> 31 | E9: =C9/D9 -> 84.03664516 | G9: =B9+G8 -> 5413.670336 | H9: =C9+H8 -> 5734.203
A10: 2022-08-01 | B10: 2511.353261 | C10: 2567.176 | D10: 31 | E10: 82.81212903 | G10: =B10+G9 -> 7925.023597 | H10: =C10+H9 -> 8301.379
A11: 2022-09-01 | B11: 2720.392744 | C11: 3028.82 | D11: 30 | E11: 100.9606667 | G11: 10645.41634 | H11: 11330.199
A12: 2022-10-01 | B12: 5519.610629 | C12: 7331.214 | D12: 31 | E12: 236.4907742 | G12: 16165.02697 | H12: 18661.413
A13: 2022-11-01 | B13: 16427.41807 | C13: 12659.934 | D13: 30 | E13: 421.9978 | G13: 32592.44504 | H13: 31321.347
A14: 2022-12-01 | B14: 20807.62378 | C14: 19257.5 | D14: 31 | E14: 621.2096774 | G14: 53400.06882 | H14: 50578.847
A15: 2023-01-01 | B15: 22066.42884 | C15: 21030.834 | D15: 31 | E15: 678.414 | G15: 75466.49766 | H15: 71609.681
A16: 2023-02-01 | B16: 19509.15686 | C16: 17592.298 | D16: 28 | E16: 628.2963571 | G16: 94975.65452 | H16: 89201.979
A17: 2023-03-01 | B17: 17967.81844 | C17: 13834.956 | D17: 31 | E17: 446.2889032 | G17: 112943.473 | H17: 103036.935
A18: 2023-04-01 | B18: 10884.27449 | C18: 9305.893 | D18: 30 | E18: 310.1964333 | G18: 123827.7474 | H18: 112342.828
A19: 2023-05-01 | B19: 3932.802969 | C19: 5581.418 | D19: 31 | E19: 180.0457419 | G19: 127760.5504 | H19: 117924.246
C20: =SUM(C8:C19) -> 117924.246

Sheet Exhibit 3.1
O31: DEU Variance Exhibit | P31: Docket No. 22-057-02 | Q31: Dominion Energy Utah
O32: 3.1

Sheet Exhibit 3.2
O31: DEU Variance Exhibit | P31: Docket No. 22-057-02 | Q31: Dominion Energy Utah
O32: 3.2

Sheet Exhibit 3.3
O31: DEU Variance Exhibit | P31: Docket No. 22-057-02 | Q31: Dominion Energy Utah
O32: 3.3

Sheet Exhibit 3.4
H1: Dominion Energy Utah
G2: Docket No. 22-057-02
H3: DEU Variance Exhibit 3.4
B6: IRP Variance
B8: Actual Results
C9: 2023-03-07 | E9: 2023-04-07 | G9: 2023-05-08
B10: SUPPLY | C10: Actual | D10: IRP | E10: Actual | F10: IRP | G10: Actual | H10: IRP
A11: 1 | B11: Cost of Service Prod (Mbtu) | C11: 4744.907 | D11: 4780.265 | E11: 4629.471 | F11: 4524.563 | G11: 4938.242 | H11: 4577.205
A12: =A11+1 -> 2 | B12: Purchases (Mbtu) | C12: 11815.371 | D12: 8732.722 | E12: 6094.883 | F12: 4825.148 | G12: 1815.589 | H12: 3597.914
A13: =A12+1 -> 3 | B13: Clay Basin With (Mbtu) | C13: 1171.05 | D13: 0 | E13: 625.825 | F13: 0 | G13: 0 | H13: 0
A14: =A13+1 -> 4 | B14: Acquifers With (Mbtu) | C14: 590.202 | D14: 112.125 | E14: 768.701 | F14: 0 | G14: 107.609 | H14: 0
A15: =A14+1 -> 5 | B15: LNG With (Mbtu) | C15: 30.203 | D15: 1230 | E15: 31.765 | F15: 0 | G15: 77.293 | H15: 0
A16: =A15+1 -> 6 | B16: Off-System | C16: 11.62771 | D16: 39.677 | E16: 8.76838 | F16: 38.397 | G16: 2.91092 | H16: 39.677
A18: =A16+1 -> 7 | B18: Total Supply | C18: 18363.36071 | D18: 14894.789 | E18: 12159.41338 | F18: 9388.108 | G18: 6941.64392 | H18: 8214.796
B20: DEMAND
A21: =A18+1 -> 8 | B21: Firm Sales (Mbtu) | C21: 17967.81844 | D21: 13397.348 | E21: 10884.27449 | F21: 8957.362 | G21: 3932.802969 | H21: 5266.92
A22: =A21+1 -> 9 | B22: Interruptible Sales (Mbtu) | C22: 56.982265 | D22: 46.072 | E22: 25.574004 | F22: 40.395 | G22: 38.28417 | H22: 28.097
A23: =A22+1 -> 10 | B23: Clay Basin Inj (Mbtu) | C23: 144.594 | D23: 805.14 | E23: 394.438 | F23: 136.477 | G23: 2242.489 | H23: 2418.001
A24: =A23+1 -> 11 | B24: Acquifers Inj (Mbtu) | C24: 12.941 | D24: 317.5 | E24: 444.224 | F24: 0 | G24: 112.33 | H24: 0
A25: =A24+1 -> 12 | B25: LNG Inj (Mbtu) | C25: 16.74 | D25: 0 | E25: 54.54 | F25: 0 | G25: 59.014 | H25: 279
A26: 13 | B26: Off-System | C26: 11.62771 | D26: 36.961 | E26: 8.76838 | F26: 35.803 | G26: 2.91092 | H26: 37.01
A27: 14 | B27: Fuel | C27: 89.674 | D27: 216.62 | E27: 77.134 | F27: 167.774 | G27: 71.339 | H27: 156.169
A28: =A27+1 -> 15 | B28: Company Use / L&U | C28: 62.98324 | D28: 75.148 | E28: 270.460633 | F28: 50.297 | G28: 482.473902 | H28: 29.599
A30: =A28+1 -> 16 | B30: Total Demand | C30: 18363.36065 | D30: 14894.789 | E30: 12159.4135 | F30: 9388.108 | G30: 6941.643961 | H30: 8214.796
A33: =A30+1 -> 17 | B33: Clay Basin Fuel Usage Adjustment | C33: -0.18 | D33: 0 | E33: -0.026 | F33: 0 | G33: -0.008 | H33: 0
A34: =A33+1 -> 18 | B34: Clay Basin Transfers | C34: 0 | D34: 0 | E34: 0 | F34: 0 | G34: 0 | H34: 0
A35: 19 | B35: Acquifers Fuel Usage Adjustment | C35: -7.721 | D35: 0 | E35: -15.113 | F35: 0 | G35: -4.975 | H35: 0
A36: 20 | B36: Acquifers Transfers | C36: 0 | D36: 0 | E36: 0 | F36: 0 | G36: 0 | H36: 0
A37: 21 | B37: Clay Basin Current Bal | C37: 453.658 | D37: 0.0009999999997 | E37: 222.245 | F37: 945.001 | G37: 2464.726 | H37: 3363.002
A38: 22 | B38: Acquifers Current Bal | C38: 1143.666 | D38: 0 | E38: 804.076 | F38: 0 | G38: 803.822 | H38: 0
A39: 23 | B39: LNG Current Bal | C39: 130.324 | D39: 0 | E39: 153.099 | F39: 0 | G39: 134.82 | H39: 0
A41: =+A39+1 -> 24 | B41: Purchases($/Dth) | C41: 5.52665172 | D41: 4.726470166 | E41: 4.223743656 | F41: 3.618332536 | G41: 1.774866187 | H41: 3.366117145
A42: =A41+1 -> 25 | B42: Purchases $ (000) | C42: 65299.44045 | D42: 41274.95 | E42: 25743.22341 | F42: 17458.99 | G42: 3222.427525 | H42: 12111
B45: Variances
A46: =A42+1 -> 26 | B46: Cost of service volumes | C46: 0 | D46: 0 | E46: 104.908 | F46: 0 | G46: 361.037 | H46: 0
A47: =A46+1 -> 27 | B47: Purchase volumes | C47: 3082.649 | D47: 0 | E47: 1269.735 | F47: 0 | G47: 0 | H47: 0
A48: 28 | B48: Purchase $ Act over (under) IRP | C48: 24024.49045 | D48: 0 | E48: 8284.233405 | F48: 0 | G48: 0 | H48: -8888.572475
A49: 29 | B49: Purchase Variance | C49: 14570.04853 | D49: 0 | E49: 4594.323463 | F49: 0 | G49: 0 | H49: -5999.51474
A50: 30 | B50: $ Variance | C50: 9454.441925 | D50: 0 | E50: 3689.909942 | F50: 0 | G50: 0 | H50: -2889.057735
A51: 31 | B51: Check | C51: 0 | D51: 0 | E51: 0 | F51: 0 | G51: 0 | H51: 0
A52: 32 | B52: Quarter Variance | G52: 23420.15138
A53: 33 | B53: Purchase Variance | G53: 13164.85725
A54: 34 | B54: $ Variance | G54: 10255.29413
A55: 35 | B55: Check | G55: 0

Sheet Ex 4 Purchase Gas
A1: Purchase Gas Variance (Brady Included) MDths
G6: Cumulative
A7: Month/Year | B7: Actual | C7: IRP Normal | E7: Month/Year | F7: Actual | G7: IRP Normal | I7: Month/Year | J7: DTHS | K7: MDTHS | L7: $'S | M7: $1,000'S
A8: ='Ex 1 HDD'!A8 -> 2022-06-01 | B8: =K8 -> 483.77 | C8: 619.593 | E8: =A8 -> 2022-06-01 | F8: =K8 -> 483.77 | G8: =C8 -> 619.593 | I8: =A8 -> 2022-06-01 | J8: 483770 | K8: =J8/1000 -> 483.77 | L8: 3039770.37 | M8: =L8/1000 -> 3039.77037
A9: ='Ex 1 HDD'!A9 -> 2022-07-01 | B9: =K9 -> 252.061 | C9: 0 | E9: 2022-07-01 | F9: =F8+K9 -> 735.831 | G9: =G8+C9 -> 619.593 | I9: 2022-07-01 | J9: 252061 | K9: =J9/1000 -> 252.061 | L9: 1510942.29 | M9: 1510.94229
A10: ='Ex 1 HDD'!A10 -> 2022-08-01 | B10: 276.967 | C10: 0 | E10: 2022-08-01 | F10: 1012.798 | G10: 619.593 | I10: 2022-08-01 | J10: 276967 | K10: =J10/1000 -> 276.967 | L10: 2379539.87 | M10: 2379.53987
A11: ='Ex 1 HDD'!A11 -> 2022-09-01 | B11: 1317.673 | C11: 1212.387 | E11: 2022-09-01 | F11: 2330.471 | G11: 1831.98 | I11: 2022-09-01 | J11: 1317673 | K11: 1317.673 | L11: 8540704.105 | M11: 8540.704105
A12: ='Ex 1 HDD'!A12 -> 2022-10-01 | B12: 5048.693 | C12: 5386.215 | E12: 2022-10-01 | F12: 7379.164 | G12: 7218.195 | I12: 2022-10-01 | J12: 5048693 | K12: 5048.693 | L12: 25851201.68 | M12: 25851.20168
A13: ='Ex 1 HDD'!A13 -> 2022-11-01 | B13: 12361.26 | C13: 8236.698 | E13: 2022-11-01 | F13: 19740.424 | G13: 15454.893 | I13: 2022-11-01 | J13: 12361260 | K13: 12361.26 | L13: 95422606.36 | M13: 95422.60636
A14: ='Ex 1 HDD'!A14 -> 2022-12-01 | B14: 13268.09 | C14: 11121.36 | E14: 2022-12-01 | F14: 33008.514 | G14: 26576.253 | I14: 2022-12-01 | J14: 13268090 | K14: 13268.09 | L14: 257032334 | M14: 257032.334
A15: ='Ex 1 HDD'!A15 -> 2023-01-01 | B15: 14474.545 | C15: 11959.41 | E15: 2023-01-01 | F15: 47483.059 | G15: 38535.663 | I15: 2023-01-01 | J15: 14474545 | K15: 14474.545 | L15: 396229610 | M15: 396229.61
A16: ='Ex 1 HDD'!A16 -> 2023-02-01 | B16: 13515.506 | C16: 9791.591 | E16: 2023-02-01 | F16: 60998.565 | G16: 48327.254 | I16: 2023-02-01 | J16: 13515506 | K16: 13515.506 | L16: 139662741 | M16: 139662.741
A17: ='Ex 1 HDD'!A17 -> 2023-03-01 | B17: 11815.371 | C17: 8732.722 | E17: 2023-03-01 | F17: 72813.936 | G17: 57059.976 | I17: 2023-03-01 | J17: 11815371 | K17: 11815.371 | L17: 65299440.45 | M17: 65299.44045
A18: ='Ex 1 HDD'!A18 -> 2023-04-01 | B18: 6094.883 | C18: 4825.148 | E18: 2023-04-01 | F18: 78908.819 | G18: =G17+C18 -> 61885.124 | I18: 2023-04-01 | J18: 6094883 | K18: 6094.883 | L18: 25743223.41 | M18: 25743.22341
A19: ='Ex 1 HDD'!A19 -> 2023-05-01 | B19: 1815.589 | C19: 3597.914 | E19: 2023-05-01 | F19: 80724.408 | G19: 65483.038 | I19: 2023-05-01 | J19: 1815589 | K19: 1815.589 | L19: 3222427.525 | M19: 3222.427525
B21: =SUM(B8:B19) -> 80724.408 | C21: =SUM(C8:C20) -> 65483.038

Sheet Exhibit 4.1
O31: ='Exhibit 1.1'!O31 -> DEU Variance Exhibit | P31: Docket No. 22-057-02 | Q31: ='Exhibit 1.1'!Q31 -> Dominion Energy Utah
O32: 4.1

Sheet Exhibit 4.2
O30: ='Exhibit 1.1'!O31 -> DEU Variance Exhibit | P30: Docket No. 22-057-02 | Q30: ='Exhibit 1.1'!Q31 -> Dominion Energy Utah
O31: 4.2

Sheet Exhibit 4.3
N31: ='Exhibit 1.1'!O31 -> DEU Variance Exhibit | O31: Docket No. 22-057-02 | P31: ='Exhibit 1.1'!Q31 -> Dominion Energy Utah
O32: 4.3

Sheet Ex 5 Purchase Gas Cost
A1: Purchase Gas Cost Variance ($1,000's)
E6: Cumulative
A7: Month/Year | B7: Actual | C7: Normal | E7: Actual | F7: Normal
A8: ='Ex 1 HDD'!A8 -> 2022-06-01 | B8: ='Ex 4 Purchase Gas'!M8 -> 3039.77037 | C8: 3457.505 | E8: =B8 -> 3039.77037 | F8: =C8 -> 3457.505
A9: ='Ex 1 HDD'!A9 -> 2022-07-01 | B9: ='Ex 4 Purchase Gas'!M9 -> 1510.94229 | C9: 0 | E9: =E8+B9 -> 4550.71266 | F9: =C9+F8 -> 3457.505
A10: ='Ex 1 HDD'!A10 -> 2022-08-01 | B10: ='Ex 4 Purchase Gas'!M10 -> 2379.53987 | C10: 0 | E10: 6930.25253 | F10: =C10+F9 -> 3457.505
A11: ='Ex 1 HDD'!A11 -> 2022-09-01 | B11: ='Ex 4 Purchase Gas'!M11 -> 8540.704105 | C11: 6266.099 | E11: 15470.95663 | F11: 9723.604
A12: ='Ex 1 HDD'!A12 -> 2022-10-01 | B12: ='Ex 4 Purchase Gas'!M12 -> 25851.20168 | C12: 27103.54 | E12: 41322.15831 | F12: 36827.144
A13: ='Ex 1 HDD'!A13 -> 2022-11-01 | B13: ='Ex 4 Purchase Gas'!M13 -> 95422.60636 | C13: 46541.06 | E13: 136744.7647 | F13: 83368.204
A14: ='Ex 1 HDD'!A14 -> 2022-12-01 | B14: ='Ex 4 Purchase Gas'!M14 -> 257032.334 | C14: 59564.76 | E14: 393777.0987 | F14: 142932.964
A15: ='Ex 1 HDD'!A15 -> 2023-01-01 | B15: ='Ex 4 Purchase Gas'!M15 -> 396229.61 | C15: 72886.91 | E15: 790006.7087 | F15: 215819.874
A16: ='Ex 1 HDD'!A16 -> 2023-02-01 | B16: ='Ex 4 Purchase Gas'!M16 -> 139662.741 | C16: 52464.89 | E16: 929669.4496 | F16: 268284.764
A17: ='Ex 1 HDD'!A17 -> 2023-03-01 | B17: ='Ex 4 Purchase Gas'!M17 -> 65299.44045 | C17: 41274.95 | E17: 994968.8901 | F17: 309559.714
A18: ='Ex 1 HDD'!A18 -> 2023-04-01 | B18: ='Ex 4 Purchase Gas'!M18 -> 25743.22341 | C18: 17458.99 | E18: 1020712.113 | F18: 327018.704
A19: ='Ex 1 HDD'!A19 -> 2023-05-01 | B19: ='Ex 4 Purchase Gas'!M19 -> 3222.427525 | C19: 12111 | E19: 1023934.541 | F19: 339129.704
C21: =SUM(C8:C19) -> 339129.704

Sheet Exhibit 5.1
N31: ='Exhibit 1.1'!O31 -> DEU Variance Exhibit | O31: Docket No. 22-057-02 | P31: ='Exhibit 1.1'!Q31 -> Dominion Energy Utah
N32: 5.1

Sheet Exhibit 5.2
O31: ='Exhibit 1.1'!O31 -> DEU Variance Exhibit | P31: Docket No. 22-057-02 | Q31: ='Exhibit 1.1'!Q31 -> Dominion Energy Utah
O32: 5.2

Sheet Exhibit 5.3
O31: ='Exhibit 1.1'!O31 -> DEU Variance Exhibit | P31: Docket No. 22-057-02 | Q31: ='Exhibit 1.1'!Q31 -> Dominion Energy Utah
O32: 5.3

Sheet Ex 6 Purch Gas Unit Cost
A1: Purchase Gas Unit Cost Variance ($1,000's)
E6: Actual | F6: Actual | G6: Actual | I6: Normal | J6: Normal | K6: Normal
A7: Month/Year | B7: Actual $/Dth | C7: Normal $/Dth | E7: Dth | F7: Cost | G7: $/Dth | I7: Dth | J7: Cost | K7: $/Dth | M7: May Forward Strip
A8: ='Ex 1 HDD'!A8 -> 2022-06-01 | B8: =G8 -> 6.283503256 | C8: =K8 -> 5.580284154 | E8: ='Ex 4 Purchase Gas'!B8 -> 483.77 | F8: ='Ex 4 Purchase Gas'!M8 -> 3039.77037 | G8: =IFERROR(F8/E8,0) -> 6.283503256 | I8: ='Ex 4 Purchase Gas'!C8 -> 619.593 | J8: ='Ex 5 Purchase Gas Cost'!C8 -> 3457.505 | K8: =IFERROR(J8/I8,0) -> 5.580284154 | M8: 5.7
A9: ='Ex 1 HDD'!A9 -> 2022-07-01 | B9: 5.994351724 | C9: =K9 -> 6.05 | E9: ='Ex 4 Purchase Gas'!B9 -> 252.061 | F9: ='Ex 4 Purchase Gas'!M9 -> 1510.94229 | G9: =IFERROR(F9/E9,0) -> 5.994351724 | I9: ='Ex 4 Purchase Gas'!C9 -> 0 | J9: ='Ex 5 Purchase Gas Cost'!C9 -> 0 | K9: 6.05 | M9: 6.05
A10: ='Ex 1 HDD'!A10 -> 2022-08-01 | B10: 8.591420169 | C10: 6.18 | E10: ='Ex 4 Purchase Gas'!B10 -> 276.967 | F10: ='Ex 4 Purchase Gas'!M10 -> 2379.53987 | G10: 8.591420169 | I10: ='Ex 4 Purchase Gas'!C10 -> 0 | J10: ='Ex 5 Purchase Gas Cost'!C10 -> 0 | K10: 6.18 | M10: 6.18
A11: ='Ex 1 HDD'!A11 -> 2022-09-01 | B11: 6.481656758 | C11: =K11 -> 5.168398374 | E11: ='Ex 4 Purchase Gas'!B11 -> 1317.673 | F11: ='Ex 4 Purchase Gas'!M11 -> 8540.704105 | G11: 6.481656758 | I11: ='Ex 4 Purchase Gas'!C11 -> 1212.387 | J11: ='Ex 5 Purchase Gas Cost'!C11 -> 6266.099 | K11: =IFERROR(J11/I11,0) -> 5.168398374 | M11: 6.02
A12: ='Ex 1 HDD'!A12 -> 2022-10-01 | B12: 5.120375052 | C12: =K12 -> 5.032019702 | E12: ='Ex 4 Purchase Gas'!B12 -> 5048.693 | F12: ='Ex 4 Purchase Gas'!M12 -> 25851.20168 | G12: 5.120375052 | I12: ='Ex 4 Purchase Gas'!C12 -> 5386.215 | J12: ='Ex 5 Purchase Gas Cost'!C12 -> 27103.54 | K12: 5.032019702 | M12: 5.27
A13: ='Ex 1 HDD'!A13 -> 2022-11-01 | B13: 7.719488657 | C13: =K13 -> 5.650451188 | E13: ='Ex 4 Purchase Gas'!B13 -> 12361.26 | F13: ='Ex 4 Purchase Gas'!M13 -> 95422.60636 | G13: 7.719488657 | I13: ='Ex 4 Purchase Gas'!C13 -> 8236.698 | J13: ='Ex 5 Purchase Gas Cost'!C13 -> 46541.06 | K13: =IFERROR(J13/I13,0) -> 5.650451188 | M13: 5.89
A14: ='Ex 1 HDD'!A14 -> 2022-12-01 | B14: 19.37221816 | C14: 5.355888129 | E14: ='Ex 4 Purchase Gas'!B14 -> 13268.09 | F14: ='Ex 4 Purchase Gas'!M14 -> 257032.334 | G14: 19.37221816 | I14: ='Ex 4 Purchase Gas'!C14 -> 11121.36 | J14: ='Ex 5 Purchase Gas Cost'!C14 -> 59564.76 | K14: 5.355888129 | M14: 6.63
A15: ='Ex 1 HDD'!A15 -> 2023-01-01 | B15: 27.37423594 | C15: 6.094523894 | E15: ='Ex 4 Purchase Gas'!B15 -> 14474.545 | F15: ='Ex 4 Purchase Gas'!M15 -> 396229.61 | G15: 27.37423594 | I15: ='Ex 4 Purchase Gas'!C15 -> 11959.41 | J15: ='Ex 5 Purchase Gas Cost'!C15 -> 72886.91 | K15: 6.094523894 | M15: 7.15
A16: ='Ex 1 HDD'!A16 -> 2023-02-01 | B16: 10.33351922 | C16: 5.358157832 | E16: ='Ex 4 Purchase Gas'!B16 -> 13515.506 | F16: ='Ex 4 Purchase Gas'!M16 -> 139662.741 | G16: 10.33351922 | I16: ='Ex 4 Purchase Gas'!C16 -> 9791.591 | J16: ='Ex 5 Purchase Gas Cost'!C16 -> 52464.89 | K16: 5.358157832 | M16: 6.42
A17: ='Ex 1 HDD'!A17 -> 2023-03-01 | B17: 5.52665172 | C17: 4.726470166 | E17: ='Ex 4 Purchase Gas'!B17 -> 11815.371 | F17: ='Ex 4 Purchase Gas'!M17 -> 65299.44045 | G17: 5.52665172 | I17: ='Ex 4 Purchase Gas'!C17 -> 8732.722 | J17: ='Ex 5 Purchase Gas Cost'!C17 -> 41274.95 | K17: 4.726470166 | M17: 4.91
A18: ='Ex 1 HDD'!A18 -> 2023-04-01 | B18: 4.223743656 | C18: 3.618332536 | E18: ='Ex 4 Purchase Gas'!B18 -> 6094.883 | F18: ='Ex 4 Purchase Gas'!M18 -> 25743.22341 | G18: 4.223743656 | I18: ='Ex 4 Purchase Gas'!C18 -> 4825.148 | J18: ='Ex 5 Purchase Gas Cost'!C18 -> 17458.99 | K18: 3.618332536 | M18: 3.79
A19: ='Ex 1 HDD'!A19 -> 2023-05-01 | B19: 1.774866187 | C19: 3.366117145 | E19: ='Ex 4 Purchase Gas'!B19 -> 1815.589 | F19: ='Ex 4 Purchase Gas'!M19 -> 3222.427525 | G19: 1.774866187 | I19: ='Ex 4 Purchase Gas'!C19 -> 3597.914 | J19: ='Ex 5 Purchase Gas Cost'!C19 -> 12111 | K19: 3.366117145 | M19: 3.49

Sheet Exhibit 6.1
O31: ='Exhibit 1.1'!O31 -> DEU Variance Exhibit | P31: Docket No. 22-057-02 | Q31: ='Exhibit 1.1'!Q31 -> Dominion Energy Utah
O32: 6.1

Sheet Exhibit 6.2
O31: ='Exhibit 1.1'!O31 -> DEU Variance Exhibit | P31: Docket No. 22-057-02 | Q31: ='Exhibit 1.1'!Q31 -> Dominion Energy Utah
O32: 6.2

Sheet Ex 7 Co. Owned Gas
A1: Cost-of-Service Gas Variance (MDths)
H6: Cumulative
A7: Month/Year | B7: Actual | C7: Normal | D7: Full Production | E7: Shut-in Est. Month | F7: Shut-in Daily | H7: Actual | I7: Normal | K7: Days in Mo. | L7: Dthms | M7: Dthms/Day
A8: ='Ex 1 HDD'!A8 -> 2022-06-01 | B8: =Sheet10!S120 -> 4510.212 | C8: =Sheet10!B129 -> 4454.94 | D8: =Sheet10!B135 -> 4459.698914 | E8: =D8-C8 -> 4.758914466 | F8: =(E8/30)*1000 -> 158.6304822 | H8: =B8 -> 4510.212 | I8: =C8 -> 4454.94 | K8: =DAY(EOMONTH(A8,0)) -> 30 | L8: =C8 -> 4454.94 | M8: =L8/K8 -> 148.498 | Q8: 5754.478384
A9: ='Ex 1 HDD'!A9 -> 2022-07-01 | B9: =Sheet10!W120 -> 4737.195 | C9: =Sheet10!C129 -> 4482.04 | D9: =Sheet10!C135 -> 4486.926486 | E9: 4.88648589 | F9: =(E9/30)*1000 -> 162.882863 | H9: =H8+B9 -> 9247.407 | I9: =I8+C9 -> 8936.98 | K9: =DAY(EOMONTH(A9,0)) -> 31 | L9: =C9 -> 4482.04 | M9: =L9/K9 -> 144.5819355 | Q9: 5867.413019
A10: ='Ex 1 HDD'!A10 -> 2022-08-01 | B10: =Sheet10!AA120 -> 4406.231 | C10: =Sheet10!D129 -> 4411.195 | D10: =Sheet10!D135 -> 4416.054833 | E10: 4.85983283 | F10: 161.9944277 | H10: 13653.638 | I10: 13348.175 | K10: 31 | L10: 4411.195 | M10: 142.2966129 | Q10: 5986.085205
A11: ='Ex 1 HDD'!A11 -> 2022-09-01 | B11: =Sheet10!AK120 -> 4399.604 | C11: =Sheet10!E129 -> 4056.795 | D11: =Sheet10!E135 -> 4061.46664 | E11: 4.671640195 | F11: 155.7213398 | H11: 18053.242 | I11: 17404.97 | K11: 30 | L11: 4056.795 | M11: 135.2265 | Q11: 5618.719149
A12: ='Ex 1 HDD'!A12 -> 2022-10-01 | B12: =Sheet10!AO120 -> 4894.548 | C12: =Sheet10!F129 -> 4129.596 | D12: =Sheet10!F135 -> 4134.398681 | E12: 4.80268149 | F12: 160.089383 | H12: 22947.79 | I12: 21534.566 | K12: 31 | L12: 4129.596 | M12: 133.2127742 | Q12: 5665.433802
A13: ='Ex 1 HDD'!A13 -> 2022-11-01 | B13: =Sheet10!AS120 -> 4878.396 | C13: =Sheet10!G129 -> 5358.427 | D13: =Sheet10!G135 -> 5363.046602 | E13: 4.619601688 | F13: 153.9867229 | H13: 27826.186 | I13: 26892.993 | K13: 30 | L13: 5358.427 | M13: 178.6142333 | Q13: 5366.261282
A14: ='Ex 1 HDD'!A14 -> 2022-12-01 | B14: =Sheet10!BC120 -> 4905.827 | C14: =Sheet10!H129 -> 5247.635 | D14: =Sheet10!H135 -> 5252.377748 | E14: 4.742747685 | F14: 158.0915895 | H14: 32732.013 | I14: 32140.628 | K14: 31 | L14: 5247.635 | M14: 169.2785484 | Q14: 5567.876643
A15: ='Ex 1 HDD'!A15 -> 2023-01-01 | B15: =Sheet10!BG120 -> 4202.432 | C15: =Sheet10!I129 -> 5052.228 | D15: =Sheet10!I135 -> 5056.944163 | E15: 4.716163382 | F15: 157.2054461 | H15: 36934.445 | I15: 37192.856 | K15: 31 | L15: 5052.228 | M15: 162.9750968 | Q15: 5438.795676
A16: ='Ex 1 HDD'!A16 -> 2023-02-01 | B16: =Sheet10!BK120 -> 4290.122 | C16: =Sheet10!J129 -> 4426.493 | D16: =Sheet10!J135 -> 4430.727103 | E16: 4.23410253 | F16: 141.136751 | H16: 41224.567 | I16: 41619.349 | K16: 28 | L16: 4426.493 | M16: 158.0890357 | Q16: 5101.590072
A17: ='Ex 1 HDD'!A17 -> 2023-03-01 | B17: =Sheet10!BU120 -> 4744.907 | C17: =Sheet10!K129 -> 4780.264 | D17: =Sheet10!K135 -> 4784.927759 | E17: 4.663759092 | F17: 155.4586364 | H17: 45969.474 | I17: 46399.613 | K17: 31 | L17: 4780.264 | M17: 154.2020645 | Q17: 5326.091886
A18: ='Ex 1 HDD'!A18 -> 2023-04-01 | B18: =Sheet10!BY120 -> 4629.471 | C18: =Sheet10!L129 -> 4524.564 | D18: =Sheet10!L135 -> 4529.049318 | E18: 4.485318389 | F18: 149.510613 | H18: 50598.945 | I18: 50924.177 | K18: 30 | L18: 4524.564 | M18: 150.8188 | Q18: 5051.585887
A19: ='Ex 1 HDD'!A19 -> 2023-05-01 | B19: =Sheet10!CC120 -> 4938.242 | C19: =Sheet10!M129 -> 4577.208 | D19: =Sheet10!M135 -> 4581.815263 | E19: 4.607263447 | F19: =(E19/30)*1000 -> 153.5754482 | H19: 55537.187 | I19: 55501.385 | K19: 31 | L19: 4577.208 | M19: 147.651871 | Q19: 5126.305828
B21: =SUM(B8:B19) -> 55537.187 | C21: =SUM(C8:C19) -> 55501.385 | D21: =SUM(D8:D19) -> 55557.43351

Sheet Exhibit 7.1
O32: ='Exhibit 1.1'!O31 -> DEU Variance Exhibit | P32: Docket No. 22-057-02 | Q32: ='Exhibit 1.1'!Q31 -> Dominion Energy Utah
O33: 7.1

Sheet Exhibit 7.2
O31: ='Exhibit 1.1'!O31 -> DEU Variance Exhibit | P31: Docket No. 22-057-02 | Q31: ='Exhibit 1.1'!Q31 -> Dominion Energy Utah
O32: 7.2

Sheet Exhibit 7.3
O31: ='Exhibit 1.1'!O31 -> DEU Variance Exhibit | P31: Docket No. 22-057-02 | Q31: ='Exhibit 1.1'!Q31 -> Dominion Energy Utah
O32: 7.3

Sheet Ex 8 New Drill
A1: Isolated New Drill Component (MDths)
J6: Cumulative | L6: Cumulative
A7: Month/Year | B7: ND Actual | C7: ND Normal | D7: Legacy Actual | E7: Legacy Normal | H7: Prod Actual | I7: Prod Normal | J7: ND Actual | K7: ND Normal | L7: =D7 -> Legacy Actual | M7: =E7 -> Legacy Normal
A8: ='Ex 1 HDD'!A8 -> 2022-06-01 | B8: =SUM(Sheet10!S91:S93,Sheet10!S106:S108) -> 0 | C8: =Sheet10!B140 -> 0 | D8: =H8-B8 -> 4510.212 | E8: =I8-C8 -> 4454.94 | H8: ='Ex 7 Co. Owned Gas'!B8 -> 4510.212 | I8: ='Ex 7 Co. Owned Gas'!C8 -> 4454.94 | J8: =B8 -> 0 | K8: =C8 -> 0 | L8: =D8 -> 4510.212 | M8: =E8 -> 4454.94
A9: ='Ex 1 HDD'!A9 -> 2022-07-01 | B9: =SUM(Sheet10!W91:W93,Sheet10!W106:W108) -> 0 | C9: =Sheet10!C140 -> 64.549 | D9: 4737.195 | E9: 4417.491 | H9: ='Ex 7 Co. Owned Gas'!B9 -> 4737.195 | I9: ='Ex 7 Co. Owned Gas'!C9 -> 4482.04 | J9: =B8+B9 -> 0 | K9: =K8+C9 -> 64.549 | L9: 9247.407 | M9: 8872.431
A10: ='Ex 1 HDD'!A10 -> 2022-08-01 | B10: =SUM(Sheet10!AA91:AA93,Sheet10!AA106:AA108) -> 0 | C10: =Sheet10!D140 -> 54.17 | D10: 4406.231 | E10: 4357.025 | H10: ='Ex 7 Co. Owned Gas'!B10 -> 4406.231 | I10: ='Ex 7 Co. Owned Gas'!C10 -> 4411.195 | J10: =J9+B10 -> 0 | K10: 118.719 | L10: 13653.638 | M10: 13229.456
A11: ='Ex 1 HDD'!A11 -> 2022-09-01 | B11: =SUM(Sheet10!AK91:AK93,Sheet10!AK106:AK108) -> 106.243 | C11: =Sheet10!E140 -> 45.822 | D11: 4293.361 | E11: 4010.973 | H11: ='Ex 7 Co. Owned Gas'!B11 -> 4399.604 | I11: ='Ex 7 Co. Owned Gas'!C11 -> 4056.795 | J11: 106.243 | K11: =K10+C11 -> 164.541 | L11: =L10+D11 -> 17946.999 | M11: =M10+E11 -> 17240.429
A12: ='Ex 1 HDD'!A12 -> 2022-10-01 | B12: =SUM(Sheet10!AO91:AO93,Sheet10!AO106:AO108) -> 273.183 | C12: =Sheet10!F140 -> 42.446 | D12: 4621.365 | E12: 4087.15 | H12: ='Ex 7 Co. Owned Gas'!B12 -> 4894.548 | I12: ='Ex 7 Co. Owned Gas'!C12 -> 4129.596 | J12: 379.426 | K12: 206.987 | L12: =L11+D12 -> 22568.364 | M12: 21327.579
A13: ='Ex 1 HDD'!A13 -> 2022-11-01 | B13: =SUM(Sheet10!AS91:AS93,Sheet10!AS106:AS108) -> 319.548 | C13: =Sheet10!G140 -> 1105.924 | D13: 4558.848 | E13: 4252.503 | H13: ='Ex 7 Co. Owned Gas'!B13 -> 4878.396 | I13: ='Ex 7 Co. Owned Gas'!C13 -> 5358.427 | J13: 698.974 | K13: 1312.911 | L13: 27127.212 | M13: 25580.082
A14: ='Ex 1 HDD'!A14 -> 2022-12-01 | B14: =SUM(Sheet10!BC91:BC93,Sheet10!BC106:BC108) -> 576.803 | C14: =Sheet10!H140 -> 912.183 | D14: 4329.024 | E14: 4335.452 | H14: ='Ex 7 Co. Owned Gas'!B14 -> 4905.827 | I14: ='Ex 7 Co. Owned Gas'!C14 -> 5247.635 | J14: 1275.777 | K14: 2225.094 | L14: 31456.236 | M14: 29915.534
A15: ='Ex 1 HDD'!A15 -> 2023-01-01 | B15: =SUM(Sheet10!BG91:BG93,Sheet10!BG106:BG108) -> 440.159 | C15: =Sheet10!I140 -> 772.122 | D15: 3762.273 | E15: 4280.106 | H15: ='Ex 7 Co. Owned Gas'!B15 -> 4202.432 | I15: ='Ex 7 Co. Owned Gas'!C15 -> 5052.228 | J15: 1715.936 | K15: 2997.216 | L15: 35218.509 | M15: 34195.64
A16: ='Ex 1 HDD'!A16 -> 2023-02-01 | B16: =SUM(Sheet10!BK91:BK93,Sheet10!BK106:BK108) -> 410.735 | C16: =Sheet10!J140 -> 610.828 | D16: 3879.387 | E16: 3815.665 | H16: ='Ex 7 Co. Owned Gas'!B16 -> 4290.122 | I16: ='Ex 7 Co. Owned Gas'!C16 -> 4426.493 | J16: 2126.671 | K16: 3608.044 | L16: 39097.896 | M16: 38011.305
A17: ='Ex 1 HDD'!A17 -> 2023-03-01 | B17: =SUM(Sheet10!BU91:BU93,Sheet10!BU106:BU108) -> 526.309 | C17: =Sheet10!K140 -> 605.748 | D17: 4218.598 | E17: 4174.516 | H17: ='Ex 7 Co. Owned Gas'!B17 -> 4744.907 | I17: ='Ex 7 Co. Owned Gas'!C17 -> 4780.264 | J17: 2652.98 | K17: 4213.792 | L17: 43316.494 | M17: 42185.821
A18: ='Ex 1 HDD'!A18 -> 2023-04-01 | B18: =SUM(Sheet10!BY91:BY93,Sheet10!BY106:BY108) -> 464.604 | C18: =Sheet10!L140 -> 533.482 | D18: 4164.867 | E18: 3991.082 | H18: ='Ex 7 Co. Owned Gas'!B18 -> 4629.471 | I18: ='Ex 7 Co. Owned Gas'!C18 -> 4524.564 | J18: 3117.584 | K18: 4747.274 | L18: 47481.361 | M18: 46176.903
A19: ='Ex 1 HDD'!A19 -> 2023-05-01 | B19: =SUM(Sheet10!CC91:CC93,Sheet10!CC106:CC108) -> 377.245 | C19: =Sheet10!M140 -> 507.662 | D19: 4560.997 | E19: 4069.546 | H19: ='Ex 7 Co. Owned Gas'!B19 -> 4938.242 | I19: ='Ex 7 Co. Owned Gas'!C19 -> 4577.208 | J19: 3494.829 | K19: 5254.936 | L19: 52042.358 | M19: 50246.449

Sheet Exhibit 8.1
O31: ='Exhibit 1.1'!O31 -> DEU Variance Exhibit | P31: Docket No. 22-057-02 | Q31: ='Exhibit 1.1'!Q31 -> Dominion Energy Utah
O32: 8.1

Sheet Exhibit 8.2
O31: ='Exhibit 1.1'!O31 -> DEU Variance Exhibit | P31: Docket No. 22-057-02 | Q31: ='Exhibit 1.1'!Q31 -> Dominion Energy Utah
O32: 8.2

Sheet Exhibit 8.3
O31: ='Exhibit 1.1'!O31 -> DEU Variance Exhibit | P31: Docket No. 22-057-02 | Q31: ='Exhibit 1.1'!Q31 -> Dominion Energy Utah
O32: 8.3

Sheet Sheet10 (hidden)
R2: June 2022 Cost-of-Service | V2: July 2022 Cost-of-Service | Z2: August 2022 Cost-of-Service | AD2: First Quarter Cost-of-Service | AJ2: September 2022 Cost-of-Service | AN2: October 2022 Cost-of-Service | AR2: November 2022 Cost-of-Service | AV2: First Quarter Cost-of-Service | BB2: December 2022 Cost-of-Service | BF2: January 2023 Cost-of-Service | BJ2: February 2023 Cost-of-Service | BN2: Third Quarter Cost-of-Service | BT2: March 2023 Cost-of-Service | BX2: April 2023 Cost-of-Service | CB2: May 2023 Cost-of-Service | CF2: Fourth Quarter Cost-of-Service
R3: Variance Mdth | V3: Variance Mdth | Z3: Variance Mdth | AD3: Variance Mdth | AJ3: Variance Mdth | AN3: Variance Mdth | AR3: Variance Mdth | AV3: Variance Mdth | BB3: Variance Mdth | BF3: Variance Mdth | BJ3: Variance Mdth | BN3: Variance Mdth | BT3: Variance Mdth | BX3: Variance Mdth | CB3: Variance Mdth | CF3: Variance Mdth
A5: Nom Group | B5: 2022-06-01 | C5: 2022-07-01 | D5: 2022-08-01 | E5: 2022-09-01 | F5: 2022-10-01 | G5: 2022-11-01 | H5: 2022-12-01 | I5: 2023-01-01 | J5: 2023-02-01 | K5: 2023-03-01 | L5: 2023-04-01 | M5: 2023-05-01 | N5: Total | R5: Nom Group | S5: Actual | T5: Normal | V5: Nom Group | W5: Actual | X5: Normal | Z5: Nom Group | AA5: Actual | AB5: Normal | AD5: Nom Group | AE5: Actual | AF5: Normal | AJ5: Nom Group | AK5: Actual | AL5: Normal | AN5: Nom Group | AO5: Actual | AP5: Normal | AR5: Nom Group | AS5: Actual | AT5: Normal | AV5: Nom Group | AW5: Actual | AX5: Normal | BB5: Nom Group | BC5: Actual | BD5: Normal | BF5: Nom Group | BG5: Actual | BH5: Normal | BJ5: Nom Group | BK5: Actual | BL5: Normal | BN5: Nom Group | BO5: Actual | BP5: Normal | BT5: Nom Group | BU5: Actual | BV5: Normal | BX5: Nom Group | BY5: Actual | BZ5: Normal | CB5: Nom Group | CC5: Actual | CD5: Normal | CF5: Nom Group | CG5: Actual | CH5: Normal
B6: 116.296 | C6: 119.407 | D6: 118.65 | E6: 114.098 | F6: 117.162 | G6: 112.676 | H6: 115.709 | I6: 114.994 | J6: 103.226 | K6: 113.586 | L6: 109.251 | M6: 112.207 | N6: 1367.262 | S6: 113.765 | T6: 116.296 | W6: 107.093 | X6: 119.407 | AA6: 125.041 | AB6: 118.65 | AE6: 345.899 | AF6: 354.353 | AK6: 119.926 | AL6: 114.098 | AO6: 123.46 | AP6: 117.162 | AS6: 116.156 | AT6: 112.676 | AW6: 359.542 | AX6: 343.936 | BC6: 119.513 | BD6: 115.709 | BG6: 98.318 | BH6: 114.994 | BK6: 105.978 | BL6: 103.226 | BO6: 323.809 | BP6: 333.929 | BU6: 118.103 | BV6: 113.586 | BY6: 119.369 | BZ6: 109.251 | CC6: 138.002 | CD6: 112.207 | CG6: 375.474 | CH6: 335.044
B7: 7.412 | C7: 7.596 | D7: 7.534 | E7: 7.231 | F7: 7.411 | G7: 7.113 | H7: 7.29 | I7: 7.231 | J7: 6.478 | K7: 7.113 | L7: 6.827 | M7: 6.997 | N7: 86.234 | S7: 8.157 | T7: 7.412 | W7: 8.535 | X7: 7.596 | AA7: 7.776 | AB7: 7.534 | AE7: 24.468 | AF7: 22.542 | AK7: 5.586 | AL7: 7.231 | AO7: 4.92 | AP7: 7.411 | AS7: 7.795 | AT7: 7.113 | AW7: 18.301 | AX7: 21.755 | BC7: 10.98 | BD7: 7.29 | BG7: 8.168 | BH7: 7.231 | BK7: 8.382 | BL7: 6.478 | BO7: 27.53 | BP7: 20.999 | BU7: 7.007 | BV7: 7.113 | BY7: 8.619 | BZ7: 6.827 | CC7: 8.987 | CD7: 6.997 | CG7: 24.613 | CH7: 20.937
B8: 1.904 | C8: 1.956 | D8: 1.944 | E8: 1.87 | F8: 1.92 | G8: 1.847 | H8: 1.897 | I8: 1.886 | J8: 1.693 | K8: 1.863 | L8: 1.792 | M8: 1.841 | N8: 22.413 | S8: 2.037 | T8: 1.904 | W8: 2.008 | X8: 1.956 | AA8: 2.079 | AB8: 1.944 | AE8: 6.124 | AF8: 5.804 | AK8: 1.884 | AL8: 1.87 | AO8: 2.076 | AP8: 1.92 | AS8: 1.991 | AT8: 1.847 | AW8: 5.951 | AX8: 5.637 | BC8: 2.166 | BD8: 1.897 | BG8: 2.247 | BH8: 1.886 | BK8: 1.891 | BL8: 1.693 | BO8: 6.304 | BP8: 5.476 | BU8: 2.355 | BV8: 1.863 | BY8: 2.4 | BZ8: 1.792 | CC8: 2.727 | CD8: 1.841 | CG8: 7.482 | CH8: 5.496
B9: 128.83 | C9: 132.198 | D9: 131.284 | E9: 126.176 | F9: 128.756 | G9: 123.754 | H9: 127.011 | I9: 126.152 | J9: 113.176 | K9: 124.46 | L9: 119.638 | M9: 122.8 | N9: 1504.235 | S9: 147.361 | T9: 128.83 | W9: 155.766 | X9: 132.198 | AA9: 149.48 | AB9: 131.284 | AE9: 452.607 | AF9: 392.312 | AK9: 148.148 | AL9: 126.176 | AO9: 142.86 | AP9: 128.756 | AS9: 129.976 | AT9: 123.754 | AW9: 420.984 | AX9: 378.686 | BC9: 139.153 | BD9: 127.011 | BG9: 116.919 | BH9: 126.152 | BK9: 134.807 | BL9: 113.176 | BO9: 390.879 | BP9: 366.339 | BU9: 133.857 | BV9: 124.46 | BY9: 132.779 | BZ9: 119.638 | CC9: 139.515 | CD9: 122.8 | CG9: 406.151 | CH9: 366.898
B10: 2.666 | C10: 2.741 | D10: 2.727 | E10: 2.626 | F10: 2.699 | G10: 2.599 | H10: 2.672 | I10: 2.658 | J10: 2.389 | K10: 2.631 | L10: 2.533 | M10: 2.604 | N10: 31.547 | S10: 6.696 | T10: 2.666 | W10: 0 | X10: 2.741 | AA10: 5.9 | AB10: 2.727 | AE10: 12.596 | AF10: 8.134 | AK10: 0.001 | AL10: 2.626 | AO10: 8.339 | AP10: 2.699 | AS10: 0 | AT10: 2.599 | AW10: 8.34 | AX10: 7.924 | BC10: 0 | BD10: 2.672 | BG10: 7.296 | BH10: 2.658 | BK10: 5.666 | BL10: 2.389 | BO10: 12.962 | BP10: 7.719 | BU10: 2.871 | BV10: 2.631 | BY10: 5.885 | BZ10: 2.533 | CC10: 0 | CD10: 2.604 | CG10: 8.756 | CH10: 7.768
B11: 50.59 | C11: 51.92 | D11: 51.567 | E11: 49.565 | F11: 50.871 | G11: 48.899 | H11: 50.189 | I11: 49.853 | J11: 44.728 | K11: 49.19 | L11: 47.287 | M11: 48.539 | N11: 593.198 | S11: 65.216 | T11: 50.59 | W11: 66.642 | X11: 51.92 | AA11: 64.083 | AB11: 51.567 | AE11: 195.941 | AF11: 154.077 | AK11: 61.59 | AL11: 49.565 | AO11: 62.499 | AP11: 50.871 | AS11: 55.357 | AT11: 48.899 | AW11: 179.446 | AX11: 149.335 | BC11: 51.826 | BD11: 50.189 | BG11: 46.426 | BH11: 49.853 | BK11: 56.85 | BL11: 44.728 | BO11: 155.102 | BP11: 144.77 | BU11: 53.139 | BV11: 49.19 | BY11: 56.654 | BZ11: 47.287 | CC11: 58.343 | CD11: 48.539 | CG11: 168.136 | CH11: 145.016
B12: 13.497 | C12: 13.834 | D12: 13.722 | E12: 13.171 | F12: 13.5 | G12: 12.959 | H12: 13.282 | I12: 13.174 | J12: 11.803 | K12: 12.961 | L12: 12.441 | M12: 12.752 | N12: 157.097 | S12: 15.477 | T12: 13.497 | W12: 16.763 | X12: 13.834 | AA12: 15.843 | AB12: 13.722 | AE12: 48.083 | AF12: 41.053 | AK12: 6.463 | AL12: 13.171 | AO12: 3.299 | AP12: 13.5 | AS12: 21.622 | AT12: 12.959 | AW12: 31.384 | AX12: 39.63 | BC12: 12.964 | BD12: 13.282 | BG12: 10.879 | BH12: 13.174 | BK12: 12.649 | BL12: 11.803 | BO12: 36.492 | BP12: 38.259 | BU12: 15.677 | BV12: 12.961 | BY12: 13.607 | BZ12: 12.441 | CC12: 13.333 | CD12: 12.752 | CG12: 42.617 | CH12: 38.154
B13: 397.25 | C13: 356.527 | D13: 353.174 | E13: 386.98 | F13: 396.129 | G13: 379.794 | H13: 388.851 | I13: 385.317 | J13: 344.896 | K13: 378.445 | L13: 363.001 | M13: 371.815 | N13: 4502.18 | S13: 342.555 | T13: 397.25 | W13: 348.62 | X13: 356.527 | AA13: 349.597 | AB13: 353.174 | AE13: 1040.772 | AF13: 1106.951 | AK13: 360.788 | AL13: 386.98 | AO13: 379.519 | AP13: 396.129 | AS13: 348.462 | AT13: 379.794 | AW13: 1088.769 | AX13: 1162.903 | BC13: 337.555 | BD13: 388.851 | BG13: 290.787 | BH13: 385.317 | BK13: 346.915 | BL13: 344.896 | BO13: 975.257 | BP13: 1119.064 | BU13: 331.737 | BV13: 378.445 | BY13: 321.824 | BZ13: 363.001 | CC13: 352.095 | CD13: 371.815 | CG13: 1005.656 | CH13: 1113.261
B14: 37.913 | C14: 38.703 | D14: 38.245 | E14: 36.583 | F14: 37.373 | G14: 35.765 | H14: 36.554 | I14: 36.162 | J14: 32.318 | K14: 35.41 | L14: 33.918 | M14: 34.696 | N14: 433.64 | S14: 35.616 | T14: 37.913 | W14: 28.058 | X14: 38.703 | AA14: 24.394 | AB14: 38.245 | AE14: 88.068 | AF14: 114.861 | AK14: 21.784 | AL14: 36.583 | AO14: 36.513 | AP14: 37.373 | AS14: 35.518 | AT14: 35.765 | AW14: 93.815 | AX14: 109.721 | BC14: 36.723 | BD14: 36.554 | BG14: 30.892 | BH14: 36.162 | BK14: 32.237 | BL14: 32.318 | BO14: 99.852 | BP14: 105.034 | BU14: 35.291 | BV14: 35.41 | BY14: 33.081 | BZ14: 33.918 | CC14: 37.713 | CD14: 34.696 | CG14: 106.085 | CH14: 104.024
B15: 21.991 | C15: 22.595 | D15: 22.466 | E15: 21.618 | F15: 22.212 | G15: 21.373 | H15: 21.96 | I15: 21.836 | J15: 19.611 | K15: 21.589 | L15: 20.774 | M15: 21.344 | N15: 259.368 | S15: 30.711 | T15: 21.991 | W15: 28.83 | X15: 22.595 | AA15: 21.93 | AB15: 22.466 | AE15: 81.471 | AF15: 67.052 | AK15: 20.585 | AL15: 21.618 | AO15: 19.288 | AP15: 22.212 | AS15: 18.549 | AT15: 21.373 | AW15: 58.422 | AX15: 65.203 | BC15: 19.822 | BD15: 21.96 | BG15: 16.663 | BH15: 21.836 | BK15: 20.638 | BL15: 19.611 | BO15: 57.123 | BP15: 63.407 | BU15: 18.776 | BV15: 21.589 | BY15: 18.708 | BZ15: 20.774 | CC15: 22.377 | CD15: 21.344 | CG15: 59.861 | CH15: 63.707
B16: 0 | C16: 0 | D16: 0 | E16: 0 | F16: 0 | G16: 0 | H16: 0 | I16: 0 | J16: 0 | K16: 0 | L16: 0 | M16: 0 | N16: 0 | S16: 0.792 | T16: 0 | W16: 0.831 | X16: 0 | AA16: 0.806 | AB16: 0 | AE16: 2.429 | AF16: 0 | AK16: 0.814 | AL16: 0 | AO16: 0.792 | AP16: 0 | AS16: 0.662 | AT16: 0 | AW16: 2.268 | AX16: 0 | BC16: 0.758 | BD16: 0 | BG16: 0.682 | BH16: 0 | BK16: 0.739 | BL16: 0 | BO16: 2.179 | BP16: 0 | BU16: 0.736 | BV16: 0 | BY16: 0.767 | BZ16: 0 | CC16: 0.772 | CD16: 0 | CG16: 2.275 | CH16: 0
B17: 81.01 | C17: 83.101 | D17: 82.498 | E17: 79.258 | F17: 81.309 | G17: 78.119 | H17: 80.143 | I17: 79.569 | J17: 71.354 | K17: 78.436 | L17: 75.365 | M17: 77.322 | N17: 947.484 | S17: 113.102 | T17: 81.01 | W17: 114.474 | X17: 83.101 | AA17: 85.302 | AB17: 82.498 | AE17: 312.878 | AF17: 246.609 | AK17: 85.61 | AL17: 79.258 | AO17: 84.488 | AP17: 81.309 | AS17: 80.661 | AT17: 78.119 | AW17: 250.759 | AX17: 238.686 | BC17: 81.16 | BD17: 80.143 | BG17: 69.525 | BH17: 79.569 | BK17: 71.657 | BL17: 71.354 | BO17: 222.342 | BP17: 231.066 | BU17: 75.502 | BV17: 78.436 | BY17: 74.528 | BZ17: 75.365 | CC17: 75.119 | CD17: 77.322 | CG17: 225.149 | CH17: 231.123
B18: 136.097 | C18: 139.637 | D18: 138.659 | E18: 133.256 | F18: 136.753 | G18: 131.441 | H18: 134.905 | I18: 134 | J18: 117.372 | K18: 129.083 | L18: 124.091 | M18: 127.382 | N18: 1582.676 | S18: 195.051 | T18: 136.097 | W18: 193.348 | X18: 139.637 | AA18: 154.176 | AB18: 138.659 | AE18: 542.575 | AF18: 414.393 | AK18: 141.964 | AL18: 133.256 | AO18: 142.62 | AP18: 136.753 | AS18: 138.213 | AT18: 131.441 | AW18: 422.797 | AX18: 401.45 | BC18: 134.225 | BD18: 134.905 | BG18: 116.985 | BH18: 134 | BK18: 136.191 | BL18: 117.372 | BO18: 387.401 | BP18: 386.277 | BU18: 129.483 | BV18: 129.083 | BY18: 127.277 | BZ18: 124.091 | CC18: 141.157 | CD18: 127.382 | CG18: 397.917 | CH18: 380.556
B19: 4.984 | C19: 5.113 | D19: 5.076 | E19: 4.877 | F19: 5.004 | G19: 4.808 | H19: 4.933 | I19: 4.898 | J19: 4.393 | K19: 4.829 | L19: 4.641 | M19: 4.762 | N19: 58.315 | S19: 3.723 | T19: 4.984 | W19: 3.701 | X19: 5.113 | AA19: 3.416 | AB19: 5.076 | AE19: 10.84 | AF19: 15.173 | AK19: 3.395 | AL19: 4.877 | AO19: 3.706 | AP19: 5.004 | AS19: 3.696 | AT19: 4.808 | AW19: 10.797 | AX19: 14.689 | BC19: 2.455 | BD19: 4.933 | BG19: 2.292 | BH19: 4.898 | BK19: 3.423 | BL19: 4.393 | BO19: 8.17 | BP19: 14.224 | BU19: 3.105 | BV19: 4.829 | BY19: 3.15 | BZ19: 4.641 | CC19: 3.024 | CD19: 4.762 | CG19: 9.279 | CH19: 14.232
B20: 1.176 | C20: 1.208 | D20: 1.2 | E20: 1.154 | F20: 1.185 | G20: 1.14 | H20: 1.17 | I20: 1.163 | J20: 1.044 | K20: 1.148 | L20: 1.104 | M20: 1.134 | N20: 13.827 | S20: 1.247 | T20: 1.176 | W20: 1.885 | X20: 1.208 | AA20: 1.311 | AB20: 1.2 | AE20: 4.443 | AF20: 3.584 | AK20: 1.227 | AL20: 1.154 | AO20: 1.174 | AP20: 1.185 | AS20: 0.537 | AT20: 1.14 | AW20: 2.938 | AX20: 3.479 | BC20: 0.83 | BD20: 1.17 | BG20: 0.912 | BH20: 1.163 | BK20: 1.03 | BL20: 1.044 | BO20: 2.772 | BP20: 3.377 | BU20: 0.431 | BV20: 1.148 | BY20: 0.489 | BZ20: 1.104 | CC20: 0.898 | CD20: 1.134 | CG20: 1.818 | CH20: 3.386
B21: 1.655 | C21: 1.7 | D21: 1.69 | E21: 1.626 | F21: 1.671 | G21: 1.607 | H21: 1.651 | I21: 1.642 | J21: 1.474 | K21: 1.623 | L21: 1.561 | M21: 1.604 | N21: 19.504 | S21: 3.277 | T21: 1.655 | W21: 2.876 | X21: 1.7 | AA21: 2.512 | AB21: 1.69 | AE21: 8.665 | AF21: 5.045 | AK21: 2.381 | AL21: 1.626 | AO21: 2.418 | AP21: 1.671 | AS21: 2.228 | AT21: 1.607 | AW21: 7.027 | AX21: 4.904 | BC21: 2.245 | BD21: 1.651 | BG21: 2.013 | BH21: 1.642 | BK21: 2.263 | BL21: 1.474 | BO21: 6.521 | BP21: 4.767 | BU21: 2.26 | BV21: 1.623 | BY21: 2.141 | BZ21: 1.561 | CC21: 2.141 | CD21: 1.604 | CG21: 6.542 | CH21: 4.788
B22: 0.133 | C22: 0.137 | D22: 0.136 | E22: 0.13 | F22: 0.134 | G22: 0.128 | H22: 0.132 | I22: 0.131 | J22: 0.117 | K22: 0.129 | L22: 0.124 | M22: 0.127 | N22: 1.557 | S22: 0.25 | T22: 0.133 | W22: 0.14 | X22: 0.137 | AA22: 0.39 | AB22: 0.136 | AE22: 0.78 | AF22: 0.406 | AK22: 0.248 | AL22: 0.13 | AO22: 0.114 | AP22: 0.134 | AS22: 0 | AT22: 0.128 | AW22: 0.362 | AX22: 0.392 | BC22: 0.18 | BD22: 0.132 | BG22: 0 | BH22: 0.131 | BK22: 0 | BL22: 0.117 | BO22: 0.18 | BP22: 0.38 | BU22: 0 | BV22: 0.129 | BY22: 0.032 | BZ22: 0.124 | CC22: 0.316 | CD22: 0.127 | CG22: 0.348 | CH22: 0.38
B23: 1.481 | C23: 1.519 | D23: 1.507 | E23: 1.448 | F23: 1.485 | G23: 1.426 | H23: 1.463 | I23: 1.452 | J23: 1.302 | K23: 1.43 | L23: 1.374 | M23: 1.409 | N23: 17.296 | S23: 2.04 | T23: 1.481 | W23: 1.63 | X23: 1.519 | AA23: 3.173 | AB23: 1.507 | AE23: 6.843 | AF23: 4.507 | AK23: 4.311 | AL23: 1.448 | AO23: 4.274 | AP23: 1.485 | AS23: 2.05 | AT23: 1.426 | AW23: 10.635 | AX23: 4.359 | BC23: 1.384 | BD23: 1.463 | BG23: 0.569 | BH23: 1.452 | BK23: 1.398 | BL23: 1.302 | BO23: 3.351 | BP23: 4.217 | BU23: 0.661 | BV23: 1.43 | BY23: 1.195 | BZ23: 1.374 | CC23: 4.096 | CD23: 1.409 | CG23: 5.952 | CH23: 4.213
B24: 14.128 | C24: 14.537 | D24: 14.475 | E24: 13.948 | F24: 14.352 | G24: 13.83 | H24: 14.23 | I24: 14.169 | J24: 12.743 | K24: 14.048 | L24: 13.537 | M24: 13.929 | N24: 167.928 | S24: 15.051 | T24: 14.128 | W24: 13.921 | X24: 14.537 | AA24: 12.731 | AB24: 14.475 | AE24: 41.703 | AF24: 43.14 | AK24: 16 | AL24: 13.948 | AO24: 16.342 | AP24: 14.352 | AS24: 11.539 | AT24: 13.83 | AW24: 43.881 | AX24: 42.13 | BC24: 14.404 | BD24: 14.23 | BG24: 13.872 | BH24: 14.169 | BK24: 12.372 | BL24: 12.743 | BO24: 40.648 | BP24: 41.142 | BU24: 16.437 | BV24: 14.048 | BY24: 11.602 | BZ24: 13.537 | CC24: 15.868 | CD24: 13.929 | CG24: 43.907 | CH24: 41.514
B25: 6.479 | C25: 6.658 | D25: 6.621 | E25: 6.371 | F25: 6.547 | G25: 6.3 | H25: 6.474 | I25: 6.438 | J25: 5.782 | K25: 6.366 | L25: 6.126 | M25: 6.295 | N25: 76.457 | S25: 7.603 | T25: 6.479 | W25: 6.45 | X25: 6.658 | AA25: 8.051 | AB25: 6.621 | AE25: 22.104 | AF25: 19.758 | AK25: 6.396 | AL25: 6.371 | AO25: 8.224 | AP25: 6.547 | AS25: 6.583 | AT25: 6.3 | AW25: 21.203 | AX25: 19.218 | BC25: 7.353 | BD25: 6.474 | BG25: 6.786 | BH25: 6.438 | BK25: 7.31 | BL25: 5.782 | BO25: 21.449 | BP25: 18.694 | BU25: 7.552 | BV25: 6.366 | BY25: 7.462 | BZ25: 6.126 | CC25: 7.496 | CD25: 6.295 | CG25: 22.51 | CH25: 18.787
B26: 63.035 | C26: 64.521 | D26: 63.914 | E26: 61.27 | F26: 62.716 | G26: 60.123 | H26: 61.543 | I26: 60.966 | J26: 54.55 | K26: 59.829 | L26: 57.357 | M26: 58.715 | N26: 728.538 | S26: 73.779 | T26: 63.035 | W26: 61.558 | X26: 64.521 | AA26: 68.938 | AB26: 63.914 | AE26: 204.275 | AF26: 191.47 | AK26: 68.884 | AL26: 61.27 | AO26: 72.417 | AP26: 62.716 | AS26: 66.659 | AT26: 60.123 | AW26: 207.96 | AX26: 184.109 | BC26: 74.151 | BD26: 61.543 | BG26: 68.13 | BH26: 60.966 | BK26: 71.519 | BL26: 54.55 | BO26: 213.8 | BP26: 177.059 | BU26: 65.594 | BV26: 59.829 | BY26: 61.446 | BZ26: 57.357 | CC26: 68.781 | CD26: 58.715 | CG26: 195.821 | CH26: 175.901
B27: 4.915 | C27: 5.026 | D27: 4.974 | E27: 4.765 | F27: 4.875 | G27: 4.671 | H27: 4.781 | I27: 4.736 | J27: 4.238 | K27: 4.649 | L27: 4.458 | M27: 4.566 | N27: 56.652 | S27: 1.781 | T27: 4.915 | W27: 0.55 | X27: 5.026 | AA27: 2.028 | AB27: 4.974 | AE27: 4.359 | AF27: 14.915 | AK27: 5.507 | AL27: 4.765 | AO27: 5.672 | AP27: 4.875 | AS27: 5.022 | AT27: 4.671 | AW27: 16.201 | AX27: 14.311 | BC27: 0.47 | BD27: 4.781 | BG27: 2.302 | BH27: 4.736 | BK27: 4.157 | BL27: 4.238 | BO27: 6.929 | BP27: 13.755 | BU27: 0 | BV27: 4.649 | BY27: 0.866 | BZ27: 4.458 | CC27: 6.44 | CD27: 4.566 | CG27: 7.306 | CH27: 13.673
B28: 1.27 | C28: 1.301 | D28: 1.29 | E28: 1.237 | F28: 1.268 | G28: 1.216 | H28: 1.245 | I28: 1.235 | J28: 1.105 | K28: 1.213 | L28: 1.164 | M28: 1.192 | N28: 14.737 | S28: 1.209 | T28: 1.27 | W28: 1.102 | X28: 1.301 | AA28: 1.002 | AB28: 1.29 | AE28: 3.313 | AF28: 3.861 | AK28: 1.173 | AL28: 1.237 | AO28: 1.24 | AP28: 1.268 | AS28: 0.549 | AT28: 1.216 | AW28: 2.962 | AX28: 3.721 | BC28: 0 | BD28: 1.245 | BG28: 0 | BH28: 1.235 | BK28: 0.177 | BL28: 1.105 | BO28: 0.177 | BP28: 3.585 | BU28: 0 | BV28: 1.213 | BY28: 0.144 | BZ28: 1.164 | CC28: 0.539 | CD28: 1.192 | CG28: 0.683 | CH28: 3.569
B29: 45.861 | C29: 47.026 | D29: 46.668 | E29: 44.821 | F29: 45.968 | G29: 44.154 | H29: 45.287 | I29: 44.954 | J29: 40.305 | K29: 44.298 | L29: 42.558 | M29: 43.658 | N29: 535.559 | S29: 60.101 | T29: 45.861 | W29: 58.104 | X29: 47.026 | AA29: 61.221 | AB29: 46.668 | AE29: 179.426 | AF29: 139.555 | AK29: 55.676 | AL29: 44.821 | AO29: 55.822 | AP29: 45.968 | AS29: 55.256 | AT29: 44.154 | AW29: 166.754 | AX29: 134.943 | BC29: 65.556 | BD29: 45.287 | BG29: 47.666 | BH29: 44.954 | BK29: 62.334 | BL29: 40.305 | BO29: 175.556 | BP29: 130.546 | BU29: 64.953 | BV29: 44.298 | BY29: 62.093 | BZ29: 42.558 | CC29: 57.605 | CD29: 43.658 | CG29: 184.651 | CH29: 130.514
B30: 1.757 | C30: 1.808 | D30: 1.8 | E30: 1.734 | F30: 1.784 | G30: 1.719 | H30: 1.769 | I30: 1.761 | J30: 1.584 | K30: 1.746 | L30: 1.682 | M30: 1.73 | N30: 20.874 | S30: 5.058 | T30: 1.757 | W30: 3.341 | X30: 1.808 | AA30: 2.64 | AB30: 1.8 | AE30: 11.039 | AF30: 5.365 | AK30: 2.236 | AL30: 1.734 | AO30: 2.155 | AP30: 1.784 | AS30: 0 | AT30: 1.719 | AW30: 4.391 | AX30: 5.237 | BC30: 0 | BD30: 1.769 | BG30: 0 | BH30: 1.761 | BK30: 0 | BL30: 1.584 | BO30: 0 | BP30: 5.114 | BU30: 0 | BV30: 1.746 | BY30: 0 | BZ30: 1.682 | CC30: 0 | CD30: 1.73 | CG30: 0 | CH30: 5.158
B31: 2.237 | C31: 2.298 | D31: 2.284 | E31: 2.197 | F31: 2.256 | G31: 2.17 | H31: 2.229 | I31: 2.215 | J31: 1.989 | K31: 2.188 | L31: 2.105 | M31: 2.162 | N31: 26.328 | S31: 6.797 | T31: 2.237 | W31: 4.268 | X31: 2.298 | AA31: 4.046 | AB31: 2.284 | AE31: 15.111 | AF31: 6.819 | AK31: 3.795 | AL31: 2.197 | AO31: 3.311 | AP31: 2.256 | AS31: 0.907 | AT31: 2.17 | AW31: 8.013 | AX31: 6.623 | BC31: 0.127 | BD31: 2.229 | BG31: 0 | BH31: 2.215 | BK31: 0.041 | BL31: 1.989 | BO31: 0.168 | BP31: 6.433 | BU31: 0 | BV31: 2.188 | BY31: 0 | BZ31: 2.105 | CC31: 0 | CD31: 2.162 | CG31: 0 | CH31: 6.455
B32: 9.497 | C32: 9.744 | D32: 9.675 | E32: 9.298 | F32: 9.541 | G32: 9.169 | H32: 9.409 | I32: 9.344 | J32: 8.381 | K32: 9.215 | L32: 8.856 | M32: 9.088 | N32: 111.216 | S32: 9.714 | T32: 9.497 | W32: 15.176 | X32: 9.744 | AA32: 9.968 | AB32: 9.675 | AE32: 34.858 | AF32: 28.916 | AK32: 11.337 | AL32: 9.298 | AO32: 15.549 | AP32: 9.541 | AS32: 16.801 | AT32: 9.169 | AW32: 43.687 | AX32: 28.008 | BC32: 6.153 | BD32: 9.409 | BG32: 5.798 | BH32: 9.344 | BK32: 11.448 | BL32: 8.381 | BO32: 23.399 | BP32: 27.134 | BU32: 4.484 | BV32: 9.215 | BY32: 4.088 | BZ32: 8.856 | CC32: 5.955 | CD32: 9.088 | CG32: 14.527 | CH32: 27.159
B33: 499.093 | C33: 510.455 | D33: 505.247 | E33: 483.972 | F33: 495.025 | G33: 474.202 | H33: 485.052 | I33: 480.155 | J33: 429.317 | K33: 470.532 | L33: 450.778 | M33: 460.201 | N33: 5744.029 | S33: 482.399 | T33: 499.093 | W33: 493.225 | X33: 510.455 | AA33: 481.157 | AB33: 505.247 | AE33: 1456.781 | AF33: 1514.795 | AK33: 456.619 | AL33: 483.972 | AO33: 474.452 | AP33: 495.025 | AS33: 443.667 | AT33: 474.202 | AW33: 1374.738 | AX33: 1453.199 | BC33: 426.777 | BD33: 485.052 | BG33: 386.538 | BH33: 480.155 | BK33: 438.87 | BL33: 429.317 | BO33: 1252.185 | BP33: 1394.524 | BU33: 419.199 | BV33: 470.532 | BY33: 435.73 | BZ33: 450.778 | CC33: 487.366 | CD33: 460.201 | CG33: 1342.295 | CH33: 1381.511
B34: 1.243 | C34: 1.276 | D34: 1.267 | E34: 1.218 | F34: 1.25 | G34: 1.201 | H34: 1.233 | I34: 1.224 | J34: 1.098 | K34: 1.207 | L34: 1.16 | M34: 1.191 | N34: 14.567 | S34: 0.954 | T34: 1.243 | W34: 0.895 | X34: 1.276 | AA34: 0.958 | AB34: 1.267 | AE34: 2.807 | AF34: 3.786 | AK34: 0.867 | AL34: 1.218 | AO34: 0.981 | AP34: 1.25 | AS34: 0.982 | AT34: 1.201 | AW34: 2.83 | AX34: 3.669 | BC34: 0.979 | BD34: 1.233 | BG34: 1.47 | BH34: 1.224 | BK34: 1.228 | BL34: 1.098 | BO34: 3.677 | BP34: 3.555 | BU34: 1.157 | BV34: 1.207 | BY34: 1.082 | BZ34: 1.16 | CC34: 1.346 | CD34: 1.191 | CG34: 3.585 | CH34: 3.558
B35: 156.938 | C35: 161.037 | D35: 159.913 | E35: 153.675 | F35: 157.689 | G35: 151.538 | H35: 155.498 | I35: 154.414 | J35: 138.498 | K35: 152.269 | L35: 146.33 | M35: 150.155 | N35: 1837.953 | S35: 147.082 | T35: 156.938 | W35: 158.743 | X35: 161.037 | AA35: 153.383 | AB35: 159.913 | AE35: 459.208 | AF35: 477.888 | AK35: 149.339 | AL35: 153.675 | AO35: 140.15 | AP35: 157.689 | AS35: 124.592 | AT35: 151.538 | AW35: 414.081 | AX35: 462.902 | BC35: 147.738 | BD35: 155.498 | BG35: 109.478 | BH35: 154.414 | BK35: 132.899 | BL35: 138.498 | BO35: 390.115 | BP35: 448.41 | BU35: 136.245 | BV35: 152.269 | BY35: 147.58 | BZ35: 146.33 | CC35: 153.465 | CD35: 150.155 | CG35: 437.29 | CH35: 448.754
B36: 0.382 | C36: 0.392 | D36: 0.39 | E36: 0.375 | F36: 0.384 | G36: 0.369 | H36: 0.379 | I36: 0.376 | J36: 0.338 | K36: 0.371 | L36: 0.357 | M36: 0.366 | N36: 4.48 | S36: 0.519 | T36: 0.382 | W36: 0.465 | X36: 0.392 | AA36: 0.43 | AB36: 0.39 | AE36: 1.414 | AF36: 1.164 | AK36: 0.363 | AL36: 0.375 | AO36: 0.385 | AP36: 0.384 | AS36: 0.296 | AT36: 0.369 | AW36: 1.044 | AX36: 1.128 | BC36: 0.276 | BD36: 0.379 | BG36: 0.235 | BH36: 0.376 | BK36: 0.417 | BL36: 0.338 | BO36: 0.928 | BP36: 1.093 | BU36: 0.259 | BV36: 0.371 | BY36: 0.207 | BZ36: 0.357 | CC36: 0.652 | CD36: 0.366 | CG36: 1.118 | CH36: 1.094
B37: 1.017 | C37: 1.046 | D37: 1.041 | E37: 1.003 | F37: 1.032 | G37: 0.994 | H37: 1.022 | I37: 1.017 | J37: 0.915 | K37: 1.008 | L37: 0.971 | M37: 0.999 | N37: 12.066 | S37: 1.87 | T37: 1.017 | W37: 1.072 | X37: 1.046 | AA37: 1.042 | AB37: 1.041 | AE37: 3.984 | AF37: 3.104 | AK37: 0.815 | AL37: 1.003 | AO37: 1.047 | AP37: 1.032 | AS37: 1.137 | AT37: 0.994 | AW37: 2.999 | AX37: 3.029 | BC37: 0.895 | BD37: 1.022 | BG37: 0.619 | BH37: 1.017 | BK37: 1.143 | BL37: 0.915 | BO37: 2.657 | BP37: 2.954 | BU37: 1.515 | BV37: 1.008 | BY37: 1.087 | BZ37: 0.971 | CC37: 0.852 | CD37: 0.999 | CG37: 3.454 | CH37: 2.978
B38: 16.027 | C38: 16.445 | D38: 16.329 | E38: 15.692 | F38: 16.101 | G38: 15.472 | H38: 15.875 | I38: 15.764 | J38: 14.138 | K38: 15.543 | L38: 14.936 | M38: 15.326 | N38: 187.648 | S38: 23.898 | T38: 16.027 | W38: 25.136 | X38: 16.445 | AA38: 21.159 | AB38: 16.329 | AE38: 70.193 | AF38: 48.801 | AK38: 20.706 | AL38: 15.692 | AO38: 21.677 | AP38: 16.101 | AS38: 17.922 | AT38: 15.472 | AW38: 60.305 | AX38: 47.265 | BC38: 11.248 | BD38: 15.875 | BG38: 8.065 | BH38: 15.764 | BK38: 12.38 | BL38: 14.138 | BO38: 31.693 | BP38: 45.777 | BU38: 13.015 | BV38: 15.543 | BY38: 14.186 | BZ38: 14.936 | CC38: 11.151 | CD38: 15.326 | CG38: 38.352 | CH38: 45.805
B39: 0 | C39: 0 | D39: 0 | E39: 0 | F39: 0 | G39: 0 | H39: 0 | I39: 0 | J39: 0 | K39: 0 | L39: 0 | M39: 0 | N39: 0 | S39: 4.019 | T39: 0 | W39: 4.144 | X39: 0 | AA39: 4.06 | AB39: 0 | AE39: 12.223 | AF39: 0 | AK39: 3.884 | AL39: 0 | AO39: 4.23 | AP39: 0 | AS39: 3.897 | AT39: 0 | AW39: 12.011 | AX39: 0 | BC39: 2.241 | BD39: 0 | BG39: 1.147 | BH39: 0 | BK39: 1.632 | BL39: 0 | BO39: 5.02 | BP39: 0 | BU39: 3.089 | BV39: 0 | BY39: 2.493 | BZ39: 0 | CC39: 3.067 | CD39: 0 | CG39: 8.649 | CH39: 0
B40: 1.313 | C40: 1.348 | D40: 1.338 | E40: 1.286 | F40: 1.32 | G40: 1.268 | H40: 1.302 | I40: 1.293 | J40: 1.159 | K40: 1.275 | L40: 1.225 | M40: 1.257 | N40: 15.385 | S40: 1.836 | T40: 1.313 | W40: 1.921 | X40: 1.348 | AA40: 1.548 | AB40: 1.338 | AE40: 5.305 | AF40: 3.999 | AK40: 0.92 | AL40: 1.286 | AO40: 1.657 | AP40: 1.32 | AS40: 1.432 | AT40: 1.268 | AW40: 4.009 | AX40: 3.874 | BC40: 2.847 | BD40: 1.302 | BG40: 2.023 | BH40: 1.293 | BK40: 2.36 | BL40: 1.159 | BO40: 7.23 | BP40: 3.754 | BU40: 1.162 | BV40: 1.275 | BY40: 0.906 | BZ40: 1.225 | CC40: 2.797 | CD40: 1.257 | CG40: 4.865 | CH40: 3.757
B41: 11.804 | C41: 12.113 | D41: 12.029 | E41: 11.561 | F41: 11.863 | G41: 11.401 | H41: 11.699 | I41: 11.618 | J41: 10.421 | K41: 11.458 | L41: 11.012 | M41: 11.3 | N41: 138.28 | S41: 11.165 | T41: 11.804 | W41: 14.549 | X41: 12.113 | AA41: 11.822 | AB41: 12.029 | AE41: 37.536 | AF41: 35.946 | AK41: 4.44 | AL41: 11.561 | AO41: 6.771 | AP41: 11.863 | AS41: 12.636 | AT41: 11.401 | AW41: 23.847 | AX41: 34.825 | BC41: 13.317 | BD41: 11.699 | BG41: 10.899 | BH41: 11.618 | BK41: 12.705 | BL41: 10.421 | BO41: 36.921 | BP41: 33.738 | BU41: 10.97 | BV41: 11.458 | BY41: 11.42 | BZ41: 11.012 | CC41: 11.438 | CD41: 11.3 | CG41: 33.828 | CH41: 33.77
B42: 247.933 | C42: 252.605 | D42: 249.158 | E42: 193.934 | F42: 197.736 | G42: 232.859 | H42: 237.626 | I42: 234.734 | J42: 209.493 | K42: 229.235 | L42: 219.307 | M42: 224.08 | N42: 2728.7 | S42: 273.238 | T42: 247.933 | W42: 269.515 | X42: 252.605 | AA42: 239.868 | AB42: 249.158 | AE42: 782.621 | AF42: 749.696 | AK42: 224.232 | AL42: 193.934 | AO42: 249.833 | AP42: 197.736 | AS42: 256.929 | AT42: 232.859 | AW42: 730.994 | AX42: 624.529 | BC42: 211.304 | BD42: 237.626 | BG42: 183.077 | BH42: 234.734 | BK42: 206.021 | BL42: 209.493 | BO42: 600.402 | BP42: 681.853 | BU42: 207.581 | BV42: 229.235 | BY42: 205.78 | BZ42: 219.307 | CC42: 243.392 | CD42: 224.08 | CG42: 656.753 | CH42: 672.622
B43: 38.942 | C43: 39.806 | D43: 39.384 | E43: 26.574 | F43: 27.166 | G43: 37.156 | H43: 38.013 | I43: 37.64 | J43: 33.669 | K43: 36.92 | L43: 35.393 | M43: 36.232 | N43: 426.894 | S43: 40.039 | T43: 38.942 | W43: 41.966 | X43: 39.806 | AA43: 34.839 | AB43: 39.384 | AE43: 116.844 | AF43: 118.132 | AK43: 33.979 | AL43: 26.574 | AO43: 38.077 | AP43: 27.166 | AS43: 37.917 | AT43: 37.156 | AW43: 109.973 | AX43: 90.896 | BC43: 38.548 | BD43: 38.013 | BG43: 33.173 | BH43: 37.64 | BK43: 39.087 | BL43: 33.669 | BO43: 110.808 | BP43: 109.322 | BU43: 43.004 | BV43: 36.92 | BY43: 36.501 | BZ43: 35.393 | CC43: 42.632 | CD43: 36.232 | CG43: 122.137 | CH43: 108.545
B44: 27.533 | C44: 28.24 | D44: 28.031 | E44: 26.926 | F44: 27.618 | G44: 26.53 | H44: 27.212 | I44: 27.011 | J44: 24.216 | K44: 26.613 | L44: 25.564 | M44: 26.221 | N44: 321.716 | S44: 29.568 | T44: 27.533 | W44: 27.807 | X44: 28.24 | AA44: 28.564 | AB44: 28.031 | AE44: 85.939 | AF44: 83.804 | AK44: 28.112 | AL44: 26.926 | AO44: 28.832 | AP44: 27.618 | AS44: 32.877 | AT44: 26.53 | AW44: 89.821 | AX44: 81.074 | BC44: 25.363 | BD44: 27.212 | BG44: 22.089 | BH44: 27.011 | BK44: 18.873 | BL44: 24.216 | BO44: 66.325 | BP44: 78.439 | BU44: 21.937 | BV44: 26.613 | BY44: 27.345 | BZ44: 25.564 | CC44: 34.168 | CD44: 26.221 | CG44: 83.45 | CH44: 78.398
B45: 2.706 | C45: 2.783 | D45: 2.771 | E45: 2.669 | F45: 2.746 | G45: 2.645 | H45: 2.721 | I45: 2.709 | J45: 2.435 | K45: 2.684 | L45: 2.586 | M45: 2.66 | N45: 32.114 | S45: 0.915 | T45: 2.706 | W45: 0.74 | X45: 2.783 | AA45: 0.926 | AB45: 2.771 | AE45: 2.581 | AF45: 8.26 | AK45: 0.78 | AL45: 2.669 | AO45: 0.919 | AP45: 2.746 | AS45: 0.85 | AT45: 2.645 | AW45: 2.549 | AX45: 8.06 | BC45: 1.075 | BD45: 2.721 | BG45: 1.095 | BH45: 2.709 | BK45: 1.068 | BL45: 2.435 | BO45: 3.238 | BP45: 7.865 | BU45: 0.863 | BV45: 2.684 | BY45: 1.55 | BZ45: 2.586 | CC45: 0.376 | CD45: 2.66 | CG45: 2.789 | CH45: 7.93
B46: 0.484 | C46: 0.497 | D46: 0.493 | E46: 0.474 | F46: 0.486 | G46: 0.467 | H46: 0.48 | I46: 0.476 | J46: 0.427 | K46: 0.47 | L46: 0.451 | M46: 0.463 | N46: 5.668 | S46: 0.153 | T46: 0.484 | W46: 0.033 | X46: 0.497 | AA46: 0.011 | AB46: 0.493 | AE46: 0.197 | AF46: 1.474 | AK46: 0.076 | AL46: 0.474 | AO46: 0.03 | AP46: 0.486 | AS46: 0.039 | AT46: 0.467 | AW46: 0.145 | AX46: 1.427 | BC46: 0.057 | BD46: 0.48 | BG46: 0 | BH46: 0.476 | BK46: 0.027 | BL46: 0.427 | BO46: 0.084 | BP46: 1.383 | BU46: 0.094 | BV46: 0.47 | BY46: 0.116 | BZ46: 0.451 | CC46: 0.091 | CD46: 0.463 | CG46: 0.301 | CH46: 1.384
B47: 0.651 | C47: 0.669 | D47: 0.665 | E47: 0.641 | F47: 0.659 | G47: 0.634 | H47: 0.652 | I47: 0.648 | J47: 0.583 | K47: 0.642 | L47: 0.618 | M47: 0.635 | N47: 7.695 | S47: 0.172 | T47: 0.651 | W47: 0.033 | X47: 0.669 | AA47: 0.193 | AB47: 0.665 | AE47: 0.398 | AF47: 1.985 | AK47: 0.159 | AL47: 0.641 | AO47: 0.083 | AP47: 0.659 | AS47: 0 | AT47: 0.634 | AW47: 0.242 | AX47: 1.934 | BC47: 0 | BD47: 0.652 | BG47: 0 | BH47: 0.648 | BK47: 0 | BL47: 0.583 | BO47: 0 | BP47: 1.883 | BU47: 0 | BV47: 0.642 | BY47: 0 | BZ47: 0.618 | CC47: 0.289 | CD47: 0.635 | CG47: 0.289 | CH47: 1.895
B48: 3.28 | C48: 3.373 | D48: 3.357 | E48: 3.234 | F48: 3.326 | G48: 3.204 | H48: 3.295 | I48: 3.28 | J48: 2.948 | K48: 3.249 | L48: 3.13 | M48: 3.219 | N48: 38.895 | S48: 0 | T48: 3.28 | W48: 0 | X48: 3.373 | AA48: 0 | AB48: 3.357 | AE48: 0 | AF48: 10.01 | AK48: 1.13 | AL48: 3.234 | AO48: 3.443 | AP48: 3.326 | AS48: 3.334 | AT48: 3.204 | AW48: 7.907 | AX48: 9.764 | BC48: 3.49 | BD48: 3.295 | BG48: 2.946 | BH48: 3.28 | BK48: 3.472 | BL48: 2.948 | BO48: 9.908 | BP48: 9.523 | BU48: 3.366 | BV48: 3.249 | BY48: 3.38 | BZ48: 3.13 | CC48: 3.487 | CD48: 3.219 | CG48: 10.233 | CH48: 9.598
B49: 0.143 | C49: 0.146 | D49: 0.146 | E49: 0.14 | F49: 0.144 | G49: 0.139 | H49: 0.142 | I49: 0.142 | J49: 0.127 | K49: 0.14 | L49: 0.135 | M49: 0.138 | N49: 1.682 | S49: 0.138 | T49: 0.143 | W49: 0.143 | X49: 0.146 | AA49: 0.14 | AB49: 0.146 | AE49: 0.421 | AF49: 0.435 | AK49: 0.13 | AL49: 0.14 | AO49: 0.13 | AP49: 0.144 | AS49: 0.147 | AT49: 0.139 | AW49: 0.407 | AX49: 0.423 | BC49: 0.15 | BD49: 0.142 | BG49: 0.122 | BH49: 0.142 | BK49: 0.154 | BL49: 0.127 | BO49: 0.426 | BP49: 0.411 | BU49: 0.138 | BV49: 0.14 | BY49: 0.135 | BZ49: 0.135 | CC49: 0.128 | CD49: 0.138 | CG49: 0.401 | CH49: 0.413
B50: 9.729 | C50: 10.004 | D50: 9.955 | E50: 9.586 | F50: 9.857 | G50: 9.491 | H50: 9.759 | I50: 9.711 | J50: 8.728 | K50: 9.615 | L50: 9.259 | M50: 9.521 | N50: 115.216 | S50: 12.089 | T50: 9.729 | W50: 11.412 | X50: 10.004 | AA50: 10.91 | AB50: 9.955 | AE50: 34.411 | AF50: 29.688 | AK50: 10.325 | AL50: 9.586 | AO50: 10.485 | AP50: 9.857 | AS50: 10.485 | AT50: 9.491 | AW50: 31.295 | AX50: 28.934 | BC50: 9.97 | BD50: 9.759 | BG50: 9.339 | BH50: 9.711 | BK50: 12.605 | BL50: 8.728 | BO50: 31.914 | BP50: 28.198 | BU50: 7.245 | BV50: 9.615 | BY50: 9.24 | BZ50: 9.259 | CC50: 11.366 | CD50: 9.521 | CG50: 27.851 | CH50: 28.395
B51: 2.834 | C51: 2.908 | D51: 2.888 | E51: 2.776 | F51: 2.848 | G51: 2.737 | H51: 2.809 | I51: 2.789 | J51: 2.502 | K51: 2.751 | L51: 2.644 | M51: 2.713 | N51: 33.199 | S51: 3.58 | T51: 2.834 | W51: 3.586 | X51: 2.908 | AA51: 3.561 | AB51: 2.888 | AE51: 10.727 | AF51: 8.63 | AK51: 3.454 | AL51: 2.776 | AO51: 3.532 | AP51: 2.848 | AS51: 3.466 | AT51: 2.737 | AW51: 10.452 | AX51: 8.361 | BC51: 3.472 | BD51: 2.809 | BG51: 2.855 | BH51: 2.789 | BK51: 3.691 | BL51: 2.502 | BO51: 10.018 | BP51: 8.1 | BU51: 3.824 | BV51: 2.751 | BY51: 3.323 | BZ51: 2.644 | CC51: 3.859 | CD51: 2.713 | CG51: 11.006 | CH51: 8.108
B52: 8.65 | C52: 8.892 | D52: 8.846 | E52: 8.517 | F52: 8.755 | G52: 8.429 | H52: 8.665 | I52: 8.62 | J52: 7.745 | K52: 8.531 | L52: 8.213 | M52: 8.443 | N52: 102.306 | S52: 12.093 | T52: 8.65 | W52: 11.432 | X52: 8.892 | AA52: 10.936 | AB52: 8.846 | AE52: 34.461 | AF52: 26.388 | AK52: 13.229 | AL52: 8.517 | AO52: 11.53 | AP52: 8.755 | AS52: 10.542 | AT52: 8.429 | AW52: 35.301 | AX52: 25.701 | BC52: 8.906 | BD52: 8.665 | BG52: 7.533 | BH52: 8.62 | BK52: 9.864 | BL52: 7.745 | BO52: 26.303 | BP52: 25.03 | BU52: 8.942 | BV52: 8.531 | BY52: 9.331 | BZ52: 8.213 | CC52: 9.701 | CD52: 8.443 | CG52: 27.974 | CH52: 25.187
B53: 5.045 | C53: 5.186 | D53: 5.158 | E53: 4.965 | F53: 5.103 | G53: 4.912 | H53: 5.049 | I53: 5.022 | J53: 4.512 | K53: 4.968 | L53: 4.783 | M53: 4.916 | N53: 59.617 | S53: 5.948 | T53: 5.045 | W53: 6.797 | X53: 5.186 | AA53: 6.67 | AB53: 5.158 | AE53: 19.415 | AF53: 15.389 | AK53: 6.256 | AL53: 4.965 | AO53: 5.253 | AP53: 5.103 | AS53: 3.348 | AT53: 4.912 | AW53: 14.857 | AX53: 14.98 | BC53: 5.009 | BD53: 5.049 | BG53: 3.439 | BH53: 5.022 | BK53: 3.795 | BL53: 4.512 | BO53: 12.243 | BP53: 14.583 | BU53: 5.497 | BV53: 4.968 | BY53: 5.068 | BZ53: 4.783 | CC53: 5.623 | CD53: 4.916 | CG53: 16.188 | CH53: 14.667
B54: 54.299 | C54: 55.729 | D54: 55.351 | E54: 53.202 | F54: 54.603 | G54: 52.484 | H54: 53.866 | I54: 53.501 | J54: 47.996 | K54: 52.778 | L54: 50.73 | M54: 52.066 | N54: 636.604 | S54: 60.146 | T54: 54.299 | W54: 61.857 | X54: 55.729 | AA54: 58.448 | AB54: 55.351 | AE54: 180.451 | AF54: 165.379 | AK54: 22.455 | AL54: 53.202 | AO54: 10.645 | AP54: 54.603 | AS54: 82.336 | AT54: 52.484 | AW54: 115.436 | AX54: 160.289 | BC54: 55.004 | BD54: 53.866 | BG54: 40.935 | BH54: 53.501 | BK54: 55.814 | BL54: 47.996 | BO54: 151.753 | BP54: 155.363 | BU54: 44.999 | BV54: 52.778 | BY54: 56.934 | BZ54: 50.73 | CC54: 55.495 | CD54: 52.066 | CG54: 157.428 | CH54: 155.574
B55: 51.381 | C55: 52.446 | D55: 51.817 | E55: 49.554 | F55: 50.611 | G55: 48.418 | H55: 49.469 | I55: 48.92 | J55: 43.703 | K55: 47.864 | L55: 45.828 | M55: 46.86 | N55: 586.869 | S55: 49.182 | T55: 51.381 | W55: 62.546 | X55: 52.446 | AA55: 56.244 | AB55: 51.817 | AE55: 167.972 | AF55: 155.644 | AK55: 58.139 | AL55: 49.554 | AO55: 58.809 | AP55: 50.611 | AS55: 50.71 | AT55: 48.418 | AW55: 167.658 | AX55: 148.583 | BC55: 43.744 | BD55: 49.469 | BG55: 38.236 | BH55: 48.92 | BK55: 54.233 | BL55: 43.703 | BO55: 136.213 | BP55: 142.092 | BU55: 42.494 | BV55: 47.864 | BY55: 43.212 | BZ55: 45.828 | CC55: 58.967 | CD55: 46.86 | CG55: 144.673 | CH55: 140.552
B56: 51.759 | C56: 49.112 | D56: 48.467 | E56: 49.856 | F56: 50.919 | G56: 48.724 | H56: 49.802 | I56: 49.277 | J56: 44.051 | K56: 48.282 | L56: 46.266 | M56: 47.35 | N56: 583.863 | S56: 25.652 | T56: 51.759 | W56: 31.105 | X56: 49.112 | AA56: 35.435 | AB56: 48.467 | AE56: 92.192 | AF56: 149.338 | AK56: 29.711 | AL56: 49.856 | AO56: 41.902 | AP56: 50.919 | AS56: 31.018 | AT56: 48.724 | AW56: 102.631 | AX56: 149.499 | BC56: 31.432 | BD56: 49.802 | BG56: 28.68 | BH56: 49.277 | BK56: 33.707 | BL56: 44.051 | BO56: 93.819 | BP56: 143.13 | BU56: 38.096 | BV56: 48.282 | BY56: 35.562 | BZ56: 46.266 | CC56: 39.044 | CD56: 47.35 | CG56: 112.702 | CH56: 141.898
B57: 15.108 | C57: 15.51 | D57: 15.409 | E57: 14.815 | F57: 15.21 | G57: 14.624 | H57: 15.013 | I57: 14.916 | J57: 13.385 | K57: 14.723 | L57: 14.155 | M57: 14.532 | N57: 177.4 | S57: 12.324 | T57: 15.108 | W57: 16.01 | X57: 15.51 | AA57: 12.682 | AB57: 15.409 | AE57: 41.016 | AF57: 46.027 | AK57: 12.417 | AL57: 14.815 | AO57: 12.711 | AP57: 15.21 | AS57: 10.432 | AT57: 14.624 | AW57: 35.56 | AX57: 44.649 | BC57: 11.56 | BD57: 15.013 | BG57: 10.491 | BH57: 14.916 | BK57: 7.223 | BL57: 13.385 | BO57: 29.274 | BP57: 43.314 | BU57: 14.967 | BV57: 14.723 | BY57: 14.486 | BZ57: 14.155 | CC57: 12.382 | CD57: 14.532 | CG57: 41.835 | CH57: 43.41
B58: 20.551 | C58: 21.078 | D58: 20.921 | E58: 20.096 | F58: 20.611 | G58: 19.798 | H58: 20.306 | I58: 20.155 | J58: 18.07 | K58: 19.857 | L58: 19.074 | M58: 19.563 | N58: 240.081 | S58: 25.401 | T58: 20.551 | W58: 18.149 | X58: 21.078 | AA58: 18.471 | AB58: 20.921 | AE58: 62.021 | AF58: 62.55 | AK58: 18.204 | AL58: 20.096 | AO58: 19.184 | AP58: 20.611 | AS58: 18.325 | AT58: 19.798 | AW58: 55.713 | AX58: 60.505 | BC58: 18.013 | BD58: 20.306 | BG58: 15.308 | BH58: 20.155 | BK58: 18.079 | BL58: 18.07 | BO58: 51.4 | BP58: 58.531 | BU58: 16.602 | BV58: 19.857 | BY58: 17.137 | BZ58: 19.074 | CC58: 13.215 | CD58: 19.563 | CG58: 46.954 | CH58: 58.494
B59: 27.307 | C59: 28.066 | D59: 27.916 | E59: 26.871 | F59: 27.618 | G59: 26.584 | H59: 27.323 | I59: 27.177 | J59: 24.416 | K59: 26.888 | L59: 25.882 | M59: 26.602 | N59: 322.651 | S59: 43.635 | T59: 27.307 | W59: 36.756 | X59: 28.066 | AA59: 32.285 | AB59: 27.916 | AE59: 112.676 | AF59: 83.289 | AK59: 31.516 | AL59: 26.871 | AO59: 31.297 | AP59: 27.618 | AS59: 28.02 | AT59: 26.584 | AW59: 90.833 | AX59: 81.073 | BC59: 24.461 | BD59: 27.323 | BG59: 17.994 | BH59: 27.177 | BK59: 26.332 | BL59: 24.416 | BO59: 68.787 | BP59: 78.916 | BU59: 20.32 | BV59: 26.888 | BY59: 24.606 | BZ59: 25.882 | CC59: 29.468 | CD59: 26.602 | CG59: 74.394 | CH59: 79.372
B60: 1.855 | C60: 1.9 | D60: 1.883 | E60: 1.807 | F60: 1.851 | G60: 1.776 | H60: 1.819 | I60: 1.803 | J60: 1.615 | K60: 1.772 | L60: 1.7 | M60: 1.742 | N60: 21.523 | S60: 2.548 | T60: 1.855 | W60: 2.68 | X60: 1.9 | AA60: 1.878 | AB60: 1.883 | AE60: 7.106 | AF60: 5.638 | AK60: 1.77 | AL60: 1.807 | AO60: 1.843 | AP60: 1.851 | AS60: 1.646 | AT60: 1.776 | AW60: 5.259 | AX60: 5.434 | BC60: 1.643 | BD60: 1.819 | BG60: 1.32 | BH60: 1.803 | BK60: 1.574 | BL60: 1.615 | BO60: 4.537 | BP60: 5.237 | BU60: 1.434 | BV60: 1.772 | BY60: 1.654 | BZ60: 1.7 | CC60: 1.743 | CD60: 1.742 | CG60: 4.831 | CH60: 5.214
B61: 0.996 | C61: 1.025 | D61: 1.021 | E61: 0.984 | F61: 1.012 | G61: 0.975 | H61: 1.003 | I61: 0.999 | J61: 0.899 | K61: 0.991 | L61: 0.955 | M61: 0.982 | N61: 11.841 | S61: 0.095 | T61: 0.996 | W61: 0.1 | X61: 1.025 | AA61: 0.098 | AB61: 1.021 | AE61: 0.293 | AF61: 3.042 | AK61: 0.089 | AL61: 0.984 | AO61: 0.093 | AP61: 1.012 | AS61: 0.091 | AT61: 0.975 | AW61: 0.273 | AX61: 2.971 | BC61: 0.088 | BD61: 1.003 | BG61: 0.093 | BH61: 0.999 | BK61: 0.085 | BL61: 0.899 | BO61: 0.266 | BP61: 2.901 | BU61: 0.098 | BV61: 0.991 | BY61: 0.11 | BZ61: 0.955 | CC61: 0.064 | CD61: 0.982 | CG61: 0.272 | CH61: 2.928
B62: 9.668 | C62: 9.928 | D62: 9.865 | E62: 9.487 | F62: 9.742 | G62: 9.369 | H62: 9.621 | I62: 9.56 | J62: 8.581 | K62: 9.441 | L62: 9.08 | M62: 9.324 | N62: 113.667 | S62: 9.024 | T62: 9.668 | W62: 10.296 | X62: 9.928 | AA62: 10.094 | AB62: 9.865 | AE62: 29.414 | AF62: 29.461 | AK62: 9.903 | AL62: 9.487 | AO62: 10.343 | AP62: 9.742 | AS62: 9.758 | AT62: 9.369 | AW62: 30.004 | AX62: 28.598 | BC62: 9.435 | BD62: 9.621 | BG62: 8.523 | BH62: 9.56 | BK62: 9.576 | BL62: 8.581 | BO62: 27.534 | BP62: 27.762 | BU62: 9.624 | BV62: 9.441 | BY62: 8.753 | BZ62: 9.08 | CC62: 9.971 | CD62: 9.324 | CG62: 28.348 | CH62: 27.845
B63: 0.764 | C63: 0.785 | D63: 0.78 | E63: 0.75 | F63: 0.77 | G63: 0.74 | H63: 0.76 | I63: 0.755 | J63: 0.678 | K63: 0.745 | L63: 0.717 | M63: 0.736 | N63: 8.978 | S63: 0 | T63: 0.764 | W63: 0 | X63: 0.785 | AA63: 0 | AB63: 0.78 | AE63: 0 | AF63: 2.329 | AK63: 1.1 | AL63: 0.75 | AO63: 0.647 | AP63: 0.77 | AS63: 0.074 | AT63: 0.74 | AW63: 1.821 | AX63: 2.26 | BC63: 0 | BD63: 0.76 | BG63: 0 | BH63: 0.755 | BK63: 0 | BL63: 0.678 | BO63: 0 | BP63: 2.193 | BU63: 0 | BV63: 0.745 | BY63: 0 | BZ63: 0.717 | CC63: 0 | CD63: 0.736 | CG63: 0 | CH63: 2.198
B64: 0.242 | C64: 0.248 | D64: 0.246 | E64: 0.237 | F64: 0.243 | G64: 0.234 | H64: 0.24 | I64: 0.238 | J64: 0.214 | K64: 0.235 | L64: 0.226 | M64: 0.232 | N64: 2.836 | S64: 0.227 | T64: 0.242 | W64: 0.092 | X64: 0.248 | AA64: 0.139 | AB64: 0.246 | AE64: 0.458 | AF64: 0.736 | AK64: 0.012 | AL64: 0.237 | AO64: 0.122 | AP64: 0.243 | AS64: 0.1 | AT64: 0.234 | AW64: 0.234 | AX64: 0.714 | BC64: 0.376 | BD64: 0.24 | BG64: 0.289 | BH64: 0.238 | BK64: 0.258 | BL64: 0.214 | BO64: 0.923 | BP64: 0.692 | BU64: 0.078 | BV64: 0.235 | BY64: 0 | BZ64: 0.226 | CC64: 0 | CD64: 0.232 | CG64: 0.078 | CH64: 0.693
B65: 5.93 | C65: 6.085 | D65: 6.044 | E65: 5.809 | F65: 5.961 | G65: 5.729 | H65: 5.88 | I65: 5.839 | J65: 5.238 | K65: 5.759 | L65: 5.535 | M65: 5.681 | N65: 69.49 | S65: 7.733 | T65: 5.93 | W65: 5.718 | X65: 6.085 | AA65: 7.144 | AB65: 6.044 | AE65: 20.595 | AF65: 18.059 | AK65: 7.565 | AL65: 5.809 | AO65: 7.966 | AP65: 5.961 | AS65: 7.07 | AT65: 5.729 | AW65: 22.601 | AX65: 17.499 | BC65: 7.719 | BD65: 5.88 | BG65: 4.941 | BH65: 5.839 | BK65: 8.055 | BL65: 5.238 | BO65: 20.715 | BP65: 16.957 | BU65: 8.545 | BV65: 5.759 | BY65: 7.286 | BZ65: 5.535 | CC65: 7.613 | CD65: 5.681 | CG65: 23.444 | CH65: 16.975
B66: 47.163 | C66: 48.434 | D66: 48.135 | E66: 46.295 | F66: 47.543 | G66: 45.726 | H66: 46.959 | I66: 46.67 | J66: 41.893 | K66: 46.096 | L66: 44.335 | M66: 45.531 | N66: 554.78 | S66: 55.237 | T66: 47.163 | W66: 49.12 | X66: 48.434 | AA66: 50.661 | AB66: 48.135 | AE66: 155.018 | AF66: 143.732 | AK66: 52.382 | AL66: 46.295 | AO66: 53.406 | AP66: 47.543 | AS66: 52.757 | AT66: 45.726 | AW66: 158.545 | AX66: 139.564 | BC66: 48.906 | BD66: 46.959 | BG66: 44.433 | BH66: 46.67 | BK66: 50.31 | BL66: 41.893 | BO66: 143.649 | BP66: 135.522 | BU66: 48.731 | BV66: 46.096 | BY66: 48.05 | BZ66: 44.335 | CC66: 47.543 | CD66: 45.531 | CG66: 144.324 | CH66: 135.962
B67: 0.826 | C67: 0.849 | D67: 0.844 | E67: 0.813 | F67: 0.836 | G67: 0.804 | H67: 0.827 | I67: 0.822 | J67: 0.739 | K67: 0.814 | L67: 0.783 | M67: 0.805 | N67: 9.761 | S67: 0.732 | T67: 0.826 | W67: 0.632 | X67: 0.849 | AA67: 0.733 | AB67: 0.844 | AE67: 2.097 | AF67: 2.519 | AK67: 0.644 | AL67: 0.813 | AO67: 0.682 | AP67: 0.836 | AS67: 0.636 | AT67: 0.804 | AW67: 1.962 | AX67: 2.453 | BC67: 0.758 | BD67: 0.827 | BG67: 0.739 | BH67: 0.822 | BK67: 0.713 | BL67: 0.739 | BO67: 2.21 | BP67: 2.388 | BU67: 0.751 | BV67: 0.814 | BY67: 0.704 | BZ67: 0.783 | CC67: 0.797 | CD67: 0.805 | CG67: 2.252 | CH67: 2.402
B68: 0.526 | C68: 0.54 | D68: 0.537 | E68: 0.517 | F68: 0.53 | G68: 0.51 | H68: 0.524 | I68: 0.521 | J68: 0.467 | K68: 0.514 | L68: 0.494 | M68: 0.508 | N68: 6.189 | S68: 0.608 | T68: 0.526 | W68: 0.626 | X68: 0.54 | AA68: 0.431 | AB68: 0.537 | AE68: 1.665 | AF68: 1.603 | AK68: 0.011 | AL68: 0.517 | AO68: 0 | AP68: 0.53 | AS68: 0.001 | AT68: 0.51 | AW68: 0.012 | AX68: 1.557 | BC68: 0 | BD68: 0.524 | BG68: 0.001 | BH68: 0.521 | BK68: 0 | BL68: 0.467 | BO68: 0.001 | BP68: 1.512 | BU68: 0.239 | BV68: 0.514 | BY68: 0.022 | BZ68: 0.494 | CC68: 0.059 | CD68: 0.508 | CG68: 0.32 | CH68: 1.516
B69: 1.847 | C69: 1.901 | D69: 1.893 | E69: 1.825 | F69: 1.878 | G69: 1.81 | H69: 1.862 | I69: 1.855 | J69: 1.668 | K69: 1.84 | L69: 1.773 | M69: 1.825 | N69: 21.976 | S69: 3.453 | T69: 1.847 | W69: 2.885 | X69: 1.901 | AA69: 2.577 | AB69: 1.893 | AE69: 8.915 | AF69: 5.641 | AK69: 2.317 | AL69: 1.825 | AO69: 2.335 | AP69: 1.878 | AS69: 0 | AT69: 1.81 | AW69: 4.652 | AX69: 5.513 | BC69: 0 | BD69: 1.862 | BG69: 0 | BH69: 1.855 | BK69: 0 | BL69: 1.668 | BO69: 0 | BP69: 5.385 | BU69: 0 | BV69: 1.84 | BY69: 0 | BZ69: 1.773 | CC69: 0 | CD69: 1.825 | CG69: 0 | CH69: 5.438
B70: 2.873 | C70: 2.957 | D70: 2.946 | E70: 2.839 | F70: 2.922 | G70: 2.817 | H70: 2.9 | I70: 2.888 | J70: 2.598 | K70: 2.865 | L70: 2.762 | M70: 2.843 | N70: 34.211 | S70: 3.938 | T70: 2.873 | W70: 3.852 | X70: 2.957 | AA70: 5.195 | AB70: 2.946 | AE70: 12.985 | AF70: 8.776 | AK70: 1.398 | AL70: 2.839 | AO70: 0 | AP70: 2.922 | AS70: 0.636 | AT70: 2.817 | AW70: 2.034 | AX70: 8.578 | BC70: 2.776 | BD70: 2.9 | BG70: 0.989 | BH70: 2.888 | BK70: 0 | BL70: 2.598 | BO70: 3.765 | BP70: 8.386 | BU70: 0.055 | BV70: 2.865 | BY70: 1.498 | BZ70: 2.762 | CC70: 7.52 | CD70: 2.843 | CG70: 9.073 | CH70: 8.47
B71: 7.177 | C71: 7.367 | D71: 7.318 | E71: 7.034 | F71: 7.22 | G71: 6.941 | H71: 7.124 | I71: 7.077 | J71: 6.349 | K71: 6.983 | L71: 6.712 | M71: 6.89 | N71: 84.192 | S71: 7.282 | T71: 7.177 | W71: 6.436 | X71: 7.367 | AA71: 7.385 | AB71: 7.318 | AE71: 21.103 | AF71: 21.862 | AK71: 7.529 | AL71: 7.034 | AO71: 7.171 | AP71: 7.22 | AS71: 7.034 | AT71: 6.941 | AW71: 21.734 | AX71: 21.195 | BC71: 6.208 | BD71: 7.124 | BG71: 5.806 | BH71: 7.077 | BK71: 6.176 | BL71: 6.349 | BO71: 18.19 | BP71: 20.55 | BU71: 5.934 | BV71: 6.983 | BY71: 5.803 | BZ71: 6.712 | CC71: 6.034 | CD71: 6.89 | CG71: 17.771 | CH71: 20.585
B72: 2.673 | C72: 2.678 | D72: 2.602 | E72: 2.449 | F72: 2.466 | G72: 2.328 | H72: 2.35 | I72: 2.297 | J72: 2.031 | K72: 2.202 | L72: 2.09 | M72: 2.118 | N72: 28.285 | S72: 3.803 | T72: 2.673 | W72: 3.306 | X72: 2.678 | AA72: 3.584 | AB72: 2.602 | AE72: 10.693 | AF72: 7.953 | AK72: 5.027 | AL72: 2.449 | AO72: 3.482 | AP72: 2.466 | AS72: 4.968 | AT72: 2.328 | AW72: 13.477 | AX72: 7.243 | BC72: 0 | BD72: 2.35 | BG72: 0 | BH72: 2.297 | BK72: 0.791 | BL72: 2.031 | BO72: 0.791 | BP72: 6.678 | BU72: 0 | BV72: 2.202 | BY72: 0 | BZ72: 2.09 | CC72: 2.476 | CD72: 2.118 | CG72: 2.476 | CH72: 6.41
B73: 3.419 | C73: 3.515 | D73: 3.497 | E73: 3.367 | F73: 3.461 | G73: 3.332 | H73: 3.425 | I73: 3.408 | J73: 3.062 | K73: 3.373 | L73: 3.247 | M73: 3.338 | N73: 40.444 | S73: 1.98 | T73: 3.419 | W73: 0 | X73: 3.515 | AA73: 0.399 | AB73: 3.497 | AE73: 2.379 | AF73: 10.431 | AK73: 4.939 | AL73: 3.367 | AO73: 0.718 | AP73: 3.461 | AS73: 5.224 | AT73: 3.332 | AW73: 10.881 | AX73: 10.16 | BC73: 0 | BD73: 3.425 | BG73: 0 | BH73: 3.408 | BK73: 0.858 | BL73: 3.062 | BO73: 0.858 | BP73: 9.895 | BU73: 0 | BV73: 3.373 | BY73: 0 | BZ73: 3.247 | CC73: 3.048 | CD73: 3.338 | CG73: 3.048 | CH73: 9.958
B74: 0.738 | C74: 0.757 | D74: 0.752 | E74: 0.723 | F74: 0.742 | G74: 0.713 | H74: 0.732 | I74: 0.726 | J74: 0.652 | K74: 0.716 | L74: 0.689 | M74: 0.707 | N74: 8.646 | S74: 0.894 | T74: 0.738 | W74: 0.915 | X74: 0.757 | AA74: 0.919 | AB74: 0.752 | AE74: 2.728 | AF74: 2.247 | AK74: 0.546 | AL74: 0.723 | AO74: 0 | AP74: 0.742 | AS74: 0.309 | AT74: 0.713 | AW74: 0.855 | AX74: 2.178 | BC74: 1.123 | BD74: 0.732 | BG74: 0.342 | BH74: 0.726 | BK74: 1.187 | BL74: 0.652 | BO74: 2.652 | BP74: 2.11 | BU74: 0.411 | BV74: 0.716 | BY74: 0 | BZ74: 0.689 | CC74: 0 | CD74: 0.707 | CG74: 0.411 | CH74: 2.112
B75: 3.999 | C75: 4.112 | D75: 4.092 | E75: 3.941 | F75: 4.053 | G75: 3.903 | H75: 4.014 | I75: 3.995 | J75: 3.591 | K75: 3.956 | L75: 3.81 | M75: 3.918 | N75: 47.385 | S75: 2.303 | T75: 3.999 | W75: 3.259 | X75: 4.112 | AA75: 1.102 | AB75: 4.092 | AE75: 6.664 | AF75: 12.203 | AK75: 4.307 | AL75: 3.941 | AO75: 5.087 | AP75: 4.053 | AS75: 2.83 | AT75: 3.903 | AW75: 12.224 | AX75: 11.897 | BC75: 1.784 | BD75: 4.014 | BG75: 2.694 | BH75: 3.995 | BK75: 2.767 | BL75: 3.591 | BO75: 7.245 | BP75: 11.6 | BU75: 1.843 | BV75: 3.956 | BY75: 1.017 | BZ75: 3.81 | CC75: 3.123 | CD75: 3.918 | CG75: 5.983 | CH75: 11.684
B76: 0.655 | C76: 0.674 | D76: 0.672 | E76: 0.648 | F76: 0.667 | G76: 0.643 | H76: 0.662 | I76: 0.66 | J76: 0.594 | K76: 0.655 | L76: 0.631 | M76: 0.65 | N76: 7.811 | S76: 0 | T76: 0.655 | W76: 0 | X76: 0.674 | AA76: 0 | AB76: 0.672 | AE76: 0 | AF76: 2.001 | AK76: 0 | AL76: 0.648 | AO76: 0.003 | AP76: 0.667 | AS76: 0 | AT76: 0.643 | AW76: 0.003 | AX76: 1.958 | BC76: 0 | BD76: 0.662 | BG76: 0 | BH76: 0.66 | BK76: 0 | BL76: 0.594 | BO76: 0 | BP76: 1.916 | BU76: 0 | BV76: 0.655 | BY76: 0 | BZ76: 0.631 | CC76: 0 | CD76: 0.65 | CG76: 0 | CH76: 1.936
B77: 4.842 | C77: 4.98 | D77: 4.957 | E77: 4.774 | F77: 4.91 | G77: 4.73 | H77: 4.864 | I77: 4.841 | J77: 4.352 | K77: 4.796 | L77: 4.62 | M77: 4.751 | N77: 57.418 | S77: 5.74 | T77: 4.842 | W77: 5.804 | X77: 4.98 | AA77: 5.659 | AB77: 4.957 | AE77: 17.203 | AF77: 14.779 | AK77: 5.826 | AL77: 4.774 | AO77: 5.716 | AP77: 4.91 | AS77: 4.012 | AT77: 4.73 | AW77: 15.554 | AX77: 14.414 | BC77: 4.049 | BD77: 4.864 | BG77: 2.206 | BH77: 4.841 | BK77: 3.342 | BL77: 4.352 | BO77: 9.597 | BP77: 14.057 | BU77: 4.361 | BV77: 4.796 | BY77: 5.637 | BZ77: 4.62 | CC77: 5.332 | CD77: 4.751 | CG77: 15.33 | CH77: 14.167
B78: 5.401 | C78: 5.549 | D78: 5.517 | E78: 5.308 | F78: 5.453 | G78: 5.247 | H78: 5.391 | I78: 5.36 | J78: 4.813 | K78: 5.298 | L78: 5.098 | M78: 5.237 | N78: 63.671 | S78: 5.501 | T78: 5.401 | W78: 4.996 | X78: 5.549 | AA78: 3.49 | AB78: 5.517 | AE78: 13.987 | AF78: 16.467 | AK78: 4.825 | AL78: 5.308 | AO78: 4.53 | AP78: 5.453 | AS78: 4.438 | AT78: 5.247 | AW78: 13.793 | AX78: 16.008 | BC78: 2.662 | BD78: 5.391 | BG78: 2.209 | BH78: 5.36 | BK78: 3.499 | BL78: 4.813 | BO78: 8.37 | BP78: 15.564 | BU78: 2.203 | BV78: 5.298 | BY78: 3.347 | BZ78: 5.098 | CC78: 4.548 | CD78: 5.237 | CG78: 10.098 | CH78: 15.633
B79: 0.127 | C79: 0.131 | D79: 0.13 | E79: 0.125 | F79: 0.129 | G79: 0.124 | H79: 0.128 | I79: 0.127 | J79: 0.114 | K79: 0.125 | L79: 0.121 | M79: 0.124 | N79: 1.506 | S79: 0 | T79: 0.127 | W79: 0 | X79: 0.131 | AA79: 0 | AB79: 0.13 | AE79: 0 | AF79: 0.388 | AK79: 0 | AL79: 0.125 | AO79: 0 | AP79: 0.129 | AS79: 0 | AT79: 0.124 | AW79: 0 | AX79: 0.378 | BC79: 0 | BD79: 0.128 | BG79: 0 | BH79: 0.127 | BK79: 0 | BL79: 0.114 | BO79: 0 | BP79: 0.369 | BU79: 0 | BV79: 0.125 | BY79: 0 | BZ79: 0.121 | CC79: 0 | CD79: 0.124 | CG79: 0 | CH79: 0.37
B80: 31.82 | C80: 32.675 | D80: 32.47 | E80: 31.226 | F80: 32.065 | G80: 30.836 | H80: 31.665 | I80: 31.467 | J80: 28.244 | K80: 31.075 | L80: 29.885 | M80: 30.688 | N80: 374.116 | S80: 27.186 | T80: 31.82 | W80: 32.168 | X80: 32.675 | AA80: 31.499 | AB80: 32.47 | AE80: 90.853 | AF80: 96.965 | AK80: 15.14 | AL80: 31.226 | AO80: 25.627 | AP80: 32.065 | AS80: 35.61 | AT80: 30.836 | AW80: 76.377 | AX80: 94.127 | BC80: 29.079 | BD80: 31.665 | BG80: 27.143 | BH80: 31.467 | BK80: 30.305 | BL80: 28.244 | BO80: 86.527 | BP80: 91.376 | BU80: 27.087 | BV80: 31.075 | BY80: 33.067 | BZ80: 29.885 | CC80: 31.146 | CD80: 30.688 | CG80: 91.3 | CH80: 91.648
B81: 1.032 | C81: 1.059 | D81: 1.051 | E81: 0 | F81: 0 | G81: 1.011 | H81: 1.037 | I81: 1.03 | J81: 0.924 | K81: 1.016 | L81: 0.976 | M81: 1.002 | N81: 12.205 | S81: 0.939 | T81: 1.032 | W81: 0.904 | X81: 1.059 | AA81: 0.441 | AB81: 1.051 | AE81: 2.284 | AF81: 3.142 | AK81: 0 | AL81: 0 | AO81: 0 | AP81: 0 | AS81: 1.981 | AT81: 1.011 | AW81: 1.981 | AX81: 1.011 | BC81: 1.423 | BD81: 1.037 | BG81: 1.173 | BH81: 1.03 | BK81: 1.806 | BL81: 0.924 | BO81: 4.402 | BP81: 2.991 | BU81: 1.355 | BV81: 1.016 | BY81: 0.8 | BZ81: 0.976 | CC81: 1.498 | CD81: 1.002 | CG81: 3.653 | CH81: 2.994
B82: 7.306 | C82: 7.472 | D82: 7.397 | E82: 7.088 | F82: 7.252 | G82: 6.951 | H82: 7.114 | I82: 7.048 | J82: 6.307 | K82: 6.919 | L82: 6.635 | M82: 6.795 | N82: 84.283 | S82: 2.626 | T82: 7.306 | W82: 1.128 | X82: 7.472 | AA82: 0.473 | AB82: 7.397 | AE82: 4.227 | AF82: 22.175 | AK82: 4.717 | AL82: 7.088 | AO82: 4.159 | AP82: 7.252 | AS82: 4.73 | AT82: 6.951 | AW82: 13.606 | AX82: 21.291 | BC82: 2.587 | BD82: 7.114 | BG82: 3.294 | BH82: 7.048 | BK82: 2.254 | BL82: 6.307 | BO82: 8.135 | BP82: 20.469 | BU82: 2.537 | BV82: 6.919 | BY82: 2.198 | BZ82: 6.635 | CC82: 3.592 | CD82: 6.795 | CG82: 8.327 | CH82: 20.349
B83: 7.155 | C83: 7.349 | D83: 7.305 | E83: 7.027 | F83: 7.217 | G83: 6.943 | H83: 7.131 | I83: 7.088 | J83: 6.364 | K83: 7.004 | L83: 6.737 | M83: 6.92 | N83: 84.24 | S83: 8.9 | T83: 7.155 | W83: 6.774 | X83: 7.349 | AA83: 11.045 | AB83: 7.305 | AE83: 26.719 | AF83: 21.809 | AK83: 8.618 | AL83: 7.027 | AO83: 7.468 | AP83: 7.217 | AS83: 4.832 | AT83: 6.943 | AW83: 20.918 | AX83: 21.187 | BC83: 5.052 | BD83: 7.131 | BG83: 4.114 | BH83: 7.088 | BK83: 4.901 | BL83: 6.364 | BO83: 14.067 | BP83: 20.583 | BU83: 1.578 | BV83: 7.004 | BY83: 3.184 | BZ83: 6.737 | CC83: 5.239 | CD83: 6.92 | CG83: 10.001 | CH83: 20.661
B84: 2559.25 | C84: 2566.943 | D84: 2544.021 | E84: 2435.993 | F84: 2494.484 | G84: 2449.272 | H84: 2509.073 | I84: 2487.599 | J84: 2224.928 | K84: 2442.541 | L84: 2343.963 | M84: 2401.026 | N84: 29461.154 | S84: 2686.93 | T84: 2559.25 | W84: 2687.398 | X84: 2566.943 | AA84: 2558.522 | AB84: 2544.021 | AE84: 7932.85 | AF84: 7670.214 | AK84: 2428.631 | AL84: 2435.993 | AO84: 2522.534 | AP84: 2566.943 | AS84: 2462.862 | AT84: 2544.021 | AW84: 7414.027 | AX84: 7546.957 | BC84: 2345.697 | BD84: 2509.073 | BG84: 2014.222 | BH84: 2487.599 | BK84: 2338.208 | BL84: 2224.928 | BO84: 6698.127 | BP84: 7221.6 | BU84: 2273.455 | BV84: 2442.541 | BY84: 2301.733 | BZ84: 2343.963 | CC84: 2540.462 | CD84: 2401.026 | CG84: 7115.65 | CH84: 7187.53
B87: 180.775 | C87: 182.518 | D87: 178.633 | E87: 169.424 | F87: 171.777 | G87: 180.404 | H87: 182.827 | I87: 179.473 | J87: 159.262 | K87: 173.362 | L87: 165.057 | M87: 167.902 | N87: 2091.414 | S87: 186.083 | T87: 180.775 | W87: 197.626 | X87: 182.518 | AA87: 189.324 | AB87: 178.633 | AE87: 573.033 | AF87: 541.926 | AK87: 183.156 | AL87: 169.424 | AO87: 206.641 | AP87: 171.777 | AS87: 196.267 | AT87: 180.404 | AW87: 586.064 | AX87: 521.605 | BC87: 198.231 | BD87: 182.827 | BG87: 165.756 | BH87: 179.473 | BK87: 203.667 | BL87: 159.262 | BO87: 567.654 | BP87: 521.562 | BU87: 185.412 | BV87: 173.362 | BY87: 174.1 | BZ87: 165.057 | CC87: 195.819 | CD87: 167.902 | CG87: 555.331 | CH87: 506.321
B88: 16.361 | C88: 16.379 | D88: 15.894 | E88: 14.948 | F88: 15.03 | G88: 14.171 | H88: 14.283 | I88: 13.945 | J88: 12.309 | K88: 13.329 | L88: 12.627 | M88: 12.782 | N88: 172.057 | S88: 0 | T88: 16.361 | W88: 14.539 | X88: 16.379 | AA88: 6.771 | AB88: 15.894 | AE88: 21.31 | AF88: 48.634 | AK88: 8.942 | AL88: 14.948 | AO88: 25.686 | AP88: 15.03 | AS88: 21.705 | AT88: 14.171 | AW88: 56.333 | AX88: 44.149 | BC88: 2.311 | BD88: 14.283 | BG88: 0 | BH88: 13.945 | BK88: 18.499 | BL88: 12.309 | BO88: 20.81 | BP88: 40.537 | BU88: 0 | BV88: 13.329 | BY88: 0 | BZ88: 12.627 | CC88: 0 | CD88: 12.782 | CG88: 0 | CH88: 38.738
B89: 356.579 | C89: 362.281 | D89: 356.346 | E89: 339.331 | F89: 345.156 | G89: 328.911 | H89: 334.785 | I89: 329.876 | J89: 293.673 | K89: 320.561 | L89: 305.939 | M89: 311.857 | N89: 3985.293 | S89: 269.956 | T89: 356.579 | W89: 268.367 | X89: 362.281 | AA89: 263.77 | AB89: 356.346 | AE89: 802.093 | AF89: 1075.206 | AK89: 246.371 | AL89: 339.331 | AO89: 254.913 | AP89: 345.156 | AS89: 234.879 | AT89: 328.911 | AW89: 736.163 | AX89: 1013.398 | BC89: 228.121 | BD89: 334.785 | BG89: 203.445 | BH89: 329.876 | BK89: 235.422 | BL89: 293.673 | BO89: 666.988 | BP89: 958.334 | BU89: 220.716 | BV89: 320.561 | BY89: 226.532 | BZ89: 305.939 | CC89: 238.027 | CD89: 311.857 | CG89: 685.275 | CH89: 938.357
B90: 258.901 | C90: 261.756 | D90: 255.319 | E90: 162.046 | F90: 160.83 | G90: 245.101 | H90: 246.22 | I90: 239.997 | J90: 211.746 | K90: 229.407 | L90: 216.319 | M90: 215.446 | N90: 2703.087 | S90: 274.61 | T90: 258.901 | W90: 260.435 | X90: 261.756 | AA90: 214.735 | AB90: 255.319 | AE90: 749.78 | AF90: 775.976 | AK90: 251.006 | AL90: 162.046 | AO90: 285.248 | AP90: 160.83 | AS90: 264.008 | AT90: 245.101 | AW90: 800.262 | AX90: 567.977 | BC90: 251.204 | BD90: 246.22 | BG90: 228.826 | BH90: 239.997 | BK90: 248.798 | BL90: 211.746 | BO90: 728.828 | BP90: 697.963 | BU90: 251.138 | BV90: 229.407 | BY90: 241.649 | BZ90: 216.319 | CC90: 253.388 | CD90: 215.446 | CG90: 746.175 | CH90: 661.172
B91: 0 | C91: 0 | D91: 0 | E91: 0 | F91: 0 | G91: 140 | H91: 113.677 | I91: 95.204 | J91: 74.718 | K91: 73.631 | L91: 64.511 | M91: 61.12 | N91: 622.859 | S91: 0 | T91: 0 | W91: 0 | X91: 0 | AA91: 0 | AB91: 0 | AE91: 0 | AF91: 0 | AK91: 16.132 | AL91: 0 | AO91: 31.136 | AP91: 0 | AS91: 57.44 | AT91: 140 | AW91: 104.708 | AX91: 140 | BC91: 48.114 | BD91: 113.677 | BG91: 37.079 | BH91: 95.204 | BK91: 58.148 | BL91: 74.718 | BO91: 143.341 | BP91: 283.599 | BU91: 44.056 | BV91: 73.631 | BY91: 39.73 | BZ91: 64.511 | CC91: 37.607 | CD91: 61.12 | CG91: 121.393 | CH91: 199.262
B92: 0 | C92: 64.549 | D92: 54.17 | E92: 45.822 | F92: 42.446 | G92: 37.462 | H92: 35.749 | I92: 33.33 | J92: 28.278 | K92: 29.586 | L92: 27.192 | M92: 26.797 | N92: 425.382 | S92: 0 | T92: 0 | W92: 0 | X92: 64.549 | AA92: 0 | AB92: 54.17 | AE92: 0 | AF92: 118.719 | AK92: 0 | AL92: 45.822 | AO92: 0 | AP92: 42.446 | AS92: 0 | AT92: 37.462 | AW92: 0 | AX92: 125.73 | BC92: 0 | BD92: 35.749 | BG92: 0 | BH92: 33.33 | BK92: 0 | BL92: 28.278 | BO92: 0 | BP92: 97.357 | BU92: 0 | BV92: 29.586 | BY92: 0 | BZ92: 27.192 | CC92: 0 | CD92: 26.797 | CG92: 0 | CH92: 83.575
B93: 0 | C93: 0 | D93: 0 | E93: 0 | F93: 0 | G93: 374.616 | H93: 307.139 | I93: 258.825 | J93: 204.042 | K93: 201.77 | L93: 177.276 | M93: 168.355 | N93: 1692.022 | S93: 0 | T93: 0 | W93: 0 | X93: 0 | AA93: 0 | AB93: 0 | AE93: 0 | AF93: 0 | AK93: 41.244 | AL93: 0 | AO93: 111.31 | AP93: 0 | AS93: 107.663 | AT93: 374.616 | AW93: 260.217 | AX93: 374.616 | BC93: 245.118 | BD93: 307.139 | BG93: 213.227 | BH93: 258.825 | BK93: 256.208 | BL93: 204.042 | BO93: 714.553 | BP93: 770.006 | BU93: 225.102 | BV93: 201.77 | BY93: 199.264 | BZ93: 177.276 | CC93: 155.783 | CD93: 168.355 | CG93: 580.149 | CH93: 547.401
B94: 812.616 | C94: 887.483 | D94: 860.362 | E94: 731.571 | F94: 735.239 | G94: 1320.665 | H94: 1234.68 | I94: 1150.65 | J94: 984.028 | K94: 1041.646 | L94: 968.921 | M94: 964.259 | N94: 11692.114 | S94: 730.649 | T94: 812.616 | W94: 740.967 | X94: 887.483 | AA94: 674.6 | AB94: 860.362 | AE94: 2146.216 | AF94: 2560.461 | AK94: 746.851 | AL94: 731.571 | AO94: 914.934 | AP94: 887.483 | AS94: 881.962 | AT94: 860.362 | AW94: 2543.747 | AX94: 2479.416 | BC94: 973.099 | BD94: 1234.68 | BG94: 848.333 | BH94: 1150.65 | BK94: 1020.742 | BL94: 984.028 | BO94: 2842.174 | BP94: 3369.358 | BU94: 926.424 | BV94: 1041.646 | BY94: 881.275 | BZ94: 968.921 | CC94: 880.624 | CD94: 964.259 | CG94: 2688.323 | CH94: 2974.826
B97: 3.641 | C97: 3.739 | D97: 3.716 | E97: 3.574 | F97: 3.67 | G97: 3.53 | H97: 3.625 | I97: 3.602 | J97: 3.234 | K97: 3.558 | L97: 3.422 | M97: 3.514 | N97: 42.824 | S97: 3.107 | T97: 3.641 | W97: 3.915 | X97: 3.739 | AA97: 4.845 | AB97: 3.716 | AE97: 11.867 | AF97: 11.096 | AK97: 3.992 | AL97: 3.574 | AO97: 3.532 | AP97: 3.67 | AS97: 2.764 | AT97: 3.53 | AW97: 10.288 | AX97: 10.774 | BC97: 3.152 | BD97: 3.625 | BG97: 2.502 | BH97: 3.602 | BK97: 2.302 | BL97: 3.234 | BO97: 7.956 | BP97: 10.461 | BU97: 2.088 | BV97: 3.558 | BY97: 2.227 | BZ97: 3.422 | CC97: 2.257 | CD97: 3.514 | CG97: 6.572 | CH97: 10.494
B98: 60.223 | C98: 61.352 | D98: 60.506 | E98: 57.766 | F98: 58.905 | G98: 64.516 | H98: 65.587 | I98: 64.565 | J98: 57.44 | K98: 62.668 | L98: 59.791 | M98: 60.938 | N98: 734.259 | S98: 64.904 | T98: 60.223 | W98: 69.823 | X98: 61.352 | AA98: 68.057 | AB98: 60.506 | AE98: 202.784 | AF98: 182.081 | AK98: 69.931 | AL98: 57.766 | AO98: 81.733 | AP98: 58.905 | AS98: 77.224 | AT98: 64.516 | AW98: 228.888 | AX98: 181.187 | BC98: 77.521 | BD98: 65.587 | BG98: 64.529 | BH98: 64.565 | BK98: 78.89 | BL98: 57.44 | BO98: 220.94 | BP98: 187.592 | BU98: 73.265 | BV98: 62.668 | BY98: 68.676 | BZ98: 59.791 | CC98: 74.384 | CD98: 60.938 | CG98: 216.325 | CH98: 183.397
B99: 297.981 | C99: 277.191 | D99: 270.092 | E99: 276.892 | F99: 280.258 | G99: 266.049 | H99: 270.008 | I99: 265.459 | J99: 235.937 | K99: 257.234 | L99: 245.304 | M99: 249.927 | N99: 3192.335 | S99: 268.733 | T99: 297.981 | W99: 274.803 | X99: 277.191 | AA99: 269.951 | AB99: 270.092 | AE99: 813.487 | AF99: 845.264 | AK99: 237.395 | AL99: 276.892 | AO99: 252.945 | AP99: 280.258 | AS99: 229.301 | AT99: 266.049 | AW99: 719.641 | AX99: 823.199 | BC99: 223.145 | BD99: 270.008 | BG99: 195.139 | BH99: 265.459 | BK99: 231.661 | BL99: 235.937 | BO99: 649.945 | BP99: 771.404 | BU99: 221.309 | BV99: 257.234 | BY99: 212.933 | BZ99: 245.304 | CC99: 235.22 | CD99: 249.927 | CG99: 669.462 | CH99: 752.465
B100: 22.048 | C100: 22.544 | D100: 22.311 | E100: 21.373 | F100: 21.866 | G100: 20.954 | H100: 21.443 | I100: 21.24 | J100: 19.005 | K100: 20.847 | L100: 19.991 | M100: 20.471 | N100: 254.092 | S100: 23.064 | T100: 22.048 | W100: 21.202 | X100: 22.544 | AA100: 17.837 | AB100: 22.311 | AE100: 62.103 | AF100: 66.903 | AK100: 17.155 | AL100: 21.373 | AO100: 24.687 | AP100: 21.866 | AS100: 23.043 | AT100: 20.954 | AW100: 64.885 | AX100: 64.193 | BC100: 24.213 | BD100: 21.443 | BG100: 20.757 | BH100: 21.24 | BK100: 19.79 | BL100: 19.005 | BO100: 64.76 | BP100: 61.688 | BU100: 25.204 | BV100: 20.847 | BY100: 23.853 | BZ100: 19.991 | CC100: 25.115 | CD100: 20.471 | CG100: 74.172 | CH100: 61.309
B101: 296.404 | C101: 298.835 | D101: 290.871 | E101: 205.387 | F101: 204.232 | G101: 275.372 | H101: 276.401 | I101: 269.148 | J101: 237.203 | K101: 256.683 | L101: 241.903 | M101: 241.121 | N101: 3093.56 | S101: 315.279 | T101: 296.404 | W101: 295.745 | X101: 298.835 | AA101: 253.335 | AB101: 290.871 | AE101: 864.359 | AF101: 886.11 | AK101: 271.268 | AL101: 205.387 | AO101: 315.126 | AP101: 204.232 | AS101: 300.318 | AT101: 275.372 | AW101: 886.712 | AX101: 684.991 | BC101: 272.434 | BD101: 276.401 | BG101: 249.25 | BH101: 269.148 | BK101: 77.168 | BL101: 237.203 | BO101: 598.852 | BP101: 782.752 | BU101: 284.633 | BV101: 256.683 | BY101: 265.087 | BZ101: 241.903 | CC101: 285.97 | CD101: 241.121 | CG101: 835.69 | CH101: 739.707
B102: 271.199 | C102: 276.41 | D102: 272.731 | E102: 206.632 | F102: 210.728 | G102: 255.206 | H102: 260.503 | I102: 257.402 | J102: 229.782 | K102: 251.498 | L102: 240.662 | M102: 245.955 | N102: 2978.708 | S102: 296.088 | T102: 271.199 | W102: 290.108 | X102: 276.41 | AA102: 254.68 | AB102: 272.731 | AE102: 840.876 | AF102: 820.34 | AK102: 254.991 | AL102: 206.632 | AO102: 275.526 | AP102: 210.728 | AS102: 278.708 | AT102: 255.206 | AW102: 809.225 | AX102: 672.566 | BC102: 235.08 | BD102: 260.503 | BG102: 204.908 | BH102: 257.402 | BK102: 111.411 | BL102: 229.782 | BO102: 551.399 | BP102: 747.687 | BU102: 230.797 | BV102: 251.498 | BY102: 226.474 | BZ102: 240.662 | CC102: 266.152 | CD102: 245.955 | CG102: 723.423 | CH102: 738.115
B103: 37.295 | C103: 38.12 | D103: 37.713 | E103: 25.431 | F103: 25.996 | G103: 35.575 | H103: 36.394 | I103: 36.035 | J103: 32.231 | K103: 35.343 | L103: 33.879 | M103: 34.681 | N103: 408.693 | S103: 35.744 | T103: 37.295 | W103: 37.531 | X103: 38.12 | AA103: 30.526 | AB103: 37.713 | AE103: 103.801 | AF103: 113.128 | AK103: 30.134 | AL103: 25.431 | AO103: 34.025 | AP103: 25.996 | AS103: 34.392 | AT103: 35.575 | AW103: 98.551 | AX103: 87.002 | BC103: 35.521 | BD103: 36.394 | BG103: 30.901 | BH103: 36.035 | BK103: 12.344 | BL103: 32.231 | BO103: 78.766 | BP103: 104.66 | BU103: 39.83 | BV103: 35.343 | BY103: 32.412 | BZ103: 33.879 | CC103: 39.043 | CD103: 34.681 | CG103: 111.285 | CH103: 103.903
B104: 21.336 | C104: 21.768 | D104: 21.497 | E104: 20.549 | F104: 20.979 | G104: 20.062 | H104: 20.49 | I104: 20.256 | J104: 18.09 | K104: 19.807 | L104: 18.959 | M104: 19.381 | N104: 243.173 | S104: 18.282 | T104: 21.336 | W104: 24.341 | X104: 21.768 | AA104: 22.216 | AB104: 21.497 | AE104: 64.839 | AF104: 64.601 | AK104: 26.133 | AL104: 20.549 | AO104: 27.719 | AP104: 20.979 | AS104: 26.358 | AT104: 20.062 | AW104: 80.21 | AX104: 61.59 | BC104: 26.413 | BD104: 20.49 | BG104: 22.585 | BH104: 20.256 | BK104: 14.211 | BL104: 18.09 | BO104: 63.209 | BP104: 58.836 | BU104: 23.759 | BV104: 19.807 | BY104: 21.432 | BZ104: 18.959 | CC104: 23.351 | CD104: 19.381 | CG104: 68.542 | CH104: 58.147
B105: 70.381 | C105: 25.038 | D105: 24.791 | E105: 69.157 | F105: 70.718 | G105: 90.969 | H105: 91.35 | I105: 89.075 | J105: 78.651 | K105: 85.298 | L105: 80.988 | M105: 82.216 | N105: 858.633 | S105: 60.761 | T105: 70.381 | W105: 77.133 | X105: 25.038 | AA105: 46.576 | AB105: 24.791 | AE105: 184.47 | AF105: 120.21 | AK105: 20.417 | AL105: 69.157 | AO105: 53.117 | AP105: 70.718 | AS105: 181.977 | AT105: 90.969 | AW105: 255.511 | AX105: 230.844 | BC105: 179.656 | BD105: 91.35 | BG105: 151.192 | BH105: 89.075 | BK105: 84.41 | BL105: 78.651 | BO105: 415.258 | BP105: 259.076 | BU105: 156.687 | BV105: 85.298 | BY105: 148.097 | BZ105: 80.988 | CC105: 145.484 | CD105: 82.216 | CG105: 450.268 | CH105: 248.502
B106: 0 | C106: 0 | D106: 0 | E106: 0 | F106: 0 | G106: 58.216 | H106: 47.27 | I106: 39.588 | J106: 31.07 | K106: 30.618 | L106: 26.825 | M106: 25.415 | N106: 259.003 | S106: 0 | T106: 0 | W106: 0 | X106: 0 | AA106: 0 | AB106: 0 | AE106: 0 | AF106: 0 | AK106: 8.091 | AL106: 0 | AO106: 15.616 | AP106: 0 | AS106: 28.808 | AT106: 58.216 | AW106: 52.515 | AX106: 58.216 | BC106: 24.129 | BD106: 47.27 | BG106: 18.597 | BH106: 39.588 | BK106: 29.164 | BL106: 31.07 | BO106: 71.89 | BP106: 117.928 | BU106: 22.095 | BV106: 30.618 | BY106: 19.925 | BZ106: 26.825 | CC106: 18.861 | CD106: 25.415 | CG106: 60.881 | CH106: 82.858
B107: 0 | C107: 0 | D107: 0 | E107: 0 | F107: 0 | G107: 366.57 | H107: 300.573 | I107: 253.307 | J107: 199.702 | K107: 197.485 | L107: 173.517 | M107: 164.787 | N107: 1655.941 | S107: 0 | T107: 0 | W107: 0 | X107: 0 | AA107: 0 | AB107: 0 | AE107: 0 | AF107: 0 | AK107: 40.776 | AL107: 0 | AO107: 110.042 | AP107: 0 | AS107: 106.439 | AT107: 366.57 | AW107: 257.257 | AX107: 366.57 | BC107: 242.327 | BD107: 300.573 | BG107: 158.983 | BH107: 253.307 | BK107: 43.984 | BL107: 199.702 | BO107: 445.294 | BP107: 753.582 | BU107: 222.542 | BV107: 197.485 | BY107: 196.995 | BZ107: 173.517 | CC107: 154.009 | CD107: 164.787 | CG107: 573.546 | CH107: 535.789
B108: 0 | C108: 0 | D108: 0 | E108: 0 | F108: 0 | G108: 129.06 | H108: 107.775 | I108: 91.868 | J108: 73.018 | K108: 72.658 | L108: 64.161 | M108: 61.188 | N108: 599.728 | S108: 0 | T108: 0 | W108: 0 | X108: 0 | AA108: 0 | AB108: 0 | AE108: 0 | AF108: 0 | AK108: 0 | AL108: 0 | AO108: 5.079 | AP108: 0 | AS108: 19.198 | AT108: 129.06 | AW108: 24.277 | AX108: 129.06 | BC108: 17.115 | BD108: 107.775 | BG108: 12.273 | BH108: 91.868 | BK108: 23.231 | BL108: 73.018 | BO108: 52.619 | BP108: 272.661 | BU108: 12.514 | BV108: 72.658 | BY108: 8.69 | BZ108: 64.161 | CC108: 10.985 | CD108: 61.188 | CG108: 32.189 | CH108: 198.007
B109: 1080.508 | C109: 1024.997 | D109: 1004.228 | E109: 886.761 | F109: 897.352 | G109: 1586.079 | H109: 1501.419 | I109: 1411.545 | J109: 1215.363 | K109: 1293.697 | L109: 1209.402 | M109: 1209.594 | N109: 14320.949 | S109: 1085.962 | T109: 1080.508 | W109: 1094.601 | X109: 1024.997 | AA109: 968.023 | AB109: 1004.228 | AE109: 3148.586 | AF109: 3109.733 | AK109: 980.283 | AL109: 886.761 | AO109: 1199.147 | AP109: 1024.997 | AS109: 1308.53 | AT109: 1004.228 | AW109: 3487.96 | AX109: 2915.986 | BC109: 1360.706 | BD109: 1501.419 | BG109: 1131.616 | BH109: 1411.545 | BK109: 728.566 | BL109: 1215.363 | BO109: 3220.888 | BP109: 4128.327 | BU109: 1314.723 | BV109: 1293.697 | BY109: 1226.801 | BZ109: 1209.402 | CC109: 1280.831 | CD109: 1004.228 | CG109: 3822.355 | CH109: 3712.693
B112: 0 | C112: 0 | D112: 0 | E112: 0 | F112: 0 | G112: 0 | H112: 0 | I112: 0 | J112: 0 | K112: 0 | L112: 0 | M112: 0 | N112: 0 | S112: 3.837 | T112: 0 | W112: 211.593 | X112: 0 | AA112: 202.569 | AB112: 0 | AE112: 417.999 | AF112: 0 | AK112: 241.186 | AL112: 0 | AO112: 254.907 | AP112: 0 | AS112: 222.819 | AT112: 0 | AW112: 718.912 | AX112: 0 | BC112: 221.945 | BD112: 0 | BG112: 203.318 | BH112: 0 | BK112: 201.006 | BL112: 0 | BO112: 626.269 | BP112: 0 | BU112: 226.544 | BV112: 0 | BY112: 217.487 | BZ112: 0 | CC112: 233.888 | CD112: 0 | CG112: 677.919 | CH112: 0
S113: 3.837 | T113: 0 | W113: 211.593 | X113: 0 | AA113: 202.569 | AB113: 0 | AE113: 417.999 | AF113: 0 | AK113: 241.186 | AL113: 0 | AO113: 254.907 | AP113: 0 | AS113: 222.819 | AT113: 0 | AW113: 718.912 | AX113: 0 | BC113: 221.945 | BD113: 0 | BG113: 203.318 | BH113: 0 | BK113: 201.006 | BL113: 0 | BO113: 626.269 | BP113: 0 | BU113: 226.544 | BV113: 0 | BY113: 217.487 | BZ113: 0 | CC113: 233.888 | CD113: 0 | CG113: 677.919 | CH113: 0
B116: 0.654 | C116: 0.662 | D116: 0.649 | E116: 0.616 | F116: 0.625 | G116: 0.594 | H116: 0.603 | I116: 0.592 | J116: 0.525 | K116: 0.572 | L116: 0.544 | M116: 0.553 | N116: 7.19 | S116: 0.675 | T116: 0.654 | W116: 0.619 | X116: 0.662 | AA116: 0.691 | AB116: 0.649 | AE116: 1.985 | AF116: 1.965 | AK116: 0.669 | AL116: 0.616 | AO116: 0.69 | AP116: 0.625 | AS116: 0.667 | AT116: 0.594 | AW116: 2.026 | AX116: 1.835 | BC116: 0.597 | BD116: 0.603 | BG116: 0.311 | BH116: 0.592 | BK116: 0.708 | BL116: 0.525 | BO116: 1.616 | BP116: 1.72 | BU116: 0.646 | BV116: 0.572 | BY116: 0.683 | BZ116: 0.544 | CC116: 0.735 | CD116: 0.553 | CG116: 2.064 | CH116: 1.669
B117: 0 | C117: 0 | D117: 0 | E117: 0 | F117: 0 | G117: 0 | H117: 0 | I117: 0 | J117: 0 | K117: 0 | L117: 0 | M117: 0 | N117: 0 | S117: 0.622 | T117: 0 | W117: 0.277 | X117: 0 | AA117: 0 | AB117: 0 | AE117: 0.899 | AF117: 0 | AK117: 0.513 | AL117: 0 | AO117: 0.736 | AP117: 0 | AS117: 0.255 | AT117: 0 | AW117: 1.504 | AX117: 0 | BC117: 2.027 | BD117: 0 | BG117: 2.386 | BH117: 0 | BK117: 0.662 | BL117: 0 | BO117: 5.075 | BP117: 0 | BU117: 1.777 | BV117: 0 | BY117: 0.519 | BZ117: 0 | CC117: 0.536 | CD117: 0 | CG117: 2.832 | CH117: 0
B118: 1.912 | C118: 1.955 | D118: 1.935 | E118: 1.854 | F118: 1.896 | G118: 1.817 | H118: 1.86 | I118: 1.842 | J118: 1.649 | K118: 1.808 | L118: 1.734 | M118: 1.776 | N118: 22.039 | S118: 1.537 | T118: 1.912 | W118: 1.74 | X118: 1.955 | AA118: 1.826 | AB118: 1.935 | AE118: 5.103 | AF118: 5.802 | AK118: 1.471 | AL118: 1.854 | AO118: 1.6 | AP118: 1.896 | AS118: 1.301 | AT118: 1.817 | AW118: 4.372 | AX118: 5.567 | BC118: 1.756 | BD118: 1.86 | BG118: 2.246 | BH118: 1.842 | BK118: 0.23 | BL118: 1.649 | BO118: 4.232 | BP118: 5.351 | BU118: 1.338 | BV118: 1.808 | BY118: 0.973 | BZ118: 1.734 | CC118: 1.166 | CD118: 1.776 | CG118: 3.477 | CH118: 5.318
B119: 2.566 | C119: 2.617 | D119: 2.584 | E119: 2.47 | F119: 2.521 | G119: 2.411 | H119: 2.463 | I119: 2.434 | J119: 2.174 | K119: 2.38 | L119: 2.278 | M119: 2.329 | N119: 29.229 | S119: 2.834 | T119: 2.566 | W119: 2.636 | X119: 2.617 | AA119: 2.517 | AB119: 2.584 | AE119: 7.987 | AF119: 7.767 | AK119: 2.653 | AL119: 2.47 | AO119: 3.026 | AP119: 2.617 | AS119: 2.223 | AT119: 2.584 | AW119: 7.902 | AX119: 7.671 | BC119: 4.38 | BD119: 2.463 | BG119: 4.943 | BH119: 2.434 | BK119: 1.6 | BL119: 2.174 | BO119: 10.923 | BP119: 7.071 | BU119: 3.761 | BV119: 2.38 | BY119: 2.175 | BZ119: 2.278 | CC119: 2.437 | CD119: 2.329 | CG119: 8.373 | CH119: 6.987
S120: 4510.212 | T120: 4454.94 | W120: 4737.195 | X120: 4482.04 | AA120: 4406.231 | AB120: 4411.195 | AE120: 13653.638 | AF120: 13348.175 | AK120: 4399.604 | AL120: 4056.795 | AO120: 4894.548 | AP120: 4482.04 | AS120: 4878.396 | AT120: 4411.195 | AW120: 14172.548 | AX120: 12950.03 | BC120: 4905.827 | BD120: 5247.635 | BG120: 4202.432 | BH120: 5052.228 | BK120: 4290.122 | BL120: 4426.493 | BO120: 13398.381 | BP120: 14726.356 | BU120: 4744.907 | BV120: 4780.264 | BY120: 4629.471 | BZ120: 4524.564 | CC120: 4938.242 | CD120: 4371.842 | CG120: 14312.62 | CH120: 13882.036
B123: 32.531 | C123: 33.42 | D123: 33.225 | E123: 31.967 | F123: 32.842 | G123: 31.599 | H123: 32.464 | I123: 32.278 | J123: 28.986 | K123: 31.908 | L123: 30.405 | M123: 31.239 | N123: 382.865 | S123: 0 | T123: 32.531 | W123: 0 | X123: 33.42 | AA123: 0 | AB123: 33.225 | AE123: 0 | AF123: 99.176 | AK123: 0 | AL123: 32.531 | AO123: 0 | AP123: 33.42 | AS123: 0 | AT123: 33.225 | AW123: 0 | AX123: 99.176 | BC123: 0 | BD123: 32.464 | BG123: 0 | BH123: 32.278 | BK123: 0 | BL123: 28.986 | BO123: 0 | BP123: 93.728 | BU123: 0 | BV123: 31.908 | BY123: 0 | BZ123: 30.405 | CC123: 0 | CD123: 31.239 | CG123: 0 | CH123: 93.552
B124: 6.522 | C124: 6.935 | D124: 7.129 | E124: 7.085 | F124: 7.349 | G124: 7.08 | H124: 7.283 | I124: 7.25 | J124: 6.519 | K124: 7.185 | L124: 6.921 | M124: 7.12 | N124: 84.379 | S124: 0 | T124: 6.522 | W124: 0 | X124: 6.935 | AA124: 0 | AB124: 7.129 | AE124: 0 | AF124: 20.586 | AK124: 0 | AL124: 6.522 | AO124: 0 | AP124: 6.935 | AS124: 0 | AT124: 7.129 | AW124: 0 | AX124: 20.586 | BC124: 0 | BD124: 7.283 | BG124: 0 | BH124: 7.25 | BK124: 0 | BL124: 6.519 | BO124: 0 | BP124: 21.052 | BU124: 0 | BV124: 7.185 | BY124: 0 | BZ124: 6.921 | CC124: 0 | CD124: 7.12 | CG124: 0 | CH124: 21.226
B125: 0.054 | C125: 0.055 | D125: 0.055 | E125: 0.053 | F125: 0.054 | G125: 0.052 | H125: 0.053 | I125: 0.053 | J125: 0.047 | K125: 0.052 | L125: 0.05 | M125: 0.052 | N125: 0.63 | S125: 0 | T125: 0.054 | W125: 0 | X125: 0.055 | AA125: 0 | AB125: 0.055 | AE125: 0 | AF125: 0.164 | AK125: 0 | AL125: 0.054 | AO125: 0 | AP125: 0.055 | AS125: 0 | AT125: 0.055 | AW125: 0 | AX125: 0.164 | BC125: 0 | BD125: 0.053 | BG125: 0 | BH125: 0.053 | BK125: 0 | BL125: 0.047 | BO125: 0 | BP125: 0.153 | BU125: 0 | BV125: 0.052 | BY125: 0 | BZ125: 0.05 | CC125: 0 | CD125: 0.052 | CG125: 0 | CH125: 0.154
B126: 39.107 | C126: 40.41 | D126: 40.409 | E126: 39.105 | F126: 40.245 | G126: 38.731 | H126: 39.8 | I126: 39.581 | J126: 35.552 | K126: 39.145 | L126: 37.376 | M126: 38.411 | N126: 467.874 | S126: 0 | T126: 39.107 | W126: 0 | X126: 40.41 | AA126: 0 | AB126: 40.409 | AE126: 0 | AF126: 119.926 | AK126: 0 | AL126: 39.107 | AO126: 0 | AP126: 40.41 | AS126: 0 | AT126: 40.409 | AW126: 0 | AX126: 119.926 | BC126: 0 | BD126: 39.8 | BG126: 0 | BH126: 39.581 | BK126: 0 | BL126: 35.552 | BO126: 0 | BP126: 114.933 | BU126: 0 | BV126: 39.145 | BY126: 0 | BZ126: 0 | CC126: 0 | CD126: 40.409 | CG126: 0 | CH126: 79.554
B129: 4454.94 | C129: 4482.04 | D129: 4411.195 | E129: 4056.795 | F129: 4129.596 | G129: 5358.427 | H129: 5247.635 | I129: 5052.228 | J129: 4426.493 | K129: 4780.264 | L129: 4524.564 | M129: 4577.208 | N129: 55501.385 | S129: JUNE | W129: JULY | AA129: AUG | AE129: TOTAL | AK129: Sept | AO129: Oct | AS129: Nov | AW129: TOTAL | BC129: Dec | BG129: Jan | BK129: Feb | BO129: TOTAL | BU129: Mar | BY129: Apr | CC129: May | CG129: TOTAL
B130: 30 | C130: 31 | D130: 31 | E130: 30 | F130: 31 | G130: 30 | H130: 31 | I130: 31 | J130: 28 | K130: 31 | L130: 30 | M130: 31 | N130: 365 | S130: 8157 | W130: 8535 | AA130: 7776 | AE130: 24468 | AK130: 5586 | AO130: 4920 | AS130: 7795 | AW130: 18301 | BC130: 10980 | BG130: 8168 | BK130: 8382 | BO130: 27530 | BU130: 7007 | BY130: 8619 | CC130: 8987 | CG130: 24613
B131: 148.498 | C131: 144.5819355 | D131: 142.2966129 | E131: 135.2265 | F131: 133.2127742 | G131: 178.6142333 | H131: 169.2785484 | I131: 162.9750968 | J131: 158.0890357 | K131: 154.2020645 | L131: 150.8188 | M131: 147.651871 | N131: 1825.445472 | S131: 3837 | W131: 211593 | AA131: 202569 | AE131: 417999 | AK131: 1130 | AO131: 3443 | AS131: 3334 | AW131: 7907 | BC131: 3490 | BG131: 2946 | BK131: 3472 | BO131: 9908 | BU131: 3366 | BY131: 3380 | CC131: 3487 | CG131: 10233
S132: 113765 | W132: 107093 | AA132: 125041 | AE132: 345899 | AK132: 122 | AO132: 6316 | AS132: 1751 | AW132: 8189 | BC132: 1414 | BG132: 2096 | BK132: 421 | BO132: 3931 | BU132: 322 | BY132: 488 | CC132: 1729 | CG132: 2539
B133: 4494.047 | C133: 4522.45 | D133: 4451.604 | E133: 4095.9 | F133: 4169.841 | G133: 5397.158 | H133: 5287.435 | I133: 5091.809 | J133: 4462.045 | K133: 4819.409 | L133: 4561.94 | M133: 4615.619 | N133: 55969.257 | S133: 675 | W133: 619 | AA133: 691 | AE133: 1985 | AK133: 241186 | AO133: 254907 | AS133: 222819 | AW133: 718912 | BC133: 221945 | BG133: 203318 | BK133: 201006 | BO133: 626269 | BU133: 226544 | BY133: 217487 | CC133: 233888 | CG133: 677919
S134: 2037 | W134: 2008 | AA134: 2079 | AE134: 6124 | AK134: 119926 | AO134: 123460 | AS134: 116156 | AW134: 359542 | BC134: 119513 | BG134: 98318 | BK134: 105978 | BO134: 323809 | BU134: 118103 | BY134: 119369 | CC134: 138002 | CG134: 375474
B135: 4459.698914 | C135: 4486.926486 | D135: 4416.054833 | E135: 4061.46664 | F135: 4134.398681 | G135: 5363.046602 | H135: 5252.377748 | I135: 5056.944163 | J135: 4430.727103 | K135: 4784.927759 | L135: 4529.049318 | M135: 4581.815263 | N135: 55557.43351 | S135: 138 | W135: 143 | AA135: 140 | AE135: 421 | AK135: 669 | AO135: 690 | AS135: 667 | AW135: 2026 | BC135: 597 | BG135: 311 | BK135: 708 | BO135: 1616 | BU135: 646 | BY135: 683 | CC135: 735 | CG135: 2064
S136: 147361 | W136: 155766 | AA136: 149480 | AE136: 452607 | AK136: 1884 | AO136: 2076 | AS136: 1991 | AW136: 5951 | BC136: 2166 | BG136: 2247 | BK136: 1891 | BO136: 6304 | BU136: 2355 | BY136: 2400 | CC136: 2727 | CG136: 7482
B137: 4758.914466 | C137: 4886.48589 | D137: 4859.83283 | E137: 4671.640195 | F137: 4802.68149 | G137: 4619.601688 | H137: 4742.747685 | I137: 4716.163382 | J137: 4234.10253 | K137: 4663.759092 | L137: 4485.318389 | M137: 4607.263447 | N137: 56048.51108 | S137: 12089 | W137: 11412 | AA137: 10910 | AE137: 34411 | AK137: 130 | AO137: 130 | AS137: 147 | AW137: 407 | BC137: 150 | BG137: 122 | BK137: 154 | BO137: 426 | BU137: 138 | BY137: 135 | CC137: 128 | CG137: 401
B138: 158.6304822 | C138: 157.6285771 | D138: 156.768801 | E138: 155.7213398 | F138: 154.9252094 | G138: 153.9867229 | H138: 152.9918608 | I138: 152.1343027 | J138: 151.2179475 | K138: 150.4438417 | L138: 149.510613 | M138: 148.6214015 | N138: 1842.5811 | S138: 6696 | W138: 0 | AA138: 5900 | AE138: 12596 | AK138: 148148 | AO138: 142860 | AS138: 129976 | AW138: 420984 | BC138: 139153 | BG138: 116919 | BK138: 134807 | BO138: 390879 | BU138: 133857 | BY138: 132779 | CC138: 139515 | CG138: 406151
S139: 3580 | W139: 3586 | AA139: 3561 | AE139: 10727 | AK139: 10325 | AO139: 10485 | AS139: 10485 | AW139: 31295 | BC139: 9970 | BG139: 9339 | BK139: 12605 | BO139: 31914 | BU139: 7245 | BY139: 9240 | CC139: 11366 | CG139: 27851
B140: 0 | C140: 64.549 | D140: 54.17 | E140: 45.822 | F140: 42.446 | G140: 1105.924 | H140: 912.183 | I140: 772.122 | J140: 610.828 | K140: 605.748 | L140: 533.482 | M140: 507.662 | N140: 5254.936 | S140: 65216 | W140: 66642 | AA140: 64083 | AE140: 195941 | AK140: 1 | AO140: 8339 | AS140: 0 | AW140: 8340 | BC140: 0 | BG140: 7296 | BK140: 5666 | BO140: 12962 | BU140: 2871 | BY140: 5885 | CC140: 0 | CG140: 8756
S141: 12093 | W141: 11432 | AA141: 10936 | AE141: 34461 | AK141: 3454 | AO141: 3532 | AS141: 3466 | AW141: 10452 | BC141: 3472 | BG141: 2855 | BK141: 3691 | BO141: 10018 | BU141: 3824 | BY141: 3323 | CC141: 3859 | CG141: 11006
S142: 5948 | W142: 6797 | AA142: 6670 | AE142: 19415 | AK142: 61590 | AO142: 62499 | AS142: 55357 | AW142: 179446 | BC142: 51826 | BG142: 46426 | BK142: 56850 | BO142: 155102 | BU142: 53139 | BY142: 56654 | CC142: 58343 | CG142: 168136
S143: 15477 | W143: 16763 | AA143: 15843 | AE143: 48083 | AK143: 13229 | AO143: 11530 | AS143: 10542 | AW143: 35301 | BC143: 8906 | BG143: 7533 | BK143: 9864 | BO143: 26303 | BU143: 8942 | BY143: 9331 | CC143: 9701 | CG143: 27974
S144: 60146 | W144: 61857 | AA144: 58448 | AE144: 180451 | AK144: 6256 | AO144: 5253 | AS144: 3348 | AW144: 14857 | BC144: 5009 | BG144: 3439 | BK144: 3795 | BO144: 12243 | BU144: 5497 | BY144: 5068 | CC144: 5623 | CG144: 16188
S145: 3107 | W145: 3915 | AA145: 4845 | AE145: 11867 | AK145: 6463 | AO145: 3299 | AS145: 21622 | AW145: 31384 | BC145: 12964 | BG145: 10879 | BK145: 12649 | BO145: 36492 | BU145: 15677 | BY145: 13607 | CC145: 13333 | CG145: 42617
S146: 64904 | W146: 69823 | AA146: 68057 | AE146: 202784 | AK146: 22455 | AO146: 10645 | AS146: 82336 | AW146: 115436 | BC146: 55004 | BG146: 40935 | BK146: 55814 | BO146: 151753 | BU146: 44999 | BY146: 56934 | CC146: 55495 | CG146: 157428
S147: 268733 | W147: 274803 | AA147: 269951 | AE147: 813487 | AK147: 3992 | AO147: 3532 | AS147: 2764 | AW147: 10288 | BC147: 3152 | BG147: 2502 | BK147: 2302 | BO147: 7956 | BU147: 2088 | BY147: 2227 | CC147: 2257 | CG147: 6572
S148: 23064 | W148: 21202 | AA148: 17837 | AE148: 62103 | AK148: 69931 | AO148: 81733 | AS148: 77224 | AW148: 228888 | BC148: 77521 | BG148: 64529 | BK148: 78890 | BO148: 220940 | BU148: 73265 | BY148: 68676 | CC148: 74384 | CG148: 216325
S149: 342555 | W149: 348620 | AA149: 349597 | AE149: 1040772 | AK149: 237395 | AO149: 252945 | AS149: 229301 | AW149: 719641 | BC149: 223145 | BG149: 195139 | BK149: 231661 | BO149: 649945 | BU149: 221309 | BY149: 212933 | CC149: 235220 | CG149: 669462
S150: 186083 | W150: 197626 | AA150: 189324 | AE150: 573033 | AK150: 17155 | AO150: 24687 | AS150: 23043 | AW150: 64885 | BC150: 24213 | BG150: 20757 | BK150: 19790 | BO150: 64760 | BU150: 25204 | BY150: 23853 | CC150: 25115 | CG150: 74172
S151: 49182 | W151: 62546 | AA151: 56244 | AE151: 167972 | AK151: 360788 | AO151: 379519 | AS151: 348462 | AW151: 1088769 | BC151: 337555 | BG151: 290787 | BK151: 346915 | BO151: 975257 | BU151: 331737 | BY151: 321824 | CC151: 352095 | CG151: 1005656
S152: 25652 | W152: 31105 | AA152: 35435 | AE152: 92192 | AK152: 183156 | AO152: 206641 | AS152: 196267 | AW152: 586064 | BC152: 198231 | BG152: 165756 | BK152: 203667 | BO152: 567654 | BU152: 185412 | BY152: 174100 | CC152: 195819 | CG152: 555331
S153: 12324 | W153: 16010 | AA153: 12682 | AE153: 41016 | AK153: 58139 | AO153: 58809 | AS153: 50710 | AW153: 167658 | BC153: 43744 | BG153: 38236 | BK153: 54233 | BO153: 136213 | BU153: 42494 | BY153: 43212 | CC153: 58967 | CG153: 144673
S154: 35616 | W154: 28058 | AA154: 24394 | AE154: 88068 | AK154: 29711 | AO154: 41902 | AS154: 31018 | AW154: 102631 | BC154: 31432 | BG154: 28680 | BK154: 33707 | BO154: 93819 | BU154: 38096 | BY154: 35562 | CC154: 39044 | CG154: 112702
S155: 30711 | W155: 28830 | AA155: 21930 | AE155: 81471 | AK155: 513 | AO155: 736 | AS155: 255 | AW155: 1504 | BC155: 2027 | BG155: 2386 | BK155: 662 | BO155: 5075 | BU155: 1777 | BY155: 519 | CC155: 536 | CG155: 2832
S156: 792 | W156: 831 | AA156: 806 | AE156: 2429 | AK156: 12417 | AO156: 12711 | AS156: 10432 | AW156: 35560 | BC156: 11560 | BG156: 10491 | BK156: 7223 | BO156: 29274 | BU156: 14967 | BY156: 14486 | CC156: 12382 | CG156: 41835
S157: 25401 | W157: 18149 | AA157: 18471 | AE157: 62021 | AK157: 21784 | AO157: 36513 | AS157: 35518 | AW157: 93815 | BC157: 36723 | BG157: 30892 | BK157: 32237 | BO157: 99852 | BU157: 35291 | BY157: 33081 | CC157: 37713 | CG157: 106085
S158: 43635 | W158: 36756 | AA158: 32285 | AE158: 112676 | AK158: 20585 | AO158: 19288 | AS158: 18549 | AW158: 58422 | BC158: 19822 | BG158: 16663 | BK158: 20638 | BO158: 57123 | BU158: 18776 | BY158: 18708 | CC158: 22377 | CG158: 59861
S159: 113102 | W159: 114474 | AA159: 85302 | AE159: 312878 | AK159: 814 | AO159: 792 | AS159: 662 | AW159: 2268 | BC159: 758 | BG159: 682 | BK159: 739 | BO159: 2179 | BU159: 736 | BY159: 767 | CC159: 772 | CG159: 2275
S160: 2548 | W160: 2680 | AA160: 1878 | AE160: 7106 | AK160: 18204 | AO160: 19184 | AS160: 18325 | AW160: 55713 | BC160: 18013 | BG160: 15308 | BK160: 18079 | BO160: 51400 | BU160: 16602 | BY160: 17137 | CC160: 13215 | CG160: 46954
S161: 195051 | W161: 193348 | AA161: 154176 | AE161: 542575 | AK161: 31516 | AO161: 31297 | AS161: 28020 | AW161: 90833 | BC161: 24461 | BG161: 17994 | BK161: 26332 | BO161: 68787 | BU161: 20320 | BY161: 24606 | CC161: 29468 | CG161: 74394
S162: 3723 | W162: 3701 | AA162: 3416 | AE162: 10840 | AK162: 85610 | AO162: 84488 | AS162: 80661 | AW162: 250759 | BC162: 81160 | BG162: 69525 | BK162: 71657 | BO162: 222342 | BU162: 75502 | BY162: 74528 | CC162: 75119 | CG162: 225149
S163: 1247 | W163: 1885 | AA163: 1311 | AE163: 4443 | AK163: 1770 | AO163: 1843 | AS163: 1646 | AW163: 5259 | BC163: 1643 | BG163: 1320 | BK163: 1574 | BO163: 4537 | BU163: 1434 | BY163: 1654 | CC163: 1743 | CG163: 4831
S164: 95 | W164: 100 | AA164: 98 | AE164: 293 | AK164: 141964 | AO164: 142620 | AS164: 138213 | AW164: 422797 | BC164: 134225 | BG164: 116985 | BK164: 136191 | BO164: 387401 | BU164: 129483 | BY164: 127277 | CC164: 141157 | CG164: 397917
S165: 3277 | W165: 2876 | AA165: 2512 | AE165: 8665 | AK165: 3395 | AO165: 3706 | AS165: 3696 | AW165: 10797 | BC165: 2455 | BG165: 2292 | BK165: 3423 | BO165: 8170 | BU165: 3105 | BY165: 3150 | CC165: 3024 | CG165: 9279
S166: 9024 | W166: 10296 | AA166: 10094 | AE166: 29414 | AK166: 1227 | AO166: 1174 | AS166: 537 | AW166: 2938 | BC166: 830 | BG166: 912 | BK166: 1030 | BO166: 2772 | BU166: 431 | BY166: 489 | CC166: 898 | CG166: 1818
S167: 250 | W167: 140 | AA167: 390 | AE167: 780 | AK167: 89 | AO167: 93 | AS167: 91 | AW167: 273 | BC167: 88 | BG167: 93 | BK167: 85 | BO167: 266 | BU167: 98 | BY167: 110 | CC167: 64 | CG167: 272
S168: 227 | W168: 92 | AA168: 139 | AE168: 458 | AK168: 2381 | AO168: 2418 | AS168: 2228 | AW168: 7027 | BC168: 2245 | BG168: 2013 | BK168: 2263 | BO168: 6521 | BU168: 2260 | BY168: 2141 | CC168: 2141 | CG168: 6542
S169: 2040 | W169: 1630 | AA169: 3173 | AE169: 6843 | AK169: 9903 | AO169: 10343 | AS169: 9758 | AW169: 30004 | BC169: 9435 | BG169: 8523 | BK169: 9576 | BO169: 27534 | BU169: 9624 | BY169: 8753 | CC169: 9971 | CG169: 28348
S170: 15051 | W170: 13921 | AA170: 12731 | AE170: 41703 | AK170: 1100 | AO170: 647 | AS170: 74 | AW170: 1821 | BC170: 0 | BG170: 0 | BK170: 0 | BO170: 0 | BU170: 0 | BY170: 32 | CC170: 316 | CG170: 348
S171: 7603 | W171: 6450 | AA171: 8051 | AE171: 22104 | AK171: 248 | AO171: 114 | AS171: 0 | AW171: 362 | BC171: 180 | BG171: 0 | BK171: 0 | BO171: 180 | BU171: 78 | BY171: 0 | CC171: 0 | CG171: 78
S172: 7733 | W172: 5718 | AA172: 7144 | AE172: 20595 | AK172: 12 | AO172: 122 | AS172: 100 | AW172: 234 | BC172: 376 | BG172: 289 | BK172: 258 | BO172: 923 | BU172: 661 | BY172: 1195 | CC172: 4096 | CG172: 5952
S173: 73779 | W173: 61558 | AA173: 68938 | AE173: 204275 | AK173: 4311 | AO173: 4274 | AS173: 2050 | AW173: 10635 | BC173: 1384 | BG173: 569 | BK173: 1398 | BO173: 3351 | BU173: 16437 | BY173: 11602 | CC173: 15868 | CG173: 43907
S174: 55237 | W174: 49120 | AA174: 50661 | AE174: 155018 | AK174: 16000 | AO174: 16342 | AS174: 11539 | AW174: 43881 | BC174: 14404 | BG174: 13872 | BK174: 12372 | BO174: 40648 | BU174: 7552 | BY174: 7462 | CC174: 7496 | CG174: 22510
S175: 1781 | W175: 550 | AA175: 2028 | AE175: 4359 | AK175: 6396 | AO175: 8224 | AS175: 6583 | AW175: 21203 | BC175: 7353 | BG175: 6786 | BK175: 7310 | BO175: 21449 | BU175: 8545 | BY175: 7286 | CC175: 7613 | CG175: 23444
S176: 732 | W176: 632 | AA176: 733 | AE176: 2097 | AK176: 7565 | AO176: 7966 | AS176: 7070 | AW176: 22601 | BC176: 7719 | BG176: 4941 | BK176: 8055 | BO176: 20715 | BU176: 65594 | BY176: 61446 | CC176: 68781 | CG176: 195821
S177: 1209 | W177: 1102 | AA177: 1002 | AE177: 3313 | AK177: 68884 | AO177: 72417 | AS177: 66659 | AW177: 207960 | BC177: 74151 | BG177: 68130 | BK177: 71519 | BO177: 213800 | BU177: 48731 | BY177: 48050 | CC177: 47543 | CG177: 144324
S178: 60101 | W178: 58104 | AA178: 61221 | AE178: 179426 | AK178: 52382 | AO178: 53406 | AS178: 52757 | AW178: 158545 | BC178: 48906 | BG178: 44433 | BK178: 50310 | BO178: 143649 | BU178: 0 | BY178: 866 | CC178: 6440 | CG178: 7306
S179: 608 | W179: 626 | AA179: 431 | AE179: 1665 | AK179: 5507 | AO179: 5672 | AS179: 5022 | AW179: 16201 | BC179: 470 | BG179: 2302 | BK179: 4157 | BO179: 6929 | BU179: 751 | BY179: 704 | CC179: 797 | CG179: 2252
S180: 5058 | W180: 3341 | AA180: 2640 | AE180: 11039 | AK180: 644 | AO180: 682 | AS180: 636 | AW180: 1962 | BC180: 758 | BG180: 739 | BK180: 713 | BO180: 2210 | BU180: 0 | BY180: 144 | CC180: 539 | CG180: 683
S181: 3453 | W181: 2885 | AA181: 2577 | AE181: 8915 | AK181: 1173 | AO181: 1240 | AS181: 549 | AW181: 2962 | BC181: 0 | BG181: 0 | BK181: 177 | BO181: 177 | BU181: 64953 | BY181: 62093 | CC181: 57605 | CG181: 184651
S182: 6797 | W182: 4268 | AA182: 4046 | AE182: 15111 | AK182: 55676 | AO182: 55822 | AS182: 55256 | AW182: 166754 | BC182: 65556 | BG182: 47666 | BK182: 62334 | BO182: 175556 | BU182: 239 | BY182: 22 | CC182: 59 | CG182: 320
S183: 9714 | W183: 15176 | AA183: 9968 | AE183: 34858 | AK183: 11 | AO183: 0 | AS183: 1 | AW183: 12 | BC183: 0 | BG183: 1 | BK183: 0 | BO183: 1 | BU183: 4484 | BY183: 4088 | CC183: 5955 | CG183: 14527
S184: 0 | W184: 14539 | AA184: 6771 | AE184: 21310 | AK184: 2236 | AO184: 2155 | AS184: 0 | AW184: 4391 | BC184: 0 | BG184: 0 | BK184: 0 | BO184: 0 | BU184: 55 | BY184: 1498 | CC184: 7520 | CG184: 9073
S185: 3938 | W185: 3852 | AA185: 5195 | AE185: 12985 | AK185: 2317 | AO185: 2335 | AS185: 0 | AW185: 4652 | BC185: 0 | BG185: 0 | BK185: 0 | BO185: 0 | BU185: 419199 | BY185: 435730 | CC185: 487366 | CG185: 1342295
S186: 482399 | W186: 493225 | AA186: 481157 | AE186: 1456781 | AK186: 3795 | AO186: 3311 | AS186: 907 | AW186: 8013 | BC186: 127 | BG186: 0 | BK186: 41 | BO186: 168 | BU186: 220716 | BY186: 226532 | CC186: 238027 | CG186: 685275
S187: 269956 | W187: 268367 | AA187: 263770 | AE187: 802093 | AK187: 11337 | AO187: 15549 | AS187: 16801 | AW187: 43687 | BC187: 6153 | BG187: 5798 | BK187: 11448 | BO187: 23399 | BU187: 0 | BY187: 0 | CC187: 289 | CG187: 289
S188: 172 | W188: 33 | AA188: 193 | AE188: 398 | AK188: 8942 | AO188: 25686 | AS188: 21705 | AW188: 56333 | BC188: 2311 | BG188: 0 | BK188: 18499 | BO188: 20810 | BU188: 1157 | BY188: 1082 | CC188: 1346 | CG188: 3585
S189: 954 | W189: 895 | AA189: 958 | AE189: 2807 | AK189: 1398 | AO189: 0 | AS189: 636 | AW189: 2034 | BC189: 2776 | BG189: 989 | BK189: 0 | BO189: 3765 | BU189: 5934 | BY189: 5803 | CC189: 6034 | CG189: 17771
S190: 7282 | W190: 6436 | AA190: 7385 | AE190: 21103 | AK190: 456619 | AO190: 474452 | AS190: 443667 | AW190: 1374738 | BC190: 426777 | BG190: 386538 | BK190: 438870 | BO190: 1252185 | BU190: 0 | BY190: 0 | CC190: 2476 | CG190: 2476
S191: 3803 | W191: 3306 | AA191: 3584 | AE191: 10693 | AK191: 246371 | AO191: 254913 | AS191: 234879 | AW191: 736163 | BC191: 228121 | BG191: 203445 | BK191: 235422 | BO191: 666988 | BU191: 0 | BY191: 0 | CC191: 3048 | CG191: 3048
S192: 1980 | W192: 0 | AA192: 399 | AE192: 2379 | AK192: 159 | AO192: 83 | AS192: 0 | AW192: 242 | BC192: 0 | BG192: 0 | BK192: 0 | BO192: 0 | BU192: 136245 | BY192: 147580 | CC192: 153465 | CG192: 437290
S193: 147082 | W193: 158743 | AA193: 153383 | AE193: 459208 | AK193: 867 | AO193: 981 | AS193: 982 | AW193: 2830 | BC193: 979 | BG193: 1470 | BK193: 1228 | BO193: 3677 | BU193: 94 | BY193: 116 | CC193: 91 | CG193: 301
S194: 153 | W194: 33 | AA194: 11 | AE194: 197 | AK194: 7529 | AO194: 7171 | AS194: 7034 | AW194: 21734 | BC194: 6208 | BG194: 5806 | BK194: 6176 | BO194: 18190 | BU194: 259 | BY194: 207 | CC194: 652 | CG194: 1118
S195: 519 | W195: 465 | AA195: 430 | AE195: 1414 | AK195: 5027 | AO195: 3482 | AS195: 4968 | AW195: 13477 | BC195: 0 | BG195: 0 | BK195: 791 | BO195: 791 | BU195: 1843 | BY195: 1017 | CC195: 3123 | CG195: 5983
S196: 2303 | W196: 3259 | AA196: 1102 | AE196: 6664 | AK196: 4939 | AO196: 718 | AS196: 5224 | AW196: 10881 | BC196: 0 | BG196: 0 | BK196: 858 | BO196: 858 | BU196: 411 | BY196: 0 | CC196: 0 | CG196: 411
S197: 894 | W197: 915 | AA197: 919 | AE197: 2728 | AK197: 149339 | AO197: 140150 | AS197: 124592 | AW197: 414081 | BC197: 147738 | BG197: 109478 | BK197: 132899 | BO197: 390115 | BU197: 1515 | BY197: 1087 | CC197: 852 | CG197: 3454
S198: 1870 | W198: 1072 | AA198: 1042 | AE198: 3984 | AK198: 76 | AO198: 30 | AS198: 39 | AW198: 145 | BC198: 57 | BG198: 0 | BK198: 27 | BO198: 84 | BU198: 13015 | BY198: 14186 | CC198: 11151 | CG198: 38352
S199: 23898 | W199: 25136 | AA199: 21159 | AE199: 70193 | AK199: 363 | AO199: 385 | AS199: 296 | AW199: 1044 | BC199: 276 | BG199: 235 | BK199: 417 | BO199: 928 | BU199: 3089 | BY199: 2493 | CC199: 3067 | CG199: 8649
S200: 4019 | W200: 4144 | AA200: 4060 | AE200: 12223 | AK200: 4307 | AO200: 5087 | AS200: 2830 | AW200: 12224 | BC200: 1784 | BG200: 2694 | BK200: 2767 | BO200: 7245 | BU200: 4361 | BY200: 5637 | CC200: 5332 | CG200: 15330
S201: 5740 | W201: 5804 | AA201: 5659 | AE201: 17203 | AK201: 546 | AO201: 0 | AS201: 309 | AW201: 855 | BC201: 1123 | BG201: 342 | BK201: 1187 | BO201: 2652 | BU201: 2203 | BY201: 3347 | CC201: 4548 | CG201: 10098
S202: 5501 | W202: 4996 | AA202: 3490 | AE202: 13987 | AK202: 815 | AO202: 1047 | AS202: 1137 | AW202: 2999 | BC202: 895 | BG202: 619 | BK202: 1143 | BO202: 2657 | BU202: 1162 | BY202: 906 | CC202: 2797 | CG202: 4865
S203: 1836 | W203: 1921 | AA203: 1548 | AE203: 5305 | AK203: 0 | AO203: 3 | AS203: 0 | AW203: 3 | BC203: 0 | BG203: 0 | BK203: 0 | BO203: 0 | BU203: 27087 | BY203: 33067 | CC203: 31146 | CG203: 91300
S204: 27186 | W204: 32168 | AA204: 31499 | AE204: 90853 | AK204: 20706 | AO204: 21677 | AS204: 17922 | AW204: 60305 | BC204: 11248 | BG204: 8065 | BK204: 12380 | BO204: 31693 | BU204: 10970 | BY204: 11420 | CC204: 11438 | CG204: 33828
S205: 11165 | W205: 14549 | AA205: 11822 | AE205: 37536 | AK205: 3884 | AO205: 4230 | AS205: 3897 | AW205: 12011 | BC205: 2241 | BG205: 1147 | BK205: 1632 | BO205: 5020 | BU205: 284633 | BY205: 265087 | CC205: 285970 | CG205: 835690
S206: 315279 | W206: 295745 | AA206: 253335 | AE206: 864359 | AK206: 5826 | AO206: 5716 | AS206: 4012 | AW206: 15554 | BC206: 4049 | BG206: 2206 | BK206: 3342 | BO206: 9597 | BU206: 230797 | BY206: 226474 | CC206: 266152 | CG206: 723423
S207: 296088 | W207: 290108 | AA207: 254680 | AE207: 840876 | AK207: 4825 | AO207: 4530 | AS207: 4438 | AW207: 13793 | BC207: 2662 | BG207: 2209 | BK207: 3499 | BO207: 8370 | BU207: 39830 | BY207: 32412 | CC207: 39043 | CG207: 111285
S208: 35744 | W208: 37531 | AA208: 30526 | AE208: 103801 | AK208: 920 | AO208: 1657 | AS208: 1432 | AW208: 4009 | BC208: 2847 | BG208: 2023 | BK208: 2360 | BO208: 7230 | BU208: 207581 | BY208: 205780 | CC208: 243392 | CG208: 656753
S209: 273238 | W209: 269515 | AA209: 239868 | AE209: 782621 | AK209: 15140 | AO209: 25627 | AS209: 35610 | AW209: 76377 | BC209: 29079 | BG209: 27143 | BK209: 30305 | BO209: 86527 | BU209: 251138 | BY209: 241649 | CC209: 253388 | CG209: 746175
S210: 274610 | W210: 260435 | AA210: 214735 | AE210: 749780 | AK210: 4440 | AO210: 6771 | AS210: 12636 | AW210: 23847 | BC210: 13317 | BG210: 10899 | BK210: 12705 | BO210: 36921 | BU210: 1355 | BY210: 800 | CC210: 1498 | CG210: 3653
S211: 939 | W211: 904 | AA211: 441 | AE211: 2284 | AK211: 271268 | AO211: 315126 | AS211: 300318 | AW211: 886712 | BC211: 272434 | BG211: 249250 | BK211: 77168 | BO211: 598852 | BU211: 1338 | BY211: 973 | CC211: 1166 | CG211: 3477
S212: 1537 | W212: 1740 | AA212: 1826 | AE212: 5103 | AK212: 254991 | AO212: 275526 | AS212: 278708 | AW212: 809225 | BC212: 235080 | BG212: 204908 | BK212: 111411 | BO212: 551399 | BU212: 43004 | BY212: 36501 | CC212: 42632 | CG212: 122137
S213: 40039 | W213: 41966 | AA213: 34839 | AE213: 116844 | AK213: 30134 | AO213: 34025 | AS213: 34392 | AW213: 98551 | BC213: 35521 | BG213: 30901 | BK213: 12344 | BO213: 78766 | BU213: 366 | BY213: 353 | CC213: 315 | CG213: 1034
S214: 18282 | W214: 24341 | AA214: 22216 | AE214: 64839 | AK214: 224232 | AO214: 249833 | AS214: 256929 | AW214: 730994 | BC214: 211304 | BG214: 183077 | BK214: 206021 | BO214: 600402 | BU214: 23759 | BY214: 21432 | CC214: 23351 | CG214: 68542
... 124 more rows

Sheet Normal Purchase % (hidden)
A2: Source: The whole numbers come from Purchase Gas and Company Owned Gas sheets. The percentages are then calculated from those numbers.
B3: 2 | C3: 3 | D3: 4 | E3: 5 | F3: 6 | G3: 7 | H3: 8 | I3: 9
A4: Month | B4: Actual Purchase Mdth | C4: Normal Purchase Mdth | D4: Actual Company Mdth | E4: Normal Company Mdths | F4: Actual Purchase as Percent of Total | G4: Normal Purchase as Percent of Total | H4: Actual Cost-of-Service as Percent of Total | I4: Normal Cost-of-Service as Percent of Total | K4: Check Should = 100% | L4: Check Should = 100%
A5: ='Ex 1 HDD'!A8 -> 2022-06-01 | B5: ='Ex 4 Purchase Gas'!B8 -> 483.77 | C5: ='Ex 4 Purchase Gas'!C8 -> 619.593 | D5: ='Ex 7 Co. Owned Gas'!B8 -> 4510.212 | E5: ='Ex 7 Co. Owned Gas'!C8 -> 4454.94 | F5: =IFERROR(B5/(B5+D5),0) -> 0.09687059345 | G5: =C5/(C5+E5) -> 0.1220985261 | H5: =IFERROR(D5/(D5+B5),0) -> 0.9031294066 | I5: =E5/(E5+C5) -> 0.8779014739 | K5: =F5+H5 -> 1 | L5: =G5+I5 -> 1 | Q5: =SUM(B5:B7) -> 1012.798
A6: ='Ex 1 HDD'!A9 -> 2022-07-01 | B6: ='Ex 4 Purchase Gas'!B9 -> 252.061 | C6: ='Ex 4 Purchase Gas'!C9 -> 0 | D6: ='Ex 7 Co. Owned Gas'!B9 -> 4737.195 | E6: ='Ex 7 Co. Owned Gas'!C9 -> 4482.04 | F6: =IFERROR(B6/(B6+D6),0) -> 0.05052075901 | G6: 0 | H6: =IFERROR(D6/(D6+B6),0) -> 0.949479241 | I6: 1 | K6: 1 | L6: 1 | Q6: =SUM(D5:D7) -> 13653.638
A7: ='Ex 1 HDD'!A10 -> 2022-08-01 | B7: ='Ex 4 Purchase Gas'!B10 -> 276.967 | C7: ='Ex 4 Purchase Gas'!C10 -> 0 | D7: ='Ex 7 Co. Owned Gas'!B10 -> 4406.231 | E7: ='Ex 7 Co. Owned Gas'!C10 -> 4411.195 | F7: 0.05914057018 | G7: 0 | H7: 0.9408594298 | I7: 1 | K7: 1 | L7: 1 | Q7: =Q5+Q6 -> 14666.436
A8: ='Ex 1 HDD'!A11 -> 2022-09-01 | B8: ='Ex 4 Purchase Gas'!B11 -> 1317.673 | C8: ='Ex 4 Purchase Gas'!C11 -> 1212.387 | D8: ='Ex 7 Co. Owned Gas'!B11 -> 4399.604 | E8: ='Ex 7 Co. Owned Gas'!C11 -> 4056.795 | F8: 0.2304721286 | G8: 0.2300901734 | H8: 0.7695278714 | I8: 0.7699098266 | K8: 1 | L8: 1 | Q8: =Q5/Q7 -> 0.06905549515
A9: ='Ex 1 HDD'!A12 -> 2022-10-01 | B9: ='Ex 4 Purchase Gas'!B12 -> 5048.693 | C9: ='Ex 4 Purchase Gas'!C12 -> 5386.215 | D9: ='Ex 7 Co. Owned Gas'!B12 -> 4894.548 | E9: ='Ex 7 Co. Owned Gas'!C12 -> 4129.596 | F9: 0.5077512453 | G9: 0.5660279507 | H9: 0.4922487547 | I9: 0.4339720493 | K9: 1 | L9: 1
A10: ='Ex 1 HDD'!A13 -> 2022-11-01 | B10: ='Ex 4 Purchase Gas'!B13 -> 12361.26 | C10: ='Ex 4 Purchase Gas'!C13 -> 8236.698 | D10: ='Ex 7 Co. Owned Gas'!B13 -> 4878.396 | E10: ='Ex 7 Co. Owned Gas'!C13 -> 5358.427 | F10: 0.7170247481 | G10: 0.6058567317 | H10: 0.2829752519 | I10: 0.3941432683 | K10: =F10+H10 -> 1 | L10: 1
A11: ='Ex 1 HDD'!A14 -> 2022-12-01 | B11: ='Ex 4 Purchase Gas'!B14 -> 13268.09 | C11: ='Ex 4 Purchase Gas'!C14 -> 11121.36 | D11: ='Ex 7 Co. Owned Gas'!B14 -> 4905.827 | E11: ='Ex 7 Co. Owned Gas'!C14 -> 5247.635 | F11: 0.7300622095 | G11: 0.6794161767 | H11: 0.2699377905 | I11: 0.3205838233 | K11: 1 | L11: 1
A12: ='Ex 1 HDD'!A15 -> 2023-01-01 | B12: ='Ex 4 Purchase Gas'!B15 -> 14474.545 | C12: ='Ex 4 Purchase Gas'!C15 -> 11959.41 | D12: ='Ex 7 Co. Owned Gas'!B15 -> 4202.432 | E12: ='Ex 7 Co. Owned Gas'!C15 -> 5052.228 | F12: 0.7749939939 | G12: 0.7030134312 | H12: 0.2250060061 | I12: 0.2969865688 | K12: 1 | L12: 1
A13: ='Ex 1 HDD'!A16 -> 2023-02-01 | B13: ='Ex 4 Purchase Gas'!B16 -> 13515.506 | C13: ='Ex 4 Purchase Gas'!C16 -> 9791.591 | D13: ='Ex 7 Co. Owned Gas'!B16 -> 4290.122 | E13: ='Ex 7 Co. Owned Gas'!C16 -> 4426.493 | F13: 0.7590580911 | G13: 0.6886716241 | H13: 0.2409419089 | I13: 0.3113283759 | K13: 1 | L13: 1
A14: ='Ex 1 HDD'!A17 -> 2023-03-01 | B14: ='Ex 4 Purchase Gas'!B17 -> 11815.371 | C14: ='Ex 4 Purchase Gas'!C17 -> 8732.722 | D14: ='Ex 7 Co. Owned Gas'!B17 -> 4744.907 | E14: ='Ex 7 Co. Owned Gas'!C17 -> 4780.264 | F14: 0.7134766095 | G14: 0.6462466549 | H14: 0.2865233905 | I14: 0.3537533451 | K14: 1 | L14: 1
A15: ='Ex 1 HDD'!A18 -> 2023-04-01 | B15: ='Ex 4 Purchase Gas'!B18 -> 6094.883 | C15: ='Ex 4 Purchase Gas'!C18 -> 4825.148 | D15: ='Ex 7 Co. Owned Gas'!B18 -> 4629.471 | E15: ='Ex 7 Co. Owned Gas'!C18 -> 4524.564 | F15: 0.568321691 | G15: 0.5160745058 | H15: 0.431678309 | I15: 0.4839254942 | K15: 1 | L15: 1
A16: ='Ex 1 HDD'!A19 -> 2023-05-01 | B16: ='Ex 4 Purchase Gas'!B19 -> 1815.589 | C16: ='Ex 4 Purchase Gas'!C19 -> 3597.914 | D16: ='Ex 7 Co. Owned Gas'!B19 -> 4938.242 | E16: ='Ex 7 Co. Owned Gas'!C19 -> 4577.208 | F16: 0.2688235758 | G16: 0.4401052363 | H16: 0.7311764242 | I16: 0.5598947637 | K16: 1 | L16: 1
A18: Q1 | B18: =SUM(B5:B7) -> 1012.798 | C18: =SUM(C5:C7) -> 619.593 | D18: =SUM(D5:D7) -> 13653.638 | E18: =SUM(E5:E7) -> 13348.175 | F18: =IFERROR(B18/(B18+D18),0) -> 0.06905549515 | G18: =C18/(C18+E18) -> 0.04435876942 | H18: =IFERROR(D18/(D18+B18),0) -> 0.9309445049 | I18: =E18/(E18+C18) -> 0.9556412306 | K18: =F18+H18 -> 1 | L18: 1
A19: Q2 | B19: =SUM(B8:B10) -> 18727.626 | C19: =SUM(C8:C10) -> 14835.3 | D19: =SUM(D8:D10) -> 14172.548 | E19: =SUM(E8:E10) -> 13544.818 | F19: =IFERROR(B19/(B19+D19),0) -> 0.5692257433 | G19: =C19/(C19+E19) -> 0.5227356701 | H19: =IFERROR(D19/(D19+B19),0) -> 0.4307742567 | I19: =E19/(E19+C19) -> 0.4772643299 | K19: 1 | L19: 1
A20: Q3 | B20: =SUM(B11:B13) -> 41258.141 | C20: =SUM(C11:C13) -> 32872.361 | D20: =SUM(D11:D13) -> 13398.381 | E20: =SUM(E11:E13) -> 14726.356 | F20: 0.7548621736 | G20: 0.690614434 | H20: 0.2451378264 | I20: 0.309385566 | K20: 1 | L20: 1
A21: Q4 | B21: =SUM(B14:B16) -> 19725.843 | C21: =SUM(C14:C16) -> 17155.784 | D21: =SUM(D14:D16) -> 14312.62 | E21: =SUM(E14:E16) -> 13882.036 | F21: 0.5795162666 | G21: 0.5527380467 | H21: 0.4204837334 | I21: =E21/(E21+C21) -> 0.4472619533 | K21: =F21+H21 -> 1 | L21: =G21+I21 -> 1
B22: IRP | C22: Actual | D22: IRP | E22: Actual | F22: 0 | G22: Actual | H22: 0 | I22: Actual
F24: =F4 -> Actual Purchase as Percent of Total | G24: =G4 -> Normal Purchase as Percent of Total | H24: =H4 -> Actual Cost-of-Service as Percent of Total | I24: =I4 -> Normal Cost-of-Service as Percent of Total
E25: =A14 -> 2023-03-01 | F25: =VLOOKUP($E25,$A$5:$I$16,F$3,FALSE) -> 0.7134766095 | G25: =VLOOKUP($E25,$A$5:$I$16,G$3,FALSE) -> 0.6462466549 | H25: 0.2865233905 | I25: 0.3537533451 | K25: =F25+H25 -> 1 | L25: 1
E26: =A15 -> 2023-04-01 | F26: =VLOOKUP($E26,$A$5:$I$16,F$3,FALSE) -> 0.568321691 | G26: 0.5160745058 | H26: 0.431678309 | I26: 0.4839254942 | K26: 1 | L26: 1
E27: 2023-05-01 | F27: =VLOOKUP($E27,$A$5:$I$16,F$3,FALSE) -> 0.2688235758 | G27: 0.4401052363 | H27: 0.7311764242 | I27: 0.5598947637 | K27: 1 | L27: 1
E29: =A18 -> Q1 | F29: =VLOOKUP($E29,$A$18:$I$21,6,FALSE) -> 0.06905549515 | G29: =VLOOKUP($E29,$A$18:$I$21,7,FALSE) -> 0.04435876942 | H29: =VLOOKUP($E29,$A$18:$I$21,8,FALSE) -> 0.9309445049 | I29: =VLOOKUP($E29,$A$18:$I$21,9,FALSE) -> 0.9556412306 | K29: =F29+H29 -> 1 | L29: 1
E30: =A19 -> Q2 | F30: =VLOOKUP($E30,$A$18:$I$21,6,FALSE) -> 0.5692257433 | G30: =VLOOKUP($E30,$A$18:$I$21,G$3,FALSE) -> 0.5227356701 | H30: 0.4307742567 | I30: 0.4772643299 | K30: 1 | L30: 1
E31: =A20 -> Q3 | F31: 0.7548621736 | G31: 0.690614434 | H31: 0.2451378264 | I31: 0.309385566 | K31: 1 | L31: 1
E32: Q4 | F32: 0.5795162666 | G32: 0.5527380467 | H32: 0.4204837334 | I32: 0.4472619533 | K32: 1 | L32: 1 | N32: =F32-G32 -> 0.02677821996 | O32: =I32-H32 -> 0.02677821996
F34: =AVERAGE((F25:F27)) -> 0.5168739588 | G34: =AVERAGE((G25:G27)) -> 0.5341421324 | H34: =AVERAGE((H25:H27)) -> 0.4831260412 | I34: =AVERAGE((I25:I27)) -> 0.4658578676

Sheet IRP Pruch Cover Sheet (hidden)
C2: 2 | D2: 3 | E2: 4 | F2: 5
C4: ='Normal Purchase %'!F24 -> Actual Purchase as Percent of Total | D4: ='Normal Purchase %'!G24 -> Normal Purchase as Percent of Total | E4: ='Normal Purchase %'!H24 -> Actual Cost-of-Service as Percent of Total | F4: ='Normal Purchase %'!I24 -> Normal Cost-of-Service as Percent of Total
B6: ='Normal Purchase %'!E25 -> 2023-03-01 | C6: =VLOOKUP($B6,'Normal Purchase %'!$E$25:$I$27,'IRP Pruch Cover Sheet'!C$2,FALSE) -> 0.7134766095 | D6: =VLOOKUP($B6,'Normal Purchase %'!$E$25:$I$27,'IRP Pruch Cover Sheet'!D$2,FALSE) -> 0.6462466549 | E6: =VLOOKUP($B6,'Normal Purchase %'!$E$25:$I$27,'IRP Pruch Cover Sheet'!E$2,FALSE) -> 0.2865233905 | F6: =VLOOKUP($B6,'Normal Purchase %'!$E$25:$I$27,'IRP Pruch Cover Sheet'!F$2,FALSE) -> 0.3537533451
B7: ='Normal Purchase %'!E26 -> 2023-04-01 | C7: =VLOOKUP($B7,'Normal Purchase %'!$E$25:$I$27,'IRP Pruch Cover Sheet'!C$2,FALSE) -> 0.568321691 | D7: =VLOOKUP($B7,'Normal Purchase %'!$E$25:$I$27,'IRP Pruch Cover Sheet'!D$2,FALSE) -> 0.5160745058 | E7: =VLOOKUP($B7,'Normal Purchase %'!$E$25:$I$27,'IRP Pruch Cover Sheet'!E$2,FALSE) -> 0.431678309 | F7: =VLOOKUP($B7,'Normal Purchase %'!$E$25:$I$27,'IRP Pruch Cover Sheet'!F$2,FALSE) -> 0.4839254942
B8: ='Normal Purchase %'!E27 -> 2023-05-01 | C8: =VLOOKUP($B8,'Normal Purchase %'!$E$25:$I$27,'IRP Pruch Cover Sheet'!C$2,FALSE) -> 0.2688235758 | D8: =VLOOKUP($B8,'Normal Purchase %'!$E$25:$I$27,'IRP Pruch Cover Sheet'!D$2,FALSE) -> 0.4401052363 | E8: =VLOOKUP($B8,'Normal Purchase %'!$E$25:$I$27,'IRP Pruch Cover Sheet'!E$2,FALSE) -> 0.7311764242 | F8: =VLOOKUP($B8,'Normal Purchase %'!$E$25:$I$27,'IRP Pruch Cover Sheet'!F$2,FALSE) -> 0.5598947637
B10: Q4 | C10: =VLOOKUP($B$10,'Normal Purchase %'!$E$29:$I$32,'IRP Pruch Cover Sheet'!C$2,FALSE) -> 0.5795162666 | D10: =VLOOKUP($B$10,'Normal Purchase %'!$E$29:$I$32,'IRP Pruch Cover Sheet'!D$2,FALSE) -> 0.5527380467 | E10: =VLOOKUP($B$10,'Normal Purchase %'!$E$29:$I$32,'IRP Pruch Cover Sheet'!E$2,FALSE) -> 0.4204837334 | F10: =VLOOKUP($B$10,'Normal Purchase %'!$E$29:$I$32,'IRP Pruch Cover Sheet'!F$2,FALSE) -> 0.4472619533
D17: =C10-D10 -> 0.02677821996 | E17: =F10-E10 -> 0.02677821996

Sheet Sheet1 (hidden)
B1: Actual Data from Jennifer Beasley
B2: Estimates…See Company Nom Groups herein
C4: June | D4: July | E4: August | F4: Total Dth for Quarter | I4: March | J4: April | K4: May | L4: Total Dth for Quarter | O4: December | P4: January | Q4: February | R4: Total Dth for Quarter
B5: Estimated Shut-in (dth/day) | C5: =Sheet10!B138 -> 158.6304822 | D5: =Sheet10!C138 -> 157.6285771 | E5: =Sheet10!D138 -> 156.768801 | F5: =C5*30+D5*31+E5*31 -> 14505.23319 | H5: Estimated Shut-in (dth/day) | I5: =Sheet10!E138 -> 155.7213398 | J5: =Sheet10!F138 -> 154.9252094 | K5: =Sheet10!G138 -> 153.9867229 | L5: =I5*30+J5*31+K5*30 -> 14093.92337 | N5: Estimated Shut-in (dth/day) | O5: =Sheet10!H138 -> 152.9918608 | P5: =Sheet10!I138 -> 152.1343027 | Q5: =Sheet10!J138 -> 151.2179475 | R5: =O5*31+P5*31+Q5*28 -> 13693.0136
B6: Actual Shut-in (dth/day) | C6: 0 | D6: 0 | E6: 0 | F6: =C6*30+D6*31+E6*31 -> 0 | H6: Acutal Shut-in (dth/day) | I6: =I75/30 -> 0 | J6: =J75/31 -> 0 | K6: 0 | L6: =I6*30+J6*31+K6*30 -> 0 | N6: Acutal Shut-in (dth/day) | O6: =O75/30 -> 0 | P6: =P75/31 -> 0 | Q6: 0 | R6: =O6*30+P6*31+Q6*30 -> 0
B10: 1 | C10: 59 | D10: =D5 -> 157.6285771 | E10: 0 | H10: =B10 -> 1
B11: 2 | C11: 59 | D11: 780 | E11: 0 | H11: =B11 -> 2
B12: 3 | C12: 59 | D12: 780 | E12: 0 | H12: 3
B13: 4 | C13: 59 | D13: 780 | E13: 0 | H13: 4
B14: 5 | C14: 59 | D14: 780 | E14: 0 | H14: 5
B15: 6 | C15: 59 | D15: 780 | E15: 0 | H15: 6
B16: 7 | C16: 59 | D16: =D11 -> 780 | E16: 0 | H16: 7
B17: 8 | C17: 59 | D17: 780 | E17: 0 | H17: 8
B18: 9 | C18: 59 | D18: 780 | E18: 0 | H18: 9
B19: 10 | C19: 59 | D19: =D14 -> 780 | E19: 0 | H19: 10
B20: 11 | C20: 59 | D20: 780 | E20: 0 | H20: 11
B21: 12 | C21: 59 | D21: 780 | E21: 0 | H21: 12
B22: 13 | C22: 59 | D22: =D17 -> 780 | E22: 0 | H22: 13
B23: 14 | C23: 59 | D23: 780 | E23: 0 | H23: 14
B24: 15 | C24: 59 | D24: 780 | E24: 0 | H24: 15
B25: 16 | C25: 59 | D25: =D20 -> 780 | E25: 0 | H25: 16
B26: 17 | C26: 59 | D26: 780 | E26: 0 | H26: 17
B27: 18 | C27: 59 | D27: 780 | E27: 0 | H27: 18
B28: 19 | C28: 59 | D28: =D23 -> 780 | E28: 0 | H28: 19
B29: 20 | C29: 59 | D29: 780 | E29: 0 | H29: 20
B30: 21 | C30: 59 | D30: 780 | E30: 0 | H30: 21
B31: 22 | C31: 59 | D31: =D26 -> 780 | E31: 0 | H31: 22
B32: 23 | C32: 59 | D32: 780 | E32: 0 | H32: 23
B33: 24 | C33: 59 | D33: 780 | E33: 0 | H33: 24
B34: 25 | C34: 59 | D34: =D29 -> 780 | E34: 0 | H34: 25
B35: 26 | C35: 59 | D35: 780 | E35: 0 | H35: 26
B36: 27 | C36: 59 | D36: 780 | E36: 0 | H36: 27
B37: 28 | C37: 59 | D37: =D32 -> 780 | E37: 0 | H37: 28
B38: 29 | C38: 59 | D38: 780 | E38: 0 | H38: 29
B39: 30 | C39: 59 | D39: 780 | E39: 0 | H39: 30
B40: 31 | C40: 0 | D40: =D35 -> 780 | E40: 0 | H40: 31
C41: =SUM(C10:C40) -> 1770 | D41: =SUM(D10:D40) -> 23557.62858 | E41: =SUM(E10:E40) -> 0 | F41: =SUM(C41:E41) -> 25327.62858 | I41: 0 | J41: 0 | K41: 0 | L41: =SUM(I41:K41) -> 0
B44: 1 | C44: 0 | D44: 0 | E44: 0 | H44: 1 | I44: 0 | J44: 0 | K44: 0
B45: 2 | C45: 0 | D45: 0 | E45: 0 | H45: 2 | I45: 0 | J45: 0 | K45: 0
B46: 3 | C46: 0 | D46: 0 | E46: 0 | H46: 3 | I46: 0 | J46: 0 | K46: 0
B47: 4 | C47: 0 | D47: 0 | E47: 5724 | H47: 4 | I47: 0 | J47: 0 | K47: 0
B48: 5 | C48: 0 | D48: 0 | E48: 5724 | H48: 5 | I48: 0 | J48: 0 | K48: 0
B49: 6 | C49: 0 | D49: 0 | E49: 5724 | H49: 6 | I49: 0 | J49: 0 | K49: 0
B50: 7 | C50: 0 | D50: 0 | E50: 5724 | H50: 7 | I50: 0 | J50: 0 | K50: 0
B51: 8 | C51: 0 | D51: 0 | E51: 5724 | H51: 8 | I51: 0 | J51: 0 | K51: 0
B52: 9 | C52: 0 | D52: 0 | E52: 5724 | H52: 9 | I52: 0 | J52: 0 | K52: 0
B53: 10 | C53: 0 | D53: 0 | E53: 5724 | H53: 10 | I53: 0 | J53: 0 | K53: 0
B54: 11 | C54: 0 | D54: 0 | E54: 5724 | H54: 11 | I54: 0 | J54: 0 | K54: 0
B55: 12 | C55: 0 | D55: 0 | E55: 5724 | H55: 12 | I55: 0 | J55: 0 | K55: 0
B56: 13 | C56: 0 | D56: 0 | E56: 5724 | H56: 13 | I56: 0 | J56: 0 | K56: 0
B57: 14 | C57: 0 | D57: 0 | E57: 5724 | H57: 14 | I57: 0 | J57: 0 | K57: 0
B58: 15 | C58: 0 | D58: 0 | E58: 5724 | H58: 15 | I58: 0 | J58: 0 | K58: 0
B59: 16 | C59: 0 | D59: 0 | E59: 5724 | H59: 16 | I59: 0 | J59: 0 | K59: 0
B60: 17 | C60: 0 | D60: 0 | E60: 5724 | H60: 17 | I60: 0 | J60: 0 | K60: 0
B61: 18 | C61: 0 | D61: 0 | E61: 5724 | H61: 18 | I61: 0 | J61: 0 | K61: 0
B62: 19 | C62: 0 | D62: 0 | E62: 5724 | H62: 19 | I62: 0 | J62: 0 | K62: 0
B63: 20 | C63: 0 | D63: 0 | E63: 5724 | H63: 20 | I63: 0 | J63: 0 | K63: 0
B64: 21 | C64: 0 | D64: 0 | E64: 5724 | H64: 21 | I64: 0 | J64: 0 | K64: 0
B65: 22 | C65: 0 | D65: 0 | E65: 5724 | H65: 22 | I65: 0 | J65: 0 | K65: 0
B66: 23 | C66: 0 | D66: 0 | E66: 5724 | H66: 23 | I66: 0 | J66: 0 | K66: 0
B67: 24 | C67: 0 | D67: 0 | E67: 5724 | H67: 24 | I67: 0 | J67: 0 | K67: 0
B68: 25 | C68: 0 | D68: 0 | E68: 5724 | H68: 25 | I68: 0 | J68: 0 | K68: 0
B69: 26 | C69: 0 | D69: 0 | E69: 5724 | H69: 26 | I69: 0 | J69: 0 | K69: 0
B70: 27 | C70: 0 | D70: 0 | E70: 5724 | H70: 27 | I70: 0 | J70: 0 | K70: 0
B71: 28 | C71: 0 | D71: 0 | E71: 5724 | H71: 28 | I71: 0 | J71: 0 | K71: 0
B72: 29 | C72: 0 | D72: 0 | E72: 5724 | H72: 29 | I72: 0 | J72: 0 | K72: 0
B73: 30 | C73: 0 | D73: 0 | E73: 5724 | H73: 30 | I73: 0 | J73: 0 | K73: 0
B74: 31 | C74: 0 | D74: 0 | E74: 5724 | H74: 31 | J74: 0
C75: =SUM(C44:C74) -> 0 | D75: =SUM(D44:D74) -> 0 | E75: =SUM(E44:E74) -> 160272 | F75: =SUM(C75:E75) -> 160272 | I75: =SUM(I44:I74) -> 0 | J75: =SUM(J44:J74) -> 0 | K75: =SUM(K44:K74) -> 0 | L75: =SUM(I75:K75) -> 0

Sheet Shut-In (hidden)
B1: Actual Data from Jennifer Beasley
B2: Estimates…See Company Nom Groups herein
C4: June | D4: July | E4: August | F4: Total Dth for Quarter | I4: September | J4: October | K4: November | L4: Total Dth for Quarter | O4: December | P4: January | Q4: February | R4: Total Dth for Quarter
B5: Estimated Shut-in (dth/day) | C5: =Sheet10!B138 -> 158.6304822 | D5: =Sheet10!C138 -> 157.6285771 | E5: =Sheet10!D138 -> 156.768801 | F5: =C5*30+D5*31+E5*31 -> 14505.23319 | H5: Estimated Shut-in (dth/day) | I5: =Sheet10!E138 -> 155.7213398 | J5: =Sheet10!F138 -> 154.9252094 | K5: =Sheet10!G138 -> 153.9867229 | L5: =I5*30+J5*31+K5*30 -> 14093.92337 | N5: Estimated Shut-in (dth/day) | O5: =Sheet10!H138 -> 152.9918608 | P5: =Sheet10!I138 -> 152.1343027 | Q5: =Sheet10!J138 -> 151.2179475 | R5: =O5*31+P5*31+Q5*28 -> 13693.0136
B6: Actual Shut-in (dth/day) | C6: 0 | D6: 0 | E6: 0 | F6: =C6*30+D6*31+E6*31 -> 0 | H6: Acutal Shut-in (dth/day) | I6: =I75/30 -> 0 | J6: =J75/31 -> 0 | K6: 0 | L6: =I6*30+J6*31+K6*30 -> 0 | N6: Acutal Shut-in (dth/day) | O6: =O75/30 -> 0 | P6: =P75/31 -> 0 | Q6: 0 | R6: =O6*30+P6*31+Q6*30 -> 0
B10: 1 | C10: 59 | D10: =D5 -> 157.6285771 | E10: 0 | H10: =B10 -> 1
B11: 2 | C11: 59 | D11: 780 | E11: 0 | H11: =B11 -> 2
B12: 3 | C12: 59 | D12: 780 | E12: 0 | H12: 3
B13: 4 | C13: 59 | D13: 780 | E13: 0 | H13: 4
B14: 5 | C14: 59 | D14: 780 | E14: 0 | H14: 5
B15: 6 | C15: 59 | D15: 780 | E15: 0 | H15: 6
B16: 7 | C16: 59 | D16: =D11 -> 780 | E16: 0 | H16: 7 | K16: ?????????
B17: 8 | C17: 59 | D17: 780 | E17: 0 | H17: 8
B18: 9 | C18: 59 | D18: 780 | E18: 0 | H18: 9
B19: 10 | C19: 59 | D19: =D14 -> 780 | E19: 0 | H19: 10
B20: 11 | C20: 59 | D20: 780 | E20: 0 | H20: 11
B21: 12 | C21: 59 | D21: 780 | E21: 0 | H21: 12
B22: 13 | C22: 59 | D22: =D17 -> 780 | E22: 0 | H22: 13
B23: 14 | C23: 59 | D23: 780 | E23: 0 | H23: 14
B24: 15 | C24: 59 | D24: 780 | E24: 0 | H24: 15
B25: 16 | C25: 59 | D25: =D20 -> 780 | E25: 0 | H25: 16
B26: 17 | C26: 59 | D26: 780 | E26: 0 | H26: 17
B27: 18 | C27: 59 | D27: 780 | E27: 0 | H27: 18
B28: 19 | C28: 59 | D28: =D23 -> 780 | E28: 0 | H28: 19
B29: 20 | C29: 59 | D29: 780 | E29: 0 | H29: 20
B30: 21 | C30: 59 | D30: 780 | E30: 0 | H30: 21
B31: 22 | C31: 59 | D31: =D26 -> 780 | E31: 0 | H31: 22
B32: 23 | C32: 59 | D32: 780 | E32: 0 | H32: 23
B33: 24 | C33: 59 | D33: 780 | E33: 0 | H33: 24
B34: 25 | C34: 59 | D34: =D29 -> 780 | E34: 0 | H34: 25
B35: 26 | C35: 59 | D35: 780 | E35: 0 | H35: 26
B36: 27 | C36: 59 | D36: 780 | E36: 0 | H36: 27
B37: 28 | C37: 59 | D37: =D32 -> 780 | E37: 0 | H37: 28
B38: 29 | C38: 59 | D38: 780 | E38: 0 | H38: 29
B39: 30 | C39: 59 | D39: 780 | E39: 0 | H39: 30
B40: 31 | C40: 0 | D40: =D35 -> 780 | E40: 0 | H40: 31
C41: =SUM(C10:C40) -> 1770 | D41: =SUM(D10:D40) -> 23557.62858 | E41: =SUM(E10:E40) -> 0 | F41: =SUM(C41:E41) -> 25327.62858 | I41: 0 | J41: 0 | K41: 0 | L41: =SUM(I41:K41) -> 0
B44: 1 | C44: 0 | D44: 0 | E44: 0 | H44: 1 | I44: 0 | J44: 0 | K44: 0
B45: 2 | C45: 0 | D45: 0 | E45: 0 | H45: 2 | I45: 0 | J45: 0 | K45: 0
B46: 3 | C46: 0 | D46: 0 | E46: 0 | H46: 3 | I46: 0 | J46: 0 | K46: 0
B47: 4 | C47: 0 | D47: 0 | E47: 5724 | H47: 4 | I47: 0 | J47: 0 | K47: 0
B48: 5 | C48: 0 | D48: 0 | E48: 5724 | H48: 5 | I48: 0 | J48: 0 | K48: 0
B49: 6 | C49: 0 | D49: 0 | E49: 5724 | H49: 6 | I49: 0 | J49: 0 | K49: 0
B50: 7 | C50: 0 | D50: 0 | E50: 5724 | H50: 7 | I50: 0 | J50: 0 | K50: 0
B51: 8 | C51: 0 | D51: 0 | E51: 5724 | H51: 8 | I51: 0 | J51: 0 | K51: 0
B52: 9 | C52: 0 | D52: 0 | E52: 5724 | H52: 9 | I52: 0 | J52: 0 | K52: 0
B53: 10 | C53: 0 | D53: 0 | E53: 5724 | H53: 10 | I53: 0 | J53: 0 | K53: 0
B54: 11 | C54: 0 | D54: 0 | E54: 5724 | H54: 11 | I54: 0 | J54: 0 | K54: 0
B55: 12 | C55: 0 | D55: 0 | E55: 5724 | H55: 12 | I55: 0 | J55: 0 | K55: 0
B56: 13 | C56: 0 | D56: 0 | E56: 5724 | H56: 13 | I56: 0 | J56: 0 | K56: 0
B57: 14 | C57: 0 | D57: 0 | E57: 5724 | H57: 14 | I57: 0 | J57: 0 | K57: 0
B58: 15 | C58: 0 | D58: 0 | E58: 5724 | H58: 15 | I58: 0 | J58: 0 | K58: 0
B59: 16 | C59: 0 | D59: 0 | E59: 5724 | H59: 16 | I59: 0 | J59: 0 | K59: 0
B60: 17 | C60: 0 | D60: 0 | E60: 5724 | H60: 17 | I60: 0 | J60: 0 | K60: 0
B61: 18 | C61: 0 | D61: 0 | E61: 5724 | H61: 18 | I61: 0 | J61: 0 | K61: 0
B62: 19 | C62: 0 | D62: 0 | E62: 5724 | H62: 19 | I62: 0 | J62: 0 | K62: 0
B63: 20 | C63: 0 | D63: 0 | E63: 5724 | H63: 20 | I63: 0 | J63: 0 | K63: 0
B64: 21 | C64: 0 | D64: 0 | E64: 5724 | H64: 21 | I64: 0 | J64: 0 | K64: 0
B65: 22 | C65: 0 | D65: 0 | E65: 5724 | H65: 22 | I65: 0 | J65: 0 | K65: 0
B66: 23 | C66: 0 | D66: 0 | E66: 5724 | H66: 23 | I66: 0 | J66: 0 | K66: 0
B67: 24 | C67: 0 | D67: 0 | E67: 5724 | H67: 24 | I67: 0 | J67: 0 | K67: 0
B68: 25 | C68: 0 | D68: 0 | E68: 5724 | H68: 25 | I68: 0 | J68: 0 | K68: 0
B69: 26 | C69: 0 | D69: 0 | E69: 5724 | H69: 26 | I69: 0 | J69: 0 | K69: 0
B70: 27 | C70: 0 | D70: 0 | E70: 5724 | H70: 27 | I70: 0 | J70: 0 | K70: 0
B71: 28 | C71: 0 | D71: 0 | E71: 5724 | H71: 28 | I71: 0 | J71: 0 | K71: 0
B72: 29 | C72: 0 | D72: 0 | E72: 5724 | H72: 29 | I72: 0 | J72: 0 | K72: 0
B73: 30 | C73: 0 | D73: 0 | E73: 5724 | H73: 30 | I73: 0 | J73: 0 | K73: 0
B74: 31 | C74: 0 | D74: 0 | E74: 5724 | H74: 31 | J74: 0
C75: =SUM(C44:C74) -> 0 | D75: =SUM(D44:D74) -> 0 | E75: =SUM(E44:E74) -> 160272 | F75: =SUM(C75:E75) -> 160272 | I75: =SUM(I44:I74) -> 0 | J75: =SUM(J44:J74) -> 0 | K75: =SUM(K44:K74) -> 0 | L75: =SUM(I75:K75) -> 0

Sheet Deleted Exhibit 2.5 (hidden)
O31: ='Exhibit 1.1'!O31 -> DEU Variance Exhibit | P31: Docket No. 22-057-02 | Q31: ='Exhibit 1.1'!Q31 -> Dominion Energy Utah
O32: 2.5

Sheet Deleted Exhibit 2.6 (hidden)
O31: ='Exhibit 1.1'!O31 -> DEU Variance Exhibit | P31: Docket No. 22-057-02 | Q31: ='Exhibit 1.1'!Q31 -> Dominion Energy Utah
O32: 2.6
